Workbook

Sheet mc_mdo_trabajo (hidden)
B1: EL MERCADO LABORAL
B4: FUNCIÓN DE OFERTA LABORAL
B5: Ns | C5: -a0 | D5: a1
B6: =mc_oculto!A34 -> 300.0 | C6: (400.0) | D6: 3.0
B8: FUNCIÓN DE DEMANDA LABORAL
B9: Nd | C9: b0 | D9: -b1
B10: =mc_oculto!A39 -> 300.0 | C10: 1,000.0 | D10: (3.0)
C11: Inserte los datos correspondientes
B13: Salario de equilibrio | D13: =mc_oculto!C42 -> 233.3
B14: Empleo de equilibrio | D14: =mc_oculto!C43 -> 300.0
B23: Títulos
B24: Resultados
B25: Insertar datos
B26: Equilibrio

Sheet mc_fn_produccion (hidden)
B1: FUNCIÓN DE PRODUCCIÓN
C7: FUNCIÓN ORIGINAL | D7: CAMBIO TECNÓGICO
B9: y | C9: =mc_oculto!M29 -> 300.00 | D9: =mc_oculto!R30 -> 300.00
B10: A | C10: 1.00 | D10: =C10 -> 1.00
B11: N | C11: 300.00 | D11: =C11 -> 300.00
B12: a | C12: 0.50 | D12: =C12 -> 0.50
B13: K | C13: 300.00 | D13: =C13 -> 300.00
B14: b | C14: 0.50 | D14: =C14 -> 0.50
C15: Inserte los datos correspondientes
B16: N* | C16: =mc_oculto!M40 -> 300.00 | D16: =mc_oculto!N40 -> 300.00
B17: Producto Total | C17: =mc_oculto!M41 -> 300.00 | D17: =mc_oculto!N41 -> 300.00
B18: Producto Medio | C18: =mc_oculto!M42 -> 1.00 | D18: =mc_oculto!N42 -> 1.00
B19: Producto Marginal | C19: =mc_oculto!M43 -> 0.50 | D19: =mc_oculto!N43 -> 0.50
B21: Títulos
B22: Resultados
B23: Insertar datos
B24: Equilibrio

Sheet mc_oferta_agregada (hidden)
A1: OFERTA AGREGADA
B4: OFERTA DE TRABAJO | D4: DEMANDA DE TRABAJO
B5: Ns | C5: =mc_oculto!CL34 -> 350.0 | D5: Nd | E5: =mc_oculto!CL39 -> 350.0
B6: -a0 | C6: -400.0 | D6: b0 | E6: 800.0
B7: a1 | C7: 5.0 | D7: -b1 | E7: -3.0
C8: Inserte los datos correspondientes
B9: NIVEL DE PRECIOS | C9: P0 | D9: P1 | E9: P2
C10: 1.0 | D10: 1.0 | E10: 1.0
C11: Inserte los datos correspondientes
C12: P0 | D12: P1 | E12: P2
B13: W | C13: =mc_oculto!CM42 -> 150.0 | D13: =mc_oculto!CN42 -> 150.0 | E13: =mc_oculto!CO42 -> 150.0
B14: N* | C14: =mc_oculto!CM43 -> 350.0 | D14: =mc_oculto!CN43 -> 350.0 | E14: =mc_oculto!CO43 -> 350.0
B15: Ns* | C15: =mc_oculto!CM44 -> 350.0 | D15: =mc_oculto!CN44 -> 350.0 | E15: =mc_oculto!CO44 -> 350.0
B16: Nd* | C16: =mc_oculto!CM48 -> 350.0 | D16: =mc_oculto!CN48 -> 350.0 | E16: =mc_oculto!CO48 -> 350.0
B18: y | C18: =mc_oculto!DI29 -> 324.04
B19: A | C19: 1.00
B20: N | C20: =C14 -> 350.00
B21: a | C21: 0.50
B22: K | C22: 300.00
B23: b | C23: 0.50
B24: Inserte los datos correspondientes
B25: Producto total | D25: =mc_oculto!DI41 -> 324.04
B26: Producto medio | D26: =mc_oculto!DI42 -> 0.93
B27: Producto marginal | D27: =mc_oculto!DI43 -> 0.46
B29: Títulos
B30: Resultados
B31: Insertar datos
B32: Equilibrio

Sheet mc_demanda_agregada (hidden)
A1: DEMANDA AGREGADA
B4: FUNCIÓN DE DEMANDA DE DINERO
B5: Caso 1 | C5: Caso 2
B6: Py | C6: Py
B7: =B9/B11 -> 800.0 | C7: =C9/C11 -> 800.0
B8: Ms | C8: Ms
B9: 200.0 | C9: 200.0
B10: k | C10: k
B11: 0.25 | C11: 0.25
B12: Inserte los datos correspondientes
B24: Títulos
B25: Resultados
B26: Insertar datos

Sheet mc_mercado_prestables (hidden)
B1: EL MERCADO
B2: DE FONDOS PRESTABLES
B4: FUNCIÓN AHORRO PRIVADO
B5: S | C5: -s0 | D5: s1
B6: =mc_oculto!AY34 -> 836.0 | C6: -425.0 | D6: 325.0
B8: FUNCIÓN INVERSIÓN PRIVADA
B9: I | C9: i0 | D9: -i1
B10: =mc_oculto!AY39 -> 836.0 | C10: 2,000.0 | D10: -300.0
D11: .
B12: INGRESOS Y GASTOS DEL GOBIERNO
B13: G | C13: G0 | D13: 500.0
B14: T | C14: T0 | D14: 500.0
B15: Balance fiscal | D15: =mc_oculto!AS52 -> 0.0
B17: SALDO DE LA BALANZA COMERCIAL
B18: X | C18: X0 | D18: 500.0
B19: Q | C19: Q0 | D19: 500.0
B20: Balanza comercial | D20: =mc_oculto!AS53 -> 0.0
B22: Tasa de interés de equilibrio | D22: =mc_oculto!AS42 -> 3.9
B23: S e I de total | D23: =mc_oculto!AS43 -> 836.0
B24: S privado | D24: =mc_oculto!AS44 -> 836.0
B25: Balance fiscal | D25: =mc_oculto!AS45 -> 0.0
B26: I privada | D26: =mc_oculto!AS47 -> 836.0
B27: Balanza comercial | D27: =mc_oculto!AS48 -> 0
B29: Títulos
B30: Resultados
B31: Insertar datos
B32: Equilibrio

Sheet mc_sector_externo (hidden)
B1: EXPORTACIONES E
B2: IMPORTACIONES
B4: PAÍS A
B5: P | D5: 5.0
B7: PAÍS B
B8: P* | D8: 5.0
B10: PRECIOS RELATIVOS
B11: P*/P | D11: =mc_oculto!CE30 -> 1.00
B13: FUNCIÓN DE EXPORTACIONES
B14: X | C14: e0 | D14: e1
B15: =mc_oculto!CA37 -> 250.0 | C15: 200.0 | D15: 50.0
B17: FUNCIÓN DE IMPORTACIONES
B18: Q | C18: q0 | D18: q1
B19: =mc_oculto!CA41 -> 250.0 | C19: 300.0 | D19: -50.0
B22: SBC | D22: =mc_oculto!CA43 -> 0
B24: Títulos
B25: Resultados
B26: Insertar datos
B27: Equilibrio

Sheet mc_ofertas_netas (hidden)
B1: CURVAS DE
B2: OFERTA NETA
B4: PAÍS A
B5: P | D5: 20.0
B7: PAÍS B
B8: P* | D8: 20.0
B10: FUNCIÓN DE EXPORTACIONES
B11: e0
B12: 50.0
B14: FUNCIÓN DE IMPORTACIONES
B15: q0
B16: =B12 -> 50.0
B27: Títulos
B28: Resultados
B29: Insertar Datos

Sheet mc_inicio
A23: Descargue la versión Kindle
J31: Miguel Cervantes Jiménez
K36: Miguel Cervantes Jiménez

Sheet mc_sistema_basico (hidden)
A1: SISTEMA DE ECUACIONES DEL MODELO NEOCLÁSICO
B3: FUNCIÓN DE PRODUCCIÓN | L3: VALORES DE EQUILIBRIO
B4: Y | C4: A | D4: N | E4: a | F4: K | G4: b | L4: Y | M4: =B5 -> 1,751.6
B5: =C5*(D5^E5)*(F5^G5) -> 1,751.6 | C5: 1.00 | D5: =B9 -> 304.0 | E5: 0.50 | F5: 10,092.0 | G5: 0.50 | L5: C | M5: =M4-M6-M7-M8 -> 1,151.6
L6: I | M6: =B33 -> 400.0
B7: FUNCIÓN DE OFERTA DE TRABAJO | L7: G | M7: =H17 -> 200.0
B8: Ns | C8: -a0 | D8: a1 | E8: W/P | L8: XN | M8: =M10 -> 0.0
B9: =C9+(D9*E9) -> 304.0 | C9: (100.0) | D9: 101.0 | E9: =(C9-C13)/(D13-D9) -> 4.0
L10: XN | M10: =M11-M12 -> 0.0
B11: FUNCIÓN DE DEMANDA DE TRABAJO | G11: PRECIOS EXTRANJEROS | L11: X | M11: =G25 -> 400.0
B12: Nd | C12: b0 | D12: -b1 | E12: W/P | G12: p* | L12: Q | M12: =G29 -> 400.0
B13: =C13+(D13*E13) -> 304.0 | C13: 600.0 | D13: (74.0) | E13: =(C9-C13)/(D13-D9) -> 4.0 | G13: 1.14
B15: DEMANDA AGREGADA | G15: GASTO DEL GOBIERNO | L15: DÉFICIT O SUPERÁVIT FISCAL
B16: p | C16: M | D16: k | E16: Y | G16: G | H16: G0 | L16: SBF
B17: =C17/(D17*E17) -> 1.14 | C17: 200.0 | D17: 0.10 | E17: =B5 -> 1,751.56 | G17: =H17 -> 200.0 | H17: 200.0 | L17: =H21-H17 -> 0
B19: FUNCIÓN AHORRO TOTAL | G19: INGRESOS DEL GOBIERNO | L19: SALDO DE LA BALANZA COMERCIAL
B20: S TOTAL | C20: S PRIVADO | D20: S PÚBLICO | G20: T | H20: T0 | L20: SBC
B21: =C21+D21 -> 400.0 | C21: =B29 -> 400.0 | D21: =H21-H17 -> 0 | G21: =H21 -> 200.0 | H21: 200.0 | L21: =G25-G29 -> 0.0
B23: FUNCIÓN INVERSIÓN TOTAL | G23: FUNCIÓN DE EXPORTACIONES
B24: I TOTAL | C24: I PRIVADA | D24: I EXTERNA | G24: X | H24: x0 | I24: x1 | J24: p*/p
B25: =C25+D25 -> 2.0 | C25: 2.0 | D25: =L21 -> 0.0 | G25: =H25+(I25*J25) -> 400.0 | H25: 300.0 | I25: 100.0 | J25: =G13/B17 -> 1.00
L26: Títulos
B27: FUNCIÓN AHORRO PRIVADO | G27: FUNCIÓN DE IMPORTACIONES | L27: Resultados
B28: S | C28: -s0 | D28: s1 | E28: r | G28: Q | H28: q0 | I28: q1 | J28: p*/p | L28: Insertar datos
B29: =C29+(D29*E29) -> 400.0 | C29: (400.0) | D29: 300.0 | E29: =(C33+G25-G29-C29+H17-H21)/(D29-D33) -> 2.7 | G29: =H29+(I29*J29) -> 400.0 | H29: 500.0 | I29: (100.0) | J29: =G13/B17 -> 1.00 | L29: Equilibrio
B31: FUNCIÓN INVERSIÓN PRIVADA
B32: I | C32: i0 | D32: -i1 | E32: r
B33: =C33+(D33*E33) -> 400.0 | C33: 1,200.0 | D33: (300.0) | E33: =(C33+H17-H21-C29+G25-G29)/(D29-D33) -> 2.7

Sheet mc_sistema_ampliado (hidden)
A1: POLÍTICA ECONÓMICA EN EL MODELO NEOCLÁSICO
B3: SISTEMA ORIGINAL | J3: CHOQUES DE POLÍTICA ECONÓMICA
B5: FUNCIÓN DE PRODUCCIÓN | I5: VALORES DE EQUILIBRIO
B6: Y | C6: A | D6: N | E6: a | F6: K | G6: b | I6: Y | J6: C | K6: I | L6: G | M6: X | N6: Q
B7: =mc_oculto!DZ9 -> 300.00 | C7: 1.00 | D7: =mc_oculto!EB9 -> 300.00 | E7: 0.50 | F7: 300.00 | G7: 0.50 | I7: =B7 -> 300.00 | J7: =I7-K7-L7+(M7-N7) -> 94.00 | K7: =F31 -> 56.00 | L7: =C27 -> 150.00 | M7: =B35 -> 400.00 | N7: =B39 -> 400.00
B9: FUNCIÓN DE OFERTA DE TRABAJO | I9: CHOQUES DE POLÍTICA ECONÓMICA
B10: Ns | C10: -a0 | D10: a1 | E10: W/P | F10: TMg | I10: M | J10: G | K10: T | L10: T Marginal | M10: X | N10: Q
B11: =mc_oculto!DZ13 -> 300.0 | C11: (400.0) | D11: 2.0 | E11: =mc_oculto!EC13 -> 350.0 | F11: 0% | I11: =mc_oculto!EN28 -> 200.00 | J11: =mc_oculto!EO28 -> 150.00 | K11: =mc_oculto!EP28 -> 150.00 | L11: =mc_oculto!EQ28 -> 0 | M11: =mc_oculto!ER28 -> 300.00 | N11: =mc_oculto!ES28 -> 500.00
I12: 0.00% | J12: 0.00% | K12: 0.00% | L12: 0.00% | M12: 0.00% | N12: 0.00%
B13: FUNCIÓN DE DEMANDA DE TRABAJO
B14: Nd | C14: b0 | D14: -b1 | E14: W/P | J14: VARIABLES | K14: FUNCIÓN ORIGINAL | L14: CHOQUE | M14: VARIACIÓN ABSOLUTA | N14: VARIACIÓN RELATIVA
B15: =mc_oculto!DZ17 -> 300.0 | C15: 1,000.0 | D15: (2.0) | E15: =mc_oculto!EC17 -> 350.0
B17: DEMANDA AGREGADA | J17: Y | K17: =mc_oculto!EO9 -> 300.0 | L17: =mc_oculto!EP9 -> 300.0 | M17: =mc_oculto!EQ9 -> 0 | N17: =mc_oculto!ER9 -> 0.0%
B18: p | C18: M | D18: k | E18: Y | J18: N | K18: =mc_oculto!EO10 -> 300.0 | L18: =mc_oculto!EP10 -> 300.0 | M18: =mc_oculto!EQ10 -> 0 | N18: =mc_oculto!ER10 -> 0.0%
B19: =mc_oculto!DZ21 -> 6.67 | C19: 200.0 | D19: 0.10 | E19: =mc_oculto!EC21 -> 300.00 | J19: W/P | K19: =mc_oculto!EO11 -> 350.0 | L19: =mc_oculto!EP11 -> 350.0 | M19: =mc_oculto!EQ11 -> 0 | N19: =mc_oculto!ER11 -> 0.0%
J20: r | K20: =mc_oculto!EO12 -> 1.5 | L20: =mc_oculto!EP12 -> 1.5 | M20: =mc_oculto!EQ12 -> 0
B21: FUNCIÓN AHORRO PRIVADO | J21: S privado | K21: =mc_oculto!EO13 -> 56.0 | L21: =mc_oculto!EP13 -> 56.0 | M21: =mc_oculto!EQ13 -> 0 | N21: =mc_oculto!ER13 -> 0.0%
B22: S privado | C22: -s0 | D22: s1 | E22: r | F22: S TOTAL | J22: G | K22: =mc_oculto!EO14 -> 150.0 | L22: =mc_oculto!EP14 -> 150.0 | M22: =mc_oculto!EQ14 -> 0 | N22: =mc_oculto!ER14 -> 0.0%
B23: =mc_oculto!DZ25 -> 56.0 | C23: (425.0) | D23: 325.0 | E23: =mc_oculto!EC25 -> 1.5 | F23: =B23+D27-B27 -> 56.0 | J23: T | K23: =mc_oculto!EO15 -> 150.0 | L23: =mc_oculto!EP15 -> 150.0 | M23: =mc_oculto!EQ15 -> 0 | N23: =mc_oculto!ER15 -> 0.0%
J24: Saldo Fiscal | K24: =mc_oculto!EO16 -> 0 | L24: =mc_oculto!EP16 -> 0 | M24: =mc_oculto!EQ16 -> 0 | N24: =mc_oculto!ER16 -> 0.0%
B25: GASTO DE GOBIERNO | D25: INGRESOS DE GOBIERNO | J25: C | K25: =mc_oculto!EO17 -> 94.0 | L25: =mc_oculto!EP17 -> 94.0 | M25: =mc_oculto!EQ17 -> 0 | N25: =mc_oculto!ER17 -> 0.0%
B26: G | C26: g0 | D26: T | E26: t0 | F26: SFISCAL | J26: I privada | K26: =mc_oculto!EO18 -> 56.0 | L26: =mc_oculto!EP18 -> 56.0 | M26: =mc_oculto!EQ18 -> 0 | N26: =mc_oculto!ER18 -> 0.0%
B27: =mc_oculto!DZ33 -> 150.0 | C27: 150.0 | D27: =mc_oculto!EC33 -> 150.0 | E27: 150.0 | F27: =mc_oculto!EE33 -> 0 | J27: X | K27: =mc_oculto!EO19 -> 400.0 | L27: =mc_oculto!EP19 -> 400.0 | M27: =mc_oculto!EQ19 -> 0 | N27: =mc_oculto!ER19 -> 0.0%
J28: Q | K28: =mc_oculto!EO20 -> 400.0 | L28: =mc_oculto!EP20 -> 400.0 | M28: =mc_oculto!EQ20 -> 0 | N28: =mc_oculto!ER20 -> 0.0%
B29: FUNCIÓN INVERSIÓN PRIVADA | J29: SBC | K29: =mc_oculto!EO21 -> 0.0 | L29: =mc_oculto!EP21 -> 0.0 | M29: =mc_oculto!EQ21 -> 0 | N29: =mc_oculto!ER21 -> 0.0%
B30: I privada | C30: i0 | D30: -i1 | E30: r | F30: I TOTAL | J30: p | K30: =mc_oculto!EO22 -> 6.7 | L30: =mc_oculto!EP22 -> 6.7 | M30: =mc_oculto!EQ22 -> 0 | N30: =mc_oculto!ER22 -> 0.0%
B31: =mc_oculto!DZ29 -> 56.0 | C31: 500.0 | D31: (300.0) | E31: =mc_oculto!EC29 -> 1.5 | F31: =B31+B35-B39 -> 56.0 | J31: p*/p | K31: =mc_oculto!EO23 -> 1.0 | L31: =mc_oculto!EP23 -> 1.0 | M31: =mc_oculto!EQ23 -> 0 | N31: =mc_oculto!ER23 -> 0.0%
K32: Esta seccion muestra los efectos de la Política Económica
B33: FUNCIÓN EXPORTACIONES
B34: X | C34: x0 | D34: x1 | E34: p*/p
B35: =mc_oculto!DZ37 -> 400.0 | C35: 300.0 | D35: 100.0 | E35: =mc_oculto!EC37 -> 1.00 | M35: Títulos
M36: Resultados
B37: FUNCIÓN IMPORTACIONES | M37: Insertar Datos
B38: Q | C38: q0 | D38: q1 | E38: p*/p | M38: Equilibrio
B39: =mc_oculto!DZ41 -> 400.0 | C39: 500.0 | D39: (100.0) | E39: =mc_oculto!EC41 -> 1.00 | M39: Política económica
B41: PRECIOS EXTERNOS
B42: p* | E42: SBC
B43: 6.67 | E43: =mc_oculto!EE39 -> 0.00

Sheet mc_sistema_graficas (hidden)
A1: SISTEMA NEOCLÁSICO | L1: M | M1: G | N1: T | O1: TMg | P1: X | Q1: Q
A2: Efectos de política económica | L2: =mc_oculto!FJ8 -> 200.00 | M2: =mc_oculto!FK8 -> 260.00 | N2: =mc_oculto!FL8 -> 200.00 | O2: =mc_oculto!FM8 -> 0 | P2: =mc_oculto!FB37 -> 400.00 | Q2: =mc_oculto!FB41 -> 400.00
L3: 0.00% | M3: 30.00% | N3: 0.00% | O3: 0.00% | P3: 0.00% | Q3: 0.00%
A4: Y | B4: =mc_oculto!EU9 -> 1,740.00 | L4: VARIABLES | N4: ORIGINAL | O4: CHOQUE | P4: VAR ABS | Q4: VAR REL
L5: Y | N5: =mc_oculto!FJ13 -> 1,740.0 | O5: =mc_oculto!FK13 -> 1,740.0 | P5: =mc_oculto!FL13 -> 0 | Q5: =mc_oculto!FM13 -> 0%
A6: FUNCIÓN DE PRODUCCIÓN | L6: N | N6: =mc_oculto!FJ14 -> 300.0 | O6: =mc_oculto!FK14 -> 300.0 | P6: =mc_oculto!FL14 -> 0 | Q6: =mc_oculto!FM14 -> 0%
A7: A | B7: N | C7: a | D7: K | E7: b | L7: W/P neto | N7: =mc_oculto!FJ15 -> 350.0 | O7: =mc_oculto!FK15 -> 350.0 | P7: =mc_oculto!FL15 -> 0 | Q7: =mc_oculto!FM15 -> 0%
A8: 1.00 | B8: =mc_oculto!EW9 -> 300.00 | C8: 0.50 | D8: 10,092.00 | E8: 0.50 | L8: W/P bruto | N8: =mc_oculto!FJ16 -> 350.0 | O8: =mc_oculto!FK16 -> 350.0 | P8: =mc_oculto!FL16 -> 0 | Q8: =mc_oculto!FM16 -> 0%
A9: FUNCIÓN DE OFERTA DE TRABAJO | L9: Impuesto Mg | N9: =mc_oculto!FJ17 -> 0 | O9: =mc_oculto!FK17 -> 0 | P9: =mc_oculto!FL17 -> 0
A10: Ns | B10: -a0 | C10: a1 | D10: W/P | E10: TMg | L10: S privado | N10: =mc_oculto!FJ18 -> 400.0 | O10: =mc_oculto!FK18 -> 430.0 | P10: =mc_oculto!FL18 -> 30.0 | Q10: =mc_oculto!FM18 -> 7%
A11: =mc_oculto!FB13 -> 300.0 | B11: (400.0) | C11: 2.0 | D11: =mc_oculto!EX13 -> 350.0 | E11: 0.00% | L11: C | N11: =mc_oculto!FJ19 -> 1,140.0 | O11: =mc_oculto!FK19 -> 1,110.0 | P11: =mc_oculto!FL19 -> -30.0 | Q11: =mc_oculto!FM19 -> -3%
A12: FUNCIÓN DE DEMANDA DE TRABAJO | L12: I privada | N12: =mc_oculto!FJ20 -> 400.0 | O12: =mc_oculto!FK20 -> 370.0 | P12: =mc_oculto!FL20 -> -30.0 | Q12: =mc_oculto!FM20 -> -7%
A13: Nd | B13: b0 | C13: -b1 | D13: W/P | L13: r | N13: =mc_oculto!FJ21 -> 2.7 | O13: =mc_oculto!FK21 -> 2.8 | P13: =mc_oculto!FL21 -> 0.1
A14: =mc_oculto!FB17 -> 300.0 | B14: 1,000.0 | C14: (2.0) | D14: =mc_oculto!EX17 -> 350.0 | L14: X | N14: =mc_oculto!FJ22 -> 400.0 | O14: =mc_oculto!FK22 -> 400.0 | P14: =mc_oculto!FL22 -> 0 | Q14: =mc_oculto!FM22 -> 0%
A15: DEMANDA AGREGADA | E15: PRECIOS EXT | L15: Q | N15: =mc_oculto!FJ23 -> 400.0 | O15: =mc_oculto!FK23 -> 400.0 | P15: =mc_oculto!FL23 -> 0 | Q15: =mc_oculto!FM23 -> 0%
A16: p | B16: M | C16: k | D16: Y | E16: p* | L16: SBC | N16: =mc_oculto!FJ24 -> 0.0 | O16: =mc_oculto!FK24 -> 0.0 | P16: =mc_oculto!FL24 -> 0 | Q16: =mc_oculto!FM24 -> 0%
A17: =mc_oculto!EU21 -> 1.15 | B17: 200.0 | C17: 0.10 | D17: =mc_oculto!EX21 -> 1,740.00 | E17: 1.15 | L17: p | N17: =mc_oculto!FJ25 -> 1.1 | O17: =mc_oculto!FK25 -> 1.1 | P17: =mc_oculto!FL25 -> 0 | Q17: =mc_oculto!FM25 -> 0%
A18: FUNCIÓN AHORRO | L18: p*/p | N18: =mc_oculto!FJ26 -> 1.0 | O18: =mc_oculto!FK26 -> 1.0 | P18: =mc_oculto!FL26 -> 0 | Q18: =mc_oculto!FM26 -> 0%
A19: S Privado | B19: -s0 | C19: s1 | D19: r | E19: S Total | L19: G | N19: =mc_oculto!FJ27 -> 200.0 | O19: =mc_oculto!FK27 -> 260.0 | P19: =mc_oculto!FL27 -> 60.0 | Q19: =mc_oculto!FM27 -> 0.3
A20: =mc_oculto!EU25 -> 400.0 | B20: (400.0) | C20: 300.0 | D20: =mc_oculto!EX25 -> 2.7 | E20: =mc_oculto!EY25 -> 400.0 | L20: T | N20: =mc_oculto!FJ28 -> 200.0 | O20: =mc_oculto!FK28 -> 200.0 | P20: =mc_oculto!FL28 -> 0 | Q20: =mc_oculto!FM28 -> 0
A21: FUNCIÓN INVERSIÓN
A22: I Privada | B22: i0 | C22: -i1 | D22: r | E22: I Total
A23: =mc_oculto!EU29 -> 400.0 | B23: 1,200.0 | C23: (300.0) | D23: =mc_oculto!EX29 -> 2.7 | E23: =mc_oculto!EY29 -> 400.0 | L23: Esta seccion muestra los efectos de la política económica
A24: GASTO DE GOBIERNO | C24: INGRESO DE GOBIERNO | L24: Y | M24: C | N24: I | O24: G | P24: XN
A25: G | B25: g0 | C25: T | D25: t0 | E25: S FISCAL | L25: =O5 -> 1,740.0 | M25: =L25-N25-O25+P25 -> 1,110.0 | N25: =O12 -> 370.0 | O25: =O19 -> 260.0 | P25: =O14-O15 -> 0.0
A26: =mc_oculto!EU33 -> 200.0 | B26: 200.0 | C26: =mc_oculto!EW33 -> 200.0 | D26: 200.0 | E26: =mc_oculto!EY33 -> 0
A27: FUNCIÓN EXPORTACIONES
A28: X | B28: x0 | C28: x1 | D28: p*/p
A29: =mc_oculto!EU37 -> 400.0 | B29: 300.0 | C29: 100.0 | D29: =mc_oculto!EX37 -> 1.00 | E29: SBC
A30: FUNCIÓN IMPORTACIONES | E30: =mc_oculto!EZ39 -> 0.00
A31: Q | B31: q0 | C31: -q1 | D31: p*/p
A32: =mc_oculto!EU41 -> 400.0 | B32: 500.0 | C32: (100.0) | D32: =mc_oculto!EX41 -> 1.00
A34: Y | B34: C | C34: I | D34: G | E34: XN
A35: =mc_oculto!EU44 -> 1,740.0 | B35: =mc_oculto!EV44 -> 1,140.0 | C35: =mc_oculto!EW44 -> 400.0 | D35: =mc_oculto!EX44 -> 200.0 | E35: =mc_oculto!EY44 -> 0.0
C37: X | D37: Q | E37: XN
C38: =mc_oculto!EW50 -> 400.0 | D38: =mc_oculto!EX50 -> 400.0 | E38: =mc_oculto!EY50 -> 0.0
A40: Títulos
A41: Resultados
A42: Insertar datos
A43: Equilibrio
A44: Política económica

Sheet mc_oculto (hidden)
A1: EMPLEO | K1: PRODUCCIÒN | AQ1: AHORRO E INVERSIÓN | BS1: EXPORTACIONES E IMPORTACIONES | CA1: EXPORTACIONES E IMPORTACIONES | CG1: DEMANDA AGREGADA | CL1: OFERTA AGREGADA | DZ1: SISTEMA CLASICO CON CHOQUES | EU1: SISTEMA FINAL
A3: SISTEMA BÁSICO | K3: FUNCIÓN DE PRODUCCIÓN | CL3: MERCADO DE TRABAJO CON PRECIOS | DG3: FUNCIÓN DE PRODUCCIÓN | DS3: OFERTA AGREGADA | FP3: MERCADO DE TRABAJO | FR3: ORIGINAL | FX3: MODIFICADO | GF3: FUNCIÓN DE PRODUCCIÓN 1 | GM3: Inicial | GQ3: Final | GV3: OFERTA AGREGADA 1 | GY3: OFERTA AGREGADA 2 | HC3: DEMANDA AGREGADA 1 | HF3: DEMANDA AGREGADA 2 | HK3: AHORRO E INVERSIÓN 1 | HS3: INVERSIÓN 2
A4: Unidades | B4: Cantidad | C4: P Oferta | D4: P Demanda | E4: plin | G4: xlin | K4: Ponderador | L4: Función de Producción Original | M4: x1 | N4: A | O4: alfa | P4: x2 | Q4: Beta | R4: max PT | S4: PT ponde | T4: y1 Line | V4: PMg | W4: x1 line | Y4: y1 Line | AA4: Función de Producción con cambio | AB4: x1 | AC4: A | AD4: allfa | AE4: x2 | AF4: Beta | AG4: max PT | AH4: PT ponde | AI4: y1 Line | AK4: PMg | AL4: x1 line | AN4: y1 Line | AQ4: Unidades | AR4: Tasa de interés | AS4: Ahorro Privado | AT4: Inversión Privada | AU4: Ahorrro Total | AV4: Inversión Total | AW4: rlinx | AX4: rlinx | AY4: rlinex | AZ4: lin spriv | BA4: lin stotal | BB4: lin ipriv | BC4: ponderador | BS4: PONDERADOR | BT4: P*/P | BU4: X | BV4: Q | BW4: Q PONDE | BX4: QQQ | CA4: Unidades | CB4: P Oferta | CC4: X | CD4: Q | CE4: 0 | CF4: =$CE$31 -> 250.00 | CG4: Unidades | CH4: Y | CI4: P | CL4: Unidades | CM4: Cantidad | CN4: Ps1 | CO4: Pd1 | CP4: Ps2 | CQ4: Pd2 | CR4: Ps3 | CS4: Pd3 | CT4: plin 1 | CV4: xlin 1 | CX4: plin 2 | CZ4: xlin 2 | DB4: plin 3 | DD4: xlin 3 | DG4: Ponderador | DH4: Función de Producción Original | DI4: x1 | DJ4: A | DK4: alfa | DL4: x2 | DM4: Beta | DN4: max PT | DO4: PT ponde | DP4: y1 Line | DS4: OA | DT4: P | FP4: Unidades | FQ4: Cantidad | FR4: P Oferta | FS4: P Demanda | FT4: plin | FV4: xlin | FX4: P Oferta | FY4: plin | GA4: xlin | GF4: Ponderador | GG4: Función de Producción Original | GH4: x1 | GI4: A | GJ4: alfa | GK4: x2 | GL4: Beta | GM4: max PT | GN4: PT ponde | GO4: y1 Line | GQ4: max PT | GR4: PT ponde | GS4: y1 Line | GV4: OA | GW4: P | GY4: OA | GZ4: P | HB4: Unidades | HC4: Y | HD4: P | HF4: Y | HG4: P | HJ4: Unidades | HK4: r | HL4: S Inicial | HM4: I Inicial | HN4: r | HO4: S Final | HP4: I Final | HQ4: r line1,1 | HR4: s line1,1 | HS4: r line1,1 | HT4: s line1,1 | HU4: r line1,2 | HV4: s line1,2 | HW4: r line1,2 | HX4: s line1,2 | HY4: Unidades
A5: 0 | B5: 0 | C5: =(B5-$B$34)/$C$34 -> 133 | D5: =(B5-$B$39)/$C$39 -> 333 | E5: =A5*$C$43 -> 0 | F5: =$C$42 -> 233 | G5: =$C$43 -> 300 | H5: =A5*$C$42 -> 0 | K5: 0 | L5: =N5*(M5^(O5)*P5^(Q5)) -> 0 | M5: =M$31*1.2*K5 -> 0 | N5: =$M$30 -> 1.00 | O5: =$M$32 -> 0.50 | P5: =$M$33 -> 300.00 | Q5: =$M$34 -> 0.50 | R5: =$M$37 -> 300.00 | S5: =$R$29*K5 -> 0 | T5: =$M$31*K5 -> 0 | U5: =$M$29 -> 300.00 | W5: =$M$31 -> 300.00 | X5: =$M$43*K5 -> 0 | Y5: =K5*$M$31 -> 0 | Z5: =$M$43 -> 0.50 | AA5: =AC5*(AB5^(AD5)*AE5^(AF5)) -> 0 | AB5: =N$31*1.2*K5 -> 0 | AC5: =$N$30 -> 1.00 | AD5: =$N$32 -> 0.50 | AE5: =$N$33 -> 300.00 | AF5: =$N$34 -> 0.50 | AG5: =$N$37 -> 300.00 | AH5: =$R$30*K5 -> 0 | AI5: =$N$31*K5 -> 0 | AJ5: =$N$29 -> 300.00 | AL5: =$N$31 -> 300.00 | AM5: =K5*$N$43 -> 0 | AN5: =K5*$N$31 -> 0 | AO5: =$N$43 -> 0.50 | AQ5: 0 | AR5: =AQ5*$AS$42 -> 0.00 | AS5: =$AR$34+$AS$34*AR5 -> -425.00 | AT5: =$AR$39+$AS$39*AR5+$AV$39*$AW$39 -> 2,000.00 | AU5: =$AR$34+$AS$34*AR5+$AU$34-$AT$34 -> -425.00 | AV5: =$AR$39+$AS$39*AR5+$AV$39*$AW$39+$AT$39-$AU$39 -> 2,000.00 | AW5: =MAX($AS$43,$AS$44,$AS$47,$AS$49)*BC5 -> 0.00 | AX5: =$AS$42 -> 3.88 | AY5: =BC5*$AS$42 -> 0.00 | AZ5: =$AS$44 -> 836.00 | BA5: =$AS$43 -> 836.00 | BB5: =$AS$47 -> 836.00 | BC5: 0 | BS5: 0 | BT5: =($BU$33/$BU$30)*BS5 -> 0.00 | BU5: =$BT$37^(BT5) -> 1.00 | BV5: =$BT$41^(1/BT5) ->  | BW5: =BS5*$BT$41 -> 0 | BX5: =POWER(($BT$41*BT5),1/BT5) ->  | BY5: =BU5-BX5 ->  | CA5: 0.1 | CB5: =($CB$33/$CB$30)*CA5 -> 0.10 | CC5: =$CB$37+($CC$37*CB5) -> 205.00 | CD5: =$CB$41+($CC$41*(CB5)) -> 295.00 | CE5: =MAX($CE$31:$CE$32)*CA5 -> 25 | CF5: =$CE$31 -> 250.00 | CG5: 0.025 | CH5: =CG5*$CG$34 -> 20.0 | CI5: =$CG$34/CH5 -> 40.0 | CL5: 0 | CM5: 0 | CN5: =($CM$51*(CM5-$CM$34))/$CN$34 -> 80 | CO5: =($CM$51*(CM5-$CM$39))/$CN$39 -> 267 | CP5: =CN42-(CN27*$CL$34) -> 80 | CQ5: =CN42-(CO27*$CL$34) -> 267 | CR5: =CO42-(CN27*$CL$34) -> 80 | CS5: =CO42-(CO27*$CL$34) -> 267 | CT5: =CL5*$CM$43 -> 0 | CU5: =$CM$42 -> 150 | CV5: =$CM$43 -> 350 | CW5: =CL5*$CM$42 -> 0 | CX5: =CL5*$CN$43 -> 0 | CY5: =$CN$42 -> 150 | CZ5: =$CN$43 -> 350 | DA5: =CL5*$CN$42 -> 0 | DB5: =CL5*$CO$43 -> 0 | DC5: =$CO$42 -> 150 | DD5: =$CO$43 -> 350 | DE5: =CL5*$CO$42 -> 0 | DG5: 0 | DH5: =DJ5*(DI5^(DK5)*DL5^(DM5)) -> 0 | DI5: =DI$31*1.2*DG5 -> 0 | DJ5: =$DI$30 -> 1.00 | DK5: =$DI$32 -> 0.50 | DL5: =$DI$33 -> 300.00 | DM5: =$DI$34 -> 0.50 | DN5: =$DI$37 -> 350.00 | DO5: =$DN$29*DG5 -> 0 | DP5: =$DI$31*DG5 -> 0 | DQ5: =$DI$29 -> 324.04 | DS5: =$DI$29 -> 324.04 | DT5: =IF(DU6=DU7,DT6,0) -> 1.00 | DZ5: FUNCIÒN ORIGINAL | EG5: FUNCIÒN CON CHOQUES | EU5: FUNCIÒN ORIGINAL | FB5: FUNCIÒN CON CHOQUES | FP5: 0 | FQ5: 0 | FR5: =(FQ5-$FQ$34)/($FR$34*(1-$FS$34)) -> 200 | FS5: =(FQ5-$FQ$39)/$FR$39 -> 500 | FT5: =FP5*$FR$43 -> 0 | FU5: =$FR$42 -> 350 | FV5: =$FR$43 -> 300 | FW5: =FP5*$FR$42 -> 0 | FX5: =(FQ5-$FY$34)/($FZ$34*(1-$GA$34)) -> 200 | FY5: =FP5*$FZ$43 -> 0 | FZ5: =$FZ$42 -> 350 | GA5: =$FZ$43 -> 300 | GB5: =FP5*$FZ$42 -> 0 | GF5: 0 | GG5: =GI5*(GH5^(GJ5)*GK5^(GL5)) -> 0 | GH5: =GH$31*1.2*GF5 -> 0 | GI5: =$GH$30 -> 1.00 | GJ5: =$GH$32 -> 0.50 | GK5: =$GH$33 -> 10,092.00 | GL5: =$GH$34 -> 0.50 | GM5: =$GH$37 -> 300.00 | GN5: =$GM$29*GF5 -> 0 | GO5: =$GH$31*GF5 -> 0 | GP5: =$GH$29 -> 1,740.00 | GQ5: =$GI$37 -> 300.00 | GR5: =$GM$30*GF5 -> 0 | GS5: =$GI$31*GF5 -> 0 | GT5: =$GI$29 -> 1,740.00 | GV5: =$GH$29 -> 1,740.00 | GW5: 0.00 | GY5: =$GI$29 -> 1,740.00 | GZ5: 0.00 | HB5: 0.05 | HC5: =HB5*$HB$34 -> 100.0 | HD5: =$HB$34/HC5 -> 20.00 | HF5: =HB5*$HF$34 -> 100.0 | HG5: =$HF$34/HF5 -> 20.00 | HJ5: 0 | HK5: =HJ5*$HL$43 -> 0.00 | HL5: =$HK$34+$HL$34*HK5+$HN$39-$HM$39 -> -400.00 | HM5: =$HK$39+$HL$39*HK5+$HO$39-$HP$39 -> 1,200.00 | HN5: =HJ5*$HM$43 -> 0.00 | HO5: =$HK$34+$HL$34*HN5+$HN$40-$HM$40 -> -460.00 | HP5: =$HK$40+$HL$40*HN5+$HO$40-$HP$40 -> 1,200.00 | HQ5: =$HL$43 -> 2.67 | HR5: =($HL$44*HY5) -> 0.00 | HS5: =$HL$43*HY5 -> 0.00 | HT5: =$HL$44 -> 400.00 | HU5: =$HM$43 -> 2.77 | HV5: =($HM$44*HY5) -> 0.00 | HW5: =$HM$43*HY5 -> 0.00 | HX5: =$HM$44 -> 370.00 | HY5: 0
A6: 0.05 | B6: =B5+$C$27 -> 50 | C6: 150 | D6: 317 | E6: 15 | F6: 233 | G6: 300 | H6: 12 | K6: 0.05 | L6: =N6*(M6^(O6)*P6^(Q6)) -> 73.48 | M6: 18.00 | N6: =$M$30 -> 1.00 | O6: =$M$32 -> 0.50 | P6: =$M$33 -> 300.00 | Q6: =$M$34 -> 0.50 | R6: =$M$37 -> 300.00 | S6: 15.00 | T6: =$M$31*K6 -> 15.00 | U6: =$M$29 -> 300.00 | V6: =N6*O6*(M6^(O6-1))*(P6^Q6) -> 2.04 | W6: =$M$31 -> 300.00 | X6: =$M$43*K6 -> 0.03 | Y6: 15.00 | Z6: =$M$43 -> 0.50 | AA6: =AC6*(AB6^(AD6)*AE6^(AF6)) -> 73.48 | AB6: 18.00 | AC6: =$N$30 -> 1.00 | AD6: =$N$32 -> 0.50 | AE6: =$N$33 -> 300.00 | AF6: =$N$34 -> 0.50 | AG6: =$N$37 -> 300.00 | AH6: =$R$30*K6 -> 15.00 | AI6: =$N$31*K6 -> 15.00 | AJ6: =$N$29 -> 300.00 | AK6: =AC6*AD6*(AB6^(AD6-1))*(AE6^AF6) -> 2.04 | AL6: =$N$31 -> 300.00 | AM6: =K6*$N$43 -> 0.03 | AN6: =K6*$N$31 -> 15.00 | AO6: =$N$43 -> 0.50 | AQ6: 0.1 | AR6: =AQ6*$AS$42 -> 0.39 | AS6: =$AR$34+$AS$34*AR6 -> -298.90 | AT6: =$AR$39+$AS$39*AR6+$AV$39*$AW$39 -> 1,883.60 | AU6: =$AR$34+$AS$34*AR6+$AU$34-$AT$34 -> -298.90 | AV6: =$AR$39+$AS$39*AR6+$AV$39*$AW$39+$AT$39-$AU$39 -> 1,883.60 | AW6: 41.80 | AX6: =$AS$42 -> 3.88 | AY6: 0.19 | AZ6: =$AS$44 -> 836.00 | BA6: =$AS$43 -> 836.00 | BB6: =$AS$47 -> 836.00 | BC6: 0.05 | BS6: 0.0525 | BT6: =($BU$33/$BU$30)*BS6 -> 0.05 | BU6: 1.23 | BV6: 2.297912121e+32 | BW6: =BS6*$BT$41 -> 2.625 | BX6: =POWER(($BT$41*BT6),1/BT6) -> 96,253,246.26 | BY6: =BU6-BX6 -> -96,253,245.04 | CA6: 0.2 | CB6: 0.20 | CC6: =$CB$37+($CC$37*CB6) -> 210.00 | CD6: =$CB$41+($CC$41*(CB6)) -> 290.00 | CE6: =MAX($CE$31:$CE$32)*CA6 -> 50 | CF6: 250.00 | CG6: 0.05 | CH6: 40.0 | CI6: =$CG$34/CH6 -> 20.00 | CL6: 0.05 | CM6: =CM5+$CM$27 -> 40 | CN6: 88 | CO6: 253 | CP6: =$CP$5+($CN$27*CM6) -> 88 | CQ6: =$CQ$5+($CO$27*CM6) -> 253 | CR6: =$CR$5+($CN$27*CM6) -> 88 | CS6: =$CS$5+($CO$27*CM6) -> 253 | CT6: 18 | CU6: 150 | CV6: 350 | CW6: 8 | CX6: 18 | CY6: 150 | CZ6: 350 | DA6: 8 | DB6: 18 | DC6: 150 | DD6: 350 | DE6: 8 | DG6: 0.05 | DH6: =DJ6*(DI6^(DK6)*DL6^(DM6)) -> 79.37 | DI6: 21.00 | DJ6: =$DI$30 -> 1.00 | DK6: =$DI$32 -> 0.50 | DL6: =$DI$33 -> 300.00 | DM6: =$DI$34 -> 0.50 | DN6: =$DI$37 -> 350.00 | DO6: =$DN$29*DG6 -> 16.20 | DP6: =$DI$31*DG6 -> 17.50 | DQ6: =$DI$29 -> 324.04 | DS6: =$DI$29 -> 324.04 | DT6: =CM51 -> 1.00 | DU6: =IF(DT6=DT7,DT6,DT7) -> 1.00 | FP6: 0.05 | FQ6: =FQ5+$FR$27 -> 50 | FR6: =(FQ6-$FQ$34)/($FR$34*(1-$FS$34)) -> 225 | FS6: 475 | FT6: 15 | FU6: 350 | FV6: 300 | FW6: 18 | FX6: =(FQ6-$FY$34)/($FZ$34*(1-$GA$34)) -> 225 | FY6: =FP6*$FZ$43 -> 15 | FZ6: =$FZ$42 -> 350 | GA6: =$FZ$43 -> 300 | GB6: =FP6*$FZ$42 -> 18 | GF6: 0.05 | GG6: =GI6*(GH6^(GJ6)*GK6^(GL6)) -> 426.21 | GH6: 18.00 | GI6: 1.00 | GJ6: 0.50 | GK6: =$GH$33 -> 10,092.00 | GL6: 0.50 | GM6: 300.00 | GN6: 87.00 | GO6: 15.00 | GP6: 1,740.00 | GQ6: =$GI$37 -> 300.00 | GR6: =$GM$30*GF6 -> 87.00 | GS6: =$GI$31*GF6 -> 15.00 | GT6: =$GI$29 -> 1,740.00 | GV6: =$GH$29 -> 1,740.00 | GW6: =FP51 -> 1.15 | GY6: =$GI$29 -> 1,740.00 | GZ6: =FP51 -> 1.15 | HB6: =HB5+$HC$27 -> 0.13 | HC6: =HB6*$HB$34 -> 269.0 | HD6: =$HB$34/HC6 -> 7.43 | HF6: =HB6*$HF$34 -> 269.0 | HG6: =$HF$34/HF6 -> 7.43 | HJ6: 0.1 | HK6: =HJ6*$HL$43 -> 0.27 | HL6: =$HK$34+$HL$34*HK6+$HN$39-$HM$39 -> -320.00 | HM6: =$HK$39+$HL$39*HK6+$HO$39-$HP$39 -> 1,120.00 | HN6: =HJ6*$HM$43 -> 0.28 | HO6: =$HK$34+$HL$34*HN6+$HN$40-$HM$40 -> -377.00 | HP6: =$HK$40+$HL$40*HN6+$HO$40-$HP$40 -> 1,117.00 | HQ6: =$HL$43 -> 2.67 | HR6: =($HL$44*HY6) -> 20.00 | HS6: =$HL$43*HY6 -> 0.13 | HT6: =$HL$44 -> 400.00 | HU6: =$HM$43 -> 2.77 | HV6: =($HM$44*HY6) -> 18.50 | HW6: =$HM$43*HY6 -> 0.14 | HX6: =$HM$44 -> 370.00 | HY6: 0.05
A7: 0.1 | B7: 100 | C7: 167 | D7: 300 | E7: 30 | F7: 233 | G7: 300 | H7: 23 | K7: 0.10 | L7: 103.92 | M7: 36.00 | N7: 1.00 | O7: 0.50 | P7: 300.00 | Q7: 0.50 | R7: 300.00 | S7: 30.00 | T7: 30.00 | U7: 300.00 | V7: 1.44 | W7: 300.00 | X7: 0.05 | Y7: 30.00 | Z7: 0.50 | AA7: 103.92 | AB7: 36.00 | AC7: 1.00 | AD7: 0.50 | AE7: 300.00 | AF7: 0.50 | AG7: 300.00 | AH7: 30.00 | AI7: 30.00 | AJ7: 300.00 | AK7: 1.44 | AL7: 300.00 | AM7: 0.05 | AN7: 30.00 | AO7: 0.50 | AQ7: 0.2 | AR7: 0.78 | AS7: -172.80 | AT7: 1,767.20 | AU7: -172.80 | AV7: 1,767.20 | AW7: 83.60 | AX7: 3.88 | AY7: 0.39 | AZ7: 836.00 | BA7: 836.00 | BB7: 836.00 | BC7: 0.1 | BS7: =BS6+$BS$6 -> 0.105 | BT7: 0.11 | BU7: 1.51 | BV7: 1.515886579e+16 | BW7: 5.25 | BX7: =POWER(($BT$41*BT7),1/BT7) -> 7,222,042.38 | BY7: =BU7-BX7 -> -7,222,040.87 | CA7: 0.3 | CB7: 0.30 | CC7: 215.00 | CD7: =$CB$41+($CC$41*(CB7)) -> 285.00 | CE7: 75 | CF7: 250.00 | CG7: 0.1 | CH7: 80.0 | CI7: =$CG$34/CH7 -> 10.00 | CL7: 0.1 | CM7: =CM6+$CM$27 -> 80 | CN7: 96 | CO7: 240 | CP7: 96 | CQ7: 240 | CR7: 96 | CS7: 240 | CT7: 35 | CU7: 150 | CV7: 350 | CW7: 15 | CX7: 35 | CY7: 150 | CZ7: 350 | DA7: 15 | DB7: 35 | DC7: 150 | DD7: 350 | DE7: 15 | DG7: 0.10 | DH7: 112.25 | DI7: 42.00 | DJ7: 1.00 | DK7: 0.50 | DL7: 300.00 | DM7: 0.50 | DN7: 350.00 | DO7: 32.40 | DP7: 35.00 | DQ7: 324.04 | DS7: =$DI$29 -> 324.04 | DT7: =CN51 -> 1.00 | DU7: =IF(DT7=DT8,DT7,DT8) -> 1.00 | DZ7: FUNCIÓN DE PRODUCCIÓN | EG7: FUNCIÓN DE PRODUCCIÓN | EO7: FUNCIÓN ORIGINAL | EP7: CHOQUE | EQ7: VARIACIÓN ABS | ER7: VARIACIÓN REL | EU7: FUNCIÓN DE PRODUCCIÓN | FB7: FUNCIÓN DE PRODUCCIÓN | FJ7: M | FK7: G | FL7: T | FM7: TMg | FP7: 0.1 | FQ7: 100 | FR7: 250 | FS7: 450 | FT7: 30 | FU7: 350 | FV7: 300 | FW7: 35 | FX7: 250 | FY7: 30 | FZ7: 350 | GA7: 300 | GB7: 35 | GF7: 0.10 | GG7: 602.75 | GH7: 36.00 | GI7: 1.00 | GJ7: 0.50 | GK7: 10,092.00 | GL7: 0.50 | GM7: 300.00 | GN7: 174.00 | GO7: 30.00 | GP7: 1,740.00 | GQ7: 300.00 | GR7: 174.00 | GS7: 30.00 | GT7: 1,740.00 | GV7: =$GH$29 -> 1,740.00 | GW7: =FQ51 -> 1.44 | GY7: =$GI$29 -> 1,740.00 | GZ7: =FQ51 -> 1.44 | HB7: 0.22 | HC7: =HB7*$HB$34 -> 438.0 | HD7: =$HB$34/HC7 -> 4.57 | HF7: 438.0 | HG7: 4.57 | HJ7: 0.2 | HK7: 0.53 | HL7: -240.00 | HM7: =$HK$39+$HL$39*HK7+$HO$39-$HP$39 -> 1,040.00 | HN7: 0.55 | HO7: -294.00 | HP7: 1,034.00 | HQ7: 2.67 | HR7: 40.00 | HS7: 0.27 | HT7: 400.00 | HU7: 2.77 | HV7: 37.00 | HW7: 0.28 | HX7: 370.00 | HY7: 0.1
A8: 0.15 | B8: 150 | C8: 183 | D8: 283 | E8: 45 | F8: 233 | G8: 300 | H8: 35 | K8: 0.15 | L8: 127.28 | M8: 54.00 | N8: 1.00 | O8: 0.50 | P8: 300.00 | Q8: 0.50 | R8: 300.00 | S8: 45.00 | T8: 45.00 | U8: 300.00 | V8: 1.18 | W8: 300.00 | X8: 0.08 | Y8: 45.00 | Z8: 0.50 | AA8: 127.28 | AB8: 54.00 | AC8: 1.00 | AD8: 0.50 | AE8: 300.00 | AF8: 0.50 | AG8: 300.00 | AH8: 45.00 | AI8: 45.00 | AJ8: 300.00 | AK8: 1.18 | AL8: 300.00 | AM8: 0.08 | AN8: 45.00 | AO8: 0.50 | AQ8: 0.3 | AR8: 1.16 | AS8: -46.70 | AT8: 1,650.80 | AU8: -46.70 | AV8: 1,650.80 | AW8: 125.40 | AX8: 3.88 | AY8: 0.58 | AZ8: 836.00 | BA8: 836.00 | BB8: 836.00 | BC8: 0.15 | BS8: =BS7+$BS$6 -> 0.1575 | BT8: 0.16 | BU8: 1.85 | BV8: 6.12507116e+10 | BW8: 7.875 | BX8: =POWER(($BT$41*BT8),1/BT8) -> 490,320.17 | BY8: -490,318.32 | CA8: 0.4 | CB8: 0.40 | CC8: 220.00 | CD8: 280.00 | CE8: 100 | CF8: 250.00 | CG8: 0.15 | CH8: 120.0 | CI8: 6.67 | CL8: 0.15 | CM8: 120 | CN8: 104 | CO8: 227 | CP8: 104 | CQ8: 227 | CR8: 104 | CS8: 227 | CT8: 53 | CU8: 150 | CV8: 350 | CW8: 23 | CX8: 53 | CY8: 150 | CZ8: 350 | DA8: 23 | DB8: 53 | DC8: 150 | DD8: 350 | DE8: 23 | DG8: 0.15 | DH8: 137.48 | DI8: 63.00 | DJ8: 1.00 | DK8: 0.50 | DL8: 300.00 | DM8: 0.50 | DN8: 350.00 | DO8: 48.61 | DP8: 52.50 | DQ8: 324.04 | DS8: =$DI$29 -> 324.04 | DT8: =CO51 -> 1.00 | DZ8: Y | EA8: A | EB8: N | EC8: a | ED8: K | EE8: b | EG8: Y | EH8: A | EI8: N | EJ8: a | EK8: K | EL8: b | EU8: Y | EV8: A | EW8: N | EX8: a | EY8: K | EZ8: b | FB8: Y | FC8: A | FD8: N | FE8: a | FF8: K | FG8: b | FJ8: =EV21+(EV21*FJ9) -> 200.00 | FK8: =EV33+(EV33*FK9) -> 260.00 | FL8: =EX33+(EX33*FL9) -> 200.00 | FM8: =EY15+FM9 -> 0 | FP8: 0.15 | FQ8: 150 | FR8: 275 | FS8: 425 | FT8: 45 | FU8: 350 | FV8: 300 | FW8: 53 | FX8: 275 | FY8: 45 | FZ8: 350 | GA8: 300 | GB8: 53 | GF8: 0.15 | GG8: 738.22 | GH8: 54.00 | GI8: 1.00 | GJ8: 0.50 | GK8: 10,092.00 | GL8: 0.50 | GM8: 300.00 | GN8: 261.00 | GO8: 45.00 | GP8: 1,740.00 | GQ8: 300.00 | GR8: 261.00 | GS8: 45.00 | GT8: 1,740.00 | GV8: =$GH$29 -> 1,740.00 | GW8: =FR51 -> 1.72 | GY8: =$GI$29 -> 1,740.00 | GZ8: =FR51 -> 1.72 | HB8: 0.30 | HC8: 607.0 | HD8: 3.29 | HF8: 607.0 | HG8: 3.29 | HJ8: 0.3 | HK8: 0.80 | HL8: -160.00 | HM8: 960.00 | HN8: 0.83 | HO8: -211.00 | HP8: 951.00 | HQ8: 2.67 | HR8: 60.00 | HS8: 0.40 | HT8: 400.00 | HU8: 2.77 | HV8: 55.50 | HW8: 0.42 | HX8: 370.00 | HY8: 0.15
A9: 0.2 | B9: 200 | C9: 200 | D9: 267 | E9: 60 | F9: 233 | G9: 300 | H9: 47 | K9: 0.20 | L9: 146.97 | M9: 72.00 | N9: 1.00 | O9: 0.50 | P9: 300.00 | Q9: 0.50 | R9: 300.00 | S9: 60.00 | T9: 60.00 | U9: 300.00 | V9: 1.02 | W9: 300.00 | X9: 0.10 | Y9: 60.00 | Z9: 0.50 | AA9: 146.97 | AB9: 72.00 | AC9: 1.00 | AD9: 0.50 | AE9: 300.00 | AF9: 0.50 | AG9: 300.00 | AH9: 60.00 | AI9: 60.00 | AJ9: 300.00 | AK9: 1.02 | AL9: 300.00 | AM9: 0.10 | AN9: 60.00 | AO9: 0.50 | AQ9: 0.4 | AR9: 1.55 | AS9: 79.40 | AT9: 1,534.40 | AU9: 79.40 | AV9: 1,534.40 | AW9: 167.20 | AX9: 3.88 | AY9: 0.78 | AZ9: 836.00 | BA9: 836.00 | BB9: 836.00 | BC9: 0.2 | BS9: 0.21 | BT9: 0.21 | BU9: 2.27 | BV9: 123121345.8 | BW9: 10.5 | BX9: 72,913.20 | BY9: -72,910.93 | CA9: 0.5 | CB9: 0.50 | CC9: 225.00 | CD9: 275.00 | CE9: 125 | CF9: 250.00 | CG9: 0.2 | CH9: 160.0 | CI9: 5.00 | CL9: 0.2 | CM9: 160 | CN9: 112 | CO9: 213 | CP9: 112 | CQ9: 213 | CR9: 112 | CS9: 213 | CT9: 70 | CU9: 150 | CV9: 350 | CW9: 30 | CX9: 70 | CY9: 150 | CZ9: 350 | DA9: 30 | DB9: 70 | DC9: 150 | DD9: 350 | DE9: 30 | DG9: 0.20 | DH9: 158.75 | DI9: 84.00 | DJ9: 1.00 | DK9: 0.50 | DL9: 300.00 | DM9: 0.50 | DN9: 350.00 | DO9: 64.81 | DP9: 70.00 | DQ9: 324.04 | DS9: =$DI$29 -> 324.04 | DT9: =IF(DU6=DU7,DT7,(DT8*1.3)) -> 1.00 | DZ9: =EA9*(EB9^EC9)*(ED9^EE9) -> 300.00 | EA9: =mc_sistema_ampliado!C7 -> 1.00 | EB9: =DZ13 -> 300.00 | EC9: =mc_sistema_ampliado!E7 -> 0.50 | ED9: =mc_sistema_ampliado!F7 -> 300.00 | EE9: =mc_sistema_ampliado!G7 -> 0.50 | EG9: =EH9*(EI9^EJ9)*(EK9^EL9) -> 300.00 | EH9: =EA9 -> 1.00 | EI9: =EG13 -> 300.00 | EJ9: =EC9 -> 0.50 | EK9: =ED9 -> 300.00 | EL9: =EE9 -> 0.50 | EN9: Y | EO9: =DZ9 -> 300.00 | EP9: =EG9 -> 300.00 | EQ9: =EP9-EO9 -> 0 | ER9: =(EP9/EO9)-1 -> 0 | EU9: =EV9*(EW9^EX9)*(EY9^EZ9) -> 1,740.00 | EV9: =mc_sistema_graficas!A8 -> 1.00 | EW9: =EU13 -> 300.00 | EX9: =mc_sistema_graficas!C8 -> 0.50 | EY9: =mc_sistema_graficas!D8 -> 10,092.00 | EZ9: =mc_sistema_graficas!E8 -> 0.50 | FB9: =FC9*(FD9^FE9)*(FF9^FG9) -> 1,740.00 | FC9: =EV9 -> 1.00 | FD9: =FB13 -> 300.00 | FE9: =EX9 -> 0.50 | FF9: =EY9 -> 10,092.00 | FG9: =EZ9 -> 0.50 | FJ9: =mc_sistema_graficas!L3 -> 0.00% | FK9: =mc_sistema_graficas!M3 -> 30.00% | FL9: =mc_sistema_graficas!N3 -> 0.00% | FM9: =mc_sistema_graficas!O3 -> 0.00% | FP9: 0.2 | FQ9: 200 | FR9: 300 | FS9: 400 | FT9: 60 | FU9: 350 | FV9: 300 | FW9: 70 | FX9: 300 | FY9: 60 | FZ9: 350 | GA9: 300 | GB9: 70 | GF9: 0.20 | GG9: 852.42 | GH9: 72.00 | GI9: 1.00 | GJ9: 0.50 | GK9: 10,092.00 | GL9: 0.50 | GM9: 300.00 | GN9: 348.00 | GO9: 60.00 | GP9: 1,740.00 | GQ9: 300.00 | GR9: 348.00 | GS9: 60.00 | GT9: 1,740.00 | GV9: =$GH$29 -> 1,740.00 | GW9: =MAX(HD5:HD25,HG5:HG25) -> 20.00 | GY9: =$GI$29 -> 1,740.00 | GZ9: =MAX(HD5:HD25,HG5:HG25) -> 20.00 | HB9: 0.39 | HC9: 776.0 | HD9: 2.58 | HF9: 776.0 | HG9: 2.58 | HJ9: 0.4 | HK9: 1.07 | HL9: -80.00 | HM9: 880.00 | HN9: 1.11 | HO9: -128.00 | HP9: 868.00 | HQ9: 2.67 | HR9: 80.00 | HS9: 0.53 | HT9: 400.00 | HU9: 2.77 | HV9: 74.00 | HW9: 0.55 | HX9: 370.00 | HY9: 0.2
A10: 0.25 | B10: 250 | C10: 217 | D10: 250 | E10: 75 | F10: 233 | G10: 300 | H10: 58 | K10: 0.25 | L10: 164.32 | M10: 90.00 | N10: 1.00 | O10: 0.50 | P10: 300.00 | Q10: 0.50 | R10: 300.00 | S10: 75.00 | T10: 75.00 | U10: 300.00 | V10: 0.91 | W10: 300.00 | X10: 0.13 | Y10: 75.00 | Z10: 0.50 | AA10: 164.32 | AB10: 90.00 | AC10: 1.00 | AD10: 0.50 | AE10: 300.00 | AF10: 0.50 | AG10: 300.00 | AH10: 75.00 | AI10: 75.00 | AJ10: 300.00 | AK10: 0.91 | AL10: 300.00 | AM10: 0.13 | AN10: 75.00 | AO10: 0.50 | AQ10: 0.5 | AR10: 1.94 | AS10: 205.50 | AT10: 1,418.00 | AU10: 205.50 | AV10: 1,418.00 | AW10: 209.00 | AX10: 3.88 | AY10: 0.97 | AZ10: 836.00 | BA10: 836.00 | BB10: 836.00 | BC10: 0.25 | BS10: 0.2625 | BT10: 0.26 | BU10: 2.79 | BV10: 2966652.535 | BW10: 13.125 | BX10: 18,172.97 | BY10: -18,170.18 | CA10: 0.6 | CB10: 0.60 | CC10: 230.00 | CD10: 270.00 | CE10: 150 | CF10: 250.00 | CG10: 0.25 | CH10: 200.0 | CI10: 4.00 | CL10: 0.25 | CM10: 200 | CN10: 120 | CO10: 200 | CP10: 120 | CQ10: 200 | CR10: 120 | CS10: 200 | CT10: 88 | CU10: 150 | CV10: 350 | CW10: 38 | CX10: 88 | CY10: 150 | CZ10: 350 | DA10: 38 | DB10: 88 | DC10: 150 | DD10: 350 | DE10: 38 | DG10: 0.25 | DH10: 177.48 | DI10: 105.00 | DJ10: 1.00 | DK10: 0.50 | DL10: 300.00 | DM10: 0.50 | DN10: 350.00 | DO10: 81.01 | DP10: 87.50 | DQ10: 324.04 | EN10: N | EO10: =EB9 -> 300.00 | EP10: =EI9 -> 300.00 | EQ10: 0 | ER10: =(EP10/EO10)-1 -> 0 | FP10: 0.25 | FQ10: 250 | FR10: 325 | FS10: 375 | FT10: 75 | FU10: 350 | FV10: 300 | FW10: 88 | FX10: 325 | FY10: 75 | FZ10: 350 | GA10: 300 | GB10: 88 | GF10: 0.25 | GG10: 953.04 | GH10: 90.00 | GI10: 1.00 | GJ10: 0.50 | GK10: 10,092.00 | GL10: 0.50 | GM10: 300.00 | GN10: 435.00 | GO10: 75.00 | GP10: 1,740.00 | GQ10: 300.00 | GR10: 435.00 | GS10: 75.00 | GT10: 1,740.00 | HB10: 0.47 | HC10: 945.0 | HD10: 2.12 | HF10: 945.0 | HG10: 2.12 | HJ10: 0.5 | HK10: 1.33 | HL10: 0.00 | HM10: 800.00 | HN10: 1.38 | HO10: -45.00 | HP10: 785.00 | HQ10: 2.67 | HR10: 100.00 | HS10: 0.67 | HT10: 400.00 | HU10: 2.77 | HV10: 92.50 | HW10: 0.69 | HX10: 370.00 | HY10: 0.25
A11: 0.3 | B11: 300 | C11: 233 | D11: 233 | E11: 90 | F11: 233 | G11: 300 | H11: 70 | K11: 0.30 | L11: 180.00 | M11: 108.00 | N11: 1.00 | O11: 0.50 | P11: 300.00 | Q11: 0.50 | R11: 300.00 | S11: 90.00 | T11: 90.00 | U11: 300.00 | V11: 0.83 | W11: 300.00 | X11: 0.15 | Y11: 90.00 | Z11: 0.50 | AA11: 180.00 | AB11: 108.00 | AC11: 1.00 | AD11: 0.50 | AE11: 300.00 | AF11: 0.50 | AG11: 300.00 | AH11: 90.00 | AI11: 90.00 | AJ11: 300.00 | AK11: 0.83 | AL11: 300.00 | AM11: 0.15 | AN11: 90.00 | AO11: 0.50 | AQ11: 0.6 | AR11: 2.33 | AS11: 331.60 | AT11: 1,301.60 | AU11: 331.60 | AV11: 1,301.60 | AW11: 250.80 | AX11: 3.88 | AY11: 1.16 | AZ11: 836.00 | BA11: 836.00 | BB11: 836.00 | BC11: 0.3 | BS11: 0.315 | BT11: 0.32 | BU11: 3.43 | BV11: 247488.8111 | BW11: 15.75 | BX11: 6,322.53 | BY11: -6,319.10 | CA11: 0.7 | CB11: 0.70 | CC11: 235.00 | CD11: 265.00 | CE11: 175 | CF11: 250.00 | CG11: 0.3 | CH11: 240.0 | CI11: 3.33 | CL11: 0.3 | CM11: 240 | CN11: 128 | CO11: 187 | CP11: 128 | CQ11: 187 | CR11: 128 | CS11: 187 | CT11: 105 | CU11: 150 | CV11: 350 | CW11: 45 | CX11: 105 | CY11: 150 | CZ11: 350 | DA11: 45 | DB11: 105 | DC11: 150 | DD11: 350 | DE11: 45 | DG11: 0.30 | DH11: 194.42 | DI11: 126.00 | DJ11: 1.00 | DK11: 0.50 | DL11: 300.00 | DM11: 0.50 | DN11: 350.00 | DO11: 97.21 | DP11: 105.00 | DQ11: 324.04 | DS11: Y | DT11: X1 LINE | DU11: X2 LINE | DV11: X3 LINE | DW11: XLINE FALSE | DZ11: FUNCIÓN DE OFERTA DE TRABAJO | EG11: FUNCIÓN DE OFERTA DE TRABAJO | EN11: W/P | EO11: =EC13 -> 350.00 | EP11: =EJ13 -> 350.00 | EQ11: 0 | ER11: =(EP11/EO11)-1 -> 0 | EU11: FUNCIÓN DE OFERTA DE TRABAJO | FB11: FUNCIÓN DE OFERTA DE TRABAJO | FJ11: FUNCIÓN ORIGINAL | FK11: CHOQUE | FL11: VARIACIÓN ABS | FM11: VARIACIÓN REL | FP11: 0.3 | FQ11: 300 | FR11: 350 | FS11: 350 | FT11: 90 | FU11: 350 | FV11: 300 | FW11: 105 | FX11: 350 | FY11: 90 | FZ11: 350 | GA11: 300 | GB11: 105 | GF11: 0.30 | GG11: 1,044.00 | GH11: 108.00 | GI11: 1.00 | GJ11: 0.50 | GK11: 10,092.00 | GL11: 0.50 | GM11: 300.00 | GN11: 522.00 | GO11: 90.00 | GP11: 1,740.00 | GQ11: 300.00 | GR11: 522.00 | GS11: 90.00 | GT11: 1,740.00 | GV11: Y | GW11: X1 LINE | GY11: Y | GZ11: X2 LINE | HB11: 0.56 | HC11: 1,114.0 | HD11: 1.80 | HF11: 1,114.0 | HG11: 1.80 | HJ11: 0.6 | HK11: 1.60 | HL11: 80.00 | HM11: 720.00 | HN11: 1.66 | HO11: 38.00 | HP11: 702.00 | HQ11: 2.67 | HR11: 120.00 | HS11: 0.80 | HT11: 400.00 | HU11: 2.77 | HV11: 111.00 | HW11: 0.83 | HX11: 370.00 | HY11: 0.3
A12: 0.35 | B12: 350 | C12: 250 | D12: 217 | E12: 105 | F12: 233 | G12: 300 | H12: 82 | K12: 0.35 | L12: 194.42 | M12: 126.00 | N12: 1.00 | O12: 0.50 | P12: 300.00 | Q12: 0.50 | R12: 300.00 | S12: 105.00 | T12: 105.00 | U12: 300.00 | V12: 0.77 | W12: 300.00 | X12: 0.18 | Y12: 105.00 | Z12: 0.50 | AA12: 194.42 | AB12: 126.00 | AC12: 1.00 | AD12: 0.50 | AE12: 300.00 | AF12: 0.50 | AG12: 300.00 | AH12: 105.00 | AI12: 105.00 | AJ12: 300.00 | AK12: 0.77 | AL12: 300.00 | AM12: 0.18 | AN12: 105.00 | AO12: 0.50 | AQ12: 0.7 | AR12: 2.72 | AS12: 457.70 | AT12: 1,185.20 | AU12: 457.70 | AV12: 1,185.20 | AW12: 292.60 | AX12: 3.88 | AY12: 1.36 | AZ12: 836.00 | BA12: 836.00 | BB12: 836.00 | BC12: 0.35 | BS12: 0.3675 | BT12: 0.37 | BU12: 4.21 | BV12: 41980.50232 | BW12: 18.375 | BX12: 2,754.70 | BY12: -2,750.49 | CA12: 0.8 | CB12: 0.80 | CC12: 240.00 | CD12: 260.00 | CE12: 200 | CF12: 250.00 | CG12: 0.35 | CH12: 280.0 | CI12: 2.86 | CL12: 0.35 | CM12: 280 | CN12: 136 | CO12: 173 | CP12: 136 | CQ12: 173 | CR12: 136 | CS12: 173 | CT12: 123 | CU12: 150 | CV12: 350 | CW12: 53 | CX12: 123 | CY12: 150 | CZ12: 350 | DA12: 53 | DB12: 123 | DC12: 150 | DD12: 350 | DE12: 53 | DG12: 0.35 | DH12: 210.00 | DI12: 147.00 | DJ12: 1.00 | DK12: 0.50 | DL12: 300.00 | DM12: 0.50 | DN12: 350.00 | DO12: 113.41 | DP12: 122.50 | DQ12: 324.04 | DS12: 0 | DT12: =$DT$6 -> 1.00 | DU12: =$DT$7 -> 1.00 | DV12: =$DT$8 -> 1.00 | DW12: =$DT$9 -> 1.00 | DZ12: Ns | EA12: -a0 | EB12: a1 | EC12: W/P | ED12: TMg | EG12: Ns | EH12: -a0 | EI12: a1 | EJ12: W/P | EK12: TMg | EN12: r | EO12: =EC25 -> 1.48 | EP12: =EJ25 -> 1.48 | EQ12: 0 | EU12: Ns | EV12: -a0 | EW12: a1 | EX12: W/P | EY12: W/P neto | FB12: Ns | FC12: -a0 | FD12: a1 | FE12: W/P | FF12: W/P neto trab | FP12: 0.35 | FQ12: 350 | FR12: 375 | FS12: 325 | FT12: 105 | FU12: 350 | FV12: 300 | FW12: 123 | FX12: 375 | FY12: 105 | FZ12: 350 | GA12: 300 | GB12: 123 | GF12: 0.35 | GG12: 1,127.65 | GH12: 126.00 | GI12: 1.00 | GJ12: 0.50 | GK12: 10,092.00 | GL12: 0.50 | GM12: 300.00 | GN12: 609.00 | GO12: 105.00 | GP12: 1,740.00 | GQ12: 300.00 | GR12: 609.00 | GS12: 105.00 | GT12: 1,740.00 | GV12: 0 | GW12: =$GW$6 -> 1.15 | GY12: 0 | GZ12: =FB21 -> 1.15 | HB12: 0.64 | HC12: 1,283.0 | HD12: 1.56 | HF12: 1,283.0 | HG12: 1.56 | HJ12: 0.7 | HK12: 1.87 | HL12: 160.00 | HM12: 640.00 | HN12: 1.94 | HO12: 121.00 | HP12: 619.00 | HQ12: 2.67 | HR12: 140.00 | HS12: 0.93 | HT12: 400.00 | HU12: 2.77 | HV12: 129.50 | HW12: 0.97 | HX12: 370.00 | HY12: 0.35
A13: 0.4 | B13: 400 | C13: 267 | D13: 200 | E13: 120 | F13: 233 | G13: 300 | H13: 93 | K13: 0.40 | L13: 207.85 | M13: 144.00 | N13: 1.00 | O13: 0.50 | P13: 300.00 | Q13: 0.50 | R13: 300.00 | S13: 120.00 | T13: 120.00 | U13: 300.00 | V13: 0.72 | W13: 300.00 | X13: 0.20 | Y13: 120.00 | Z13: 0.50 | AA13: 207.85 | AB13: 144.00 | AC13: 1.00 | AD13: 0.50 | AE13: 300.00 | AF13: 0.50 | AG13: 300.00 | AH13: 120.00 | AI13: 120.00 | AJ13: 300.00 | AK13: 0.72 | AL13: 300.00 | AM13: 0.20 | AN13: 120.00 | AO13: 0.50 | AQ13: 0.8 | AR13: 3.10 | AS13: 583.80 | AT13: 1,068.80 | AU13: 583.80 | AV13: 1,068.80 | AW13: 334.40 | AX13: 3.88 | AY13: 1.55 | AZ13: 836.00 | BA13: 836.00 | BB13: 836.00 | BC13: 0.4 | BS13: 0.42 | BT13: 0.42 | BU13: =$BT$37^(BT13) -> 5.17 | BV13: 11096.00585 | BW13: 21 | BX13: 1,406.50 | BY13: -1,401.33 | CA13: 0.9 | CB13: 0.90 | CC13: 245.00 | CD13: 255.00 | CE13: 225 | CF13: 250.00 | CG13: 0.4 | CH13: 320.0 | CI13: 2.50 | CL13: 0.4 | CM13: 320 | CN13: 144 | CO13: 160 | CP13: 144 | CQ13: 160 | CR13: 144 | CS13: 160 | CT13: 140 | CU13: 150 | CV13: 350 | CW13: 60 | CX13: 140 | CY13: 150 | CZ13: 350 | DA13: 60 | DB13: 140 | DC13: 150 | DD13: 350 | DE13: 60 | DG13: 0.40 | DH13: 224.50 | DI13: 168.00 | DJ13: 1.00 | DK13: 0.50 | DL13: 300.00 | DM13: 0.50 | DN13: 350.00 | DO13: 129.61 | DP13: 140.00 | DQ13: 324.04 | DS13: =DS6 -> 324.04 | DT13: =$DT$6 -> 1.00 | DU13: =$DT$7 -> 1.00 | DV13: =$DT$8 -> 1.00 | DW13: =$DT$9 -> 1.00 | DZ13: =EA13+(EB13*EC13*(1-ED13)) -> 300.0 | EA13: =mc_sistema_ampliado!C11 -> (400.0) | EB13: =mc_sistema_ampliado!D11 -> 2.0 | EC13: =(EA13-EA17)/(EB17-(EB13*(1-ED13))) -> 350.0 | ED13: =mc_sistema_ampliado!F11 -> 0.00 | EG13: =EH13+(EI13*EJ13*(1-EK13)) -> 300.0 | EH13: =EA13 -> (400.0) | EI13: =EB13 -> 2.0 | EJ13: =(EH13-EH17)/(EI17-(EI13*(1-EK13))) -> 350.0 | EK13: =EQ28 -> 0.00 | EN13: S privado | EO13: =DZ25 -> 56.00 | EP13: =EG25 -> 56.00 | EQ13: 0 | ER13: =(EP13/EO13)-1 -> 0 | EU13: =EV13+(EW13*(EX13*(1-EY15))) -> 300.0 | EV13: =mc_sistema_graficas!B11 -> (400.0) | EW13: =mc_sistema_graficas!C11 -> 2.0 | EX13: =(EV13-EV17)/(EW17-(EW13*(1-EY15))) -> 350.0 | EY13: =EX13-(EX13*EY15) -> 350.0 | FB13: =FC13+(FD13*(FE13*(1-FF15))) -> 300.0 | FC13: =EV13 -> (400.0) | FD13: =EW13 -> 2.0 | FE13: =(FC13-FC17)/(FD17-(FD13*(1-FF15))) -> 350.0 | FF13: =FE13-(FE13*FF15) -> 350.0 | FI13: Y | FJ13: =EU9 -> 1,740.00 | FK13: =FB9 -> 1,740.00 | FL13: =FK13-FJ13 -> 0 | FM13: =(FK13/FJ13)-1 -> 0.00% | FP13: 0.4 | FQ13: 400 | FR13: 400 | FS13: 300 | FT13: 120 | FU13: 350 | FV13: 300 | FW13: 140 | FX13: 400 | FY13: 120 | FZ13: 350 | GA13: 300 | GB13: 140 | GF13: 0.40 | GG13: 1,205.51 | GH13: 144.00 | GI13: 1.00 | GJ13: 0.50 | GK13: 10,092.00 | GL13: 0.50 | GM13: 300.00 | GN13: 696.00 | GO13: 120.00 | GP13: 1,740.00 | GQ13: 300.00 | GR13: 696.00 | GS13: 120.00 | GT13: 1,740.00 | GV13: =GV6 -> 1,740.00 | GW13: =$GW$6 -> 1.15 | GY13: =GY6 -> 1,740.00 | GZ13: =FB21 -> 1.15 | HB13: 0.73 | HC13: 1,452.0 | HD13: 1.38 | HF13: 1,452.0 | HG13: 1.38 | HJ13: 0.8 | HK13: 2.13 | HL13: 240.00 | HM13: 560.00 | HN13: 2.21 | HO13: 204.00 | HP13: 536.00 | HQ13: 2.67 | HR13: 160.00 | HS13: 1.07 | HT13: 400.00 | HU13: 2.77 | HV13: 148.00 | HW13: 1.11 | HX13: 370.00 | HY13: 0.4
A14: 0.45 | B14: 450 | C14: 283 | D14: 183 | E14: 135 | F14: 233 | G14: 300 | H14: 105 | K14: 0.45 | L14: 220.45 | M14: 162.00 | N14: 1.00 | O14: 0.50 | P14: 300.00 | Q14: 0.50 | R14: 300.00 | S14: 135.00 | T14: 135.00 | U14: 300.00 | V14: 0.68 | W14: 300.00 | X14: 0.23 | Y14: 135.00 | Z14: 0.50 | AA14: 220.45 | AB14: 162.00 | AC14: 1.00 | AD14: 0.50 | AE14: 300.00 | AF14: 0.50 | AG14: 300.00 | AH14: 135.00 | AI14: 135.00 | AJ14: 300.00 | AK14: 0.68 | AL14: 300.00 | AM14: 0.23 | AN14: 135.00 | AO14: 0.50 | AQ14: 0.9 | AR14: 3.49 | AS14: 709.90 | AT14: 952.40 | AU14: 709.90 | AV14: 952.40 | AW14: 376.20 | AX14: 3.88 | AY14: 1.75 | AZ14: 836.00 | BA14: 836.00 | BB14: 836.00 | BC14: 0.45 | BS14: 0.4725 | BT14: 0.47 | BU14: 6.35 | BV14: 3941.882847 | BW14: 23.625 | BX14: 806.50 | BY14: -800.16 | CA14: 1 | CB14: 1.00 | CC14: 250.00 | CD14: 250.00 | CE14: 250 | CF14: 250.00 | CG14: 0.45 | CH14: 360.0 | CI14: 2.22 | CL14: 0.45 | CM14: 360 | CN14: 152 | CO14: 147 | CP14: 152 | CQ14: 147 | CR14: 152 | CS14: 147 | CT14: 158 | CU14: 150 | CV14: 350 | CW14: 68 | CX14: 158 | CY14: 150 | CZ14: 350 | DA14: 68 | DB14: 158 | DC14: 150 | DD14: 350 | DE14: 68 | DG14: 0.45 | DH14: 238.12 | DI14: 189.00 | DJ14: 1.00 | DK14: 0.50 | DL14: 300.00 | DM14: 0.50 | DN14: 350.00 | DO14: 145.82 | DP14: 157.50 | DQ14: 324.04 | DS14: =DS13*2 -> 648.0740698 | DW14: =$DT$9 -> 1.00 | EN14: G | EO14: =DZ33 -> 150.00 | EP14: =EH33 -> 150.00 | EQ14: 0 | ER14: =(EP14/EO14)-1 -> 0 | EY14: TMg | FF14: TMg | FI14: N | FJ14: =EW9 -> 300.00 | FK14: =FD9 -> 300.00 | FL14: 0 | FM14: =(FK14/FJ14)-1 -> 0.0% | FP14: 0.45 | FQ14: 450 | FR14: 425 | FS14: 275 | FT14: 135 | FU14: 350 | FV14: 300 | FW14: 158 | FX14: 425 | FY14: 135 | FZ14: 350 | GA14: 300 | GB14: 158 | GF14: 0.45 | GG14: 1,278.63 | GH14: 162.00 | GI14: 1.00 | GJ14: 0.50 | GK14: 10,092.00 | GL14: 0.50 | GM14: 300.00 | GN14: 783.00 | GO14: 135.00 | GP14: 1,740.00 | GQ14: 300.00 | GR14: 783.00 | GS14: 135.00 | GT14: 1,740.00 | HB14: 0.81 | HC14: 1,621.0 | HD14: 1.23 | HF14: 1,621.0 | HG14: 1.23 | HJ14: 0.9 | HK14: 2.40 | HL14: 320.00 | HM14: 480.00 | HN14: 2.49 | HO14: 287.00 | HP14: 453.00 | HQ14: 2.67 | HR14: 180.00 | HS14: 1.20 | HT14: 400.00 | HU14: 2.77 | HV14: 166.50 | HW14: 1.25 | HX14: 370.00 | HY14: 0.45
A15: 0.5 | B15: 500 | C15: 300 | D15: 167 | E15: 150 | F15: 233 | G15: 300 | H15: 117 | K15: 0.50 | L15: 232.38 | M15: 180.00 | N15: 1.00 | O15: 0.50 | P15: 300.00 | Q15: 0.50 | R15: 300.00 | S15: 150.00 | T15: 150.00 | U15: 300.00 | V15: 0.65 | W15: 300.00 | X15: 0.25 | Y15: 150.00 | Z15: 0.50 | AA15: 232.38 | AB15: 180.00 | AC15: 1.00 | AD15: 0.50 | AE15: 300.00 | AF15: 0.50 | AG15: 300.00 | AH15: 150.00 | AI15: 150.00 | AJ15: 300.00 | AK15: 0.65 | AL15: 300.00 | AM15: 0.25 | AN15: 150.00 | AO15: 0.50 | AQ15: 1 | AR15: 3.88 | AS15: 836.00 | AT15: 836.00 | AU15: 836.00 | AV15: 836.00 | AW15: 418.00 | AX15: 3.88 | AY15: 1.94 | AZ15: 836.00 | BA15: 836.00 | BB15: 836.00 | BC15: 0.5 | BS15: 0.525 | BT15: 0.53 | BU15: 7.80 | BV15: 1722.397322 | BW15: 26.25 | BX15: 504.78 | BY15: -496.98 | CA15: 1.1 | CB15: 1.10 | CC15: 255.00 | CD15: 245.00 | CE15: =$CE$30 -> 1.00 | CF15: 0 | CG15: 0.5 | CH15: 400.0 | CI15: 2.00 | CL15: 0.5 | CM15: 400 | CN15: 160 | CO15: 133 | CP15: 160 | CQ15: 133 | CR15: 160 | CS15: 133 | CT15: 175 | CU15: 150 | CV15: 350 | CW15: 75 | CX15: 175 | CY15: 150 | CZ15: 350 | DA15: 75 | DB15: 175 | DC15: 150 | DD15: 350 | DE15: 75 | DG15: 0.50 | DH15: 251.00 | DI15: 210.00 | DJ15: 1.00 | DK15: 0.50 | DL15: 300.00 | DM15: 0.50 | DN15: 350.00 | DO15: 162.02 | DP15: 175.00 | DQ15: 324.04 | DZ15: FUNCIÓN DE DEMANDA DE TRABAJO | EG15: FUNCIÓN DE DEMANDA DE TRABAJO | EN15: T | EO15: =EC33 -> 150.00 | EP15: =EK33 -> 150.00 | EQ15: 0 | ER15: =(EP15/EO15)-1 -> 0 | EU15: FUNCIÓN DE DEMANDA DE TRABAJO | EY15: =mc_sistema_graficas!E11 -> 0.00 | FB15: FUNCIÓN DE DEMANDA DE TRABAJO | FF15: =FM8 -> 0.00 | FI15: W/P trab | FJ15: =EY13 -> 350.00 | FK15: =FF13 -> 350.00 | FL15: 0 | FM15: =(FK15/FJ15)-1 -> 0.0% | FP15: 0.5 | FQ15: 500 | FR15: 450 | FS15: 250 | FT15: 150 | FU15: 350 | FV15: 300 | FW15: 175 | FX15: 450 | FY15: 150 | FZ15: 350 | GA15: 300 | GB15: 175 | GF15: 0.50 | GG15: 1,347.80 | GH15: 180.00 | GI15: 1.00 | GJ15: 0.50 | GK15: 10,092.00 | GL15: 0.50 | GM15: 300.00 | GN15: 870.00 | GO15: 150.00 | GP15: 1,740.00 | GQ15: 300.00 | GR15: 870.00 | GS15: 150.00 | GT15: 1,740.00 | HB15: 0.90 | HC15: 1,790.0 | HD15: 1.12 | HF15: 1,790.0 | HG15: 1.12 | HJ15: 1 | HK15: 2.67 | HL15: 400.00 | HM15: 400.00 | HN15: 2.77 | HO15: 370.00 | HP15: 370.00 | HQ15: 2.67 | HR15: 200.00 | HS15: 1.33 | HT15: 400.00 | HU15: 2.77 | HV15: 185.00 | HW15: 1.38 | HX15: 370.00 | HY15: 0.5
A16: 0.55 | B16: 550 | C16: 317 | D16: 150 | E16: 165 | F16: 233 | G16: 300 | H16: 128 | K16: 0.55 | L16: 243.72 | M16: 198.00 | N16: 1.00 | O16: 0.50 | P16: 300.00 | Q16: 0.50 | R16: 300.00 | S16: 165.00 | T16: 165.00 | U16: 300.00 | V16: 0.62 | W16: 300.00 | X16: 0.28 | Y16: 165.00 | Z16: 0.50 | AA16: 243.72 | AB16: 198.00 | AC16: 1.00 | AD16: 0.50 | AE16: 300.00 | AF16: 0.50 | AG16: 300.00 | AH16: 165.00 | AI16: 165.00 | AJ16: 300.00 | AK16: 0.62 | AL16: 300.00 | AM16: 0.28 | AN16: 165.00 | AO16: 0.50 | AQ16: 1.1 | AR16: 4.27 | AS16: 962.10 | AT16: 719.60 | AU16: 962.10 | AV16: 719.60 | AW16: 459.80 | AX16: 3.88 | AY16: 2.13 | AZ16: 836.00 | BA16: 836.00 | BB16: 836.00 | BC16: 0.55 | BS16: 0.5775 | BT16: 0.58 | BU16: 9.58 | BV16: 874.8616944 | BW16: 28.875 | BX16: 338.10 | BY16: -328.52 | CA16: 1.2 | CB16: 1.20 | CC16: 260.00 | CD16: 240.00 | CE16: 1.00 | CF16: =$CE$30*CA5 -> 0.1 | CG16: 0.55 | CH16: 440.0 | CI16: 1.82 | CL16: 0.55 | CM16: 440 | CN16: 168 | CO16: 120 | CP16: 168 | CQ16: 120 | CR16: 168 | CS16: 120 | CT16: 193 | CU16: 150 | CV16: 350 | CW16: 83 | CX16: 193 | CY16: 150 | CZ16: 350 | DA16: 83 | DB16: 193 | DC16: 150 | DD16: 350 | DE16: 83 | DG16: 0.55 | DH16: 263.25 | DI16: 231.00 | DJ16: 1.00 | DK16: 0.50 | DL16: 300.00 | DM16: 0.50 | DN16: 350.00 | DO16: 178.22 | DP16: 192.50 | DQ16: 324.04 | DZ16: Nd | EA16: b0 | EB16: -b1 | EC16: W/P | EG16: Nd | EH16: b0 | EI16: -b1 | EJ16: W/P | EN16: Sfiscal | EO16: =EC33-DZ33 -> 0 | EP16: =EJ33-EG33 -> 0 | EQ16: =EP16-EO16 -> 0 | ER16: =IF(EP16=0,0,((EP16/EO16))-1) -> 0 | EU16: Nd | EV16: b0 | EW16: -b1 | EX16: W/P | EY16: W/P neto | FB16: Nd | FC16: b0 | FD16: -b1 | FE16: W/P | FF16: W/P neto empr | FI16: W/P emp | FJ16: =EY17 -> 350.00 | FK16: =FF17 -> 350.00 | FL16: 0 | FM16: =(FK16/FJ16)-1 -> 0.0% | FP16: 0.55 | FQ16: 550 | FR16: 475 | FS16: 225 | FT16: 165 | FU16: 350 | FV16: 300 | FW16: 193 | FX16: 475 | FY16: 165 | FZ16: 350 | GA16: 300 | GB16: 193 | GF16: 0.55 | GG16: 1,413.58 | GH16: 198.00 | GI16: 1.00 | GJ16: 0.50 | GK16: 10,092.00 | GL16: 0.50 | GM16: 300.00 | GN16: 957.00 | GO16: 165.00 | GP16: 1,740.00 | GQ16: 300.00 | GR16: 957.00 | GS16: 165.00 | GT16: 1,740.00 | HB16: 0.98 | HC16: 1,959.0 | HD16: 1.02 | HF16: 1,959.0 | HG16: 1.02 | HJ16: 1.1 | HK16: 2.93 | HL16: 480.00 | HM16: 320.00 | HN16: 3.04 | HO16: 453.00 | HP16: 287.00 | HQ16: 2.67 | HR16: 220.00 | HS16: 1.47 | HT16: 400.00 | HU16: 2.77 | HV16: 203.50 | HW16: 1.52 | HX16: 370.00 | HY16: 0.55
A17: 0.6 | B17: 600 | C17: 333 | D17: 133 | E17: 180 | F17: 233 | G17: 300 | H17: 140 | K17: 0.60 | L17: 254.56 | M17: 216.00 | N17: 1.00 | O17: 0.50 | P17: 300.00 | Q17: 0.50 | R17: 300.00 | S17: 180.00 | T17: 180.00 | U17: 300.00 | V17: 0.59 | W17: 300.00 | X17: 0.30 | Y17: 180.00 | Z17: 0.50 | AA17: 254.56 | AB17: 216.00 | AC17: 1.00 | AD17: 0.50 | AE17: 300.00 | AF17: 0.50 | AG17: 300.00 | AH17: 180.00 | AI17: 180.00 | AJ17: 300.00 | AK17: 0.59 | AL17: 300.00 | AM17: 0.30 | AN17: 180.00 | AO17: 0.50 | AQ17: 1.2 | AR17: 4.66 | AS17: 1,088.20 | AT17: 603.20 | AU17: 1,088.20 | AV17: 603.20 | AW17: 501.60 | AX17: 3.88 | AY17: 2.33 | AZ17: 836.00 | BA17: 836.00 | BB17: 836.00 | BC17: 0.6 | BS17: 0.63 | BT17: 0.63 | BU17: 11.76 | BV17: 497.4824731 | BW17: 31.5 | BX17: 238.93 | BY17: -227.17 | CA17: 1.3 | CB17: 1.30 | CC17: 265.00 | CD17: 235.00 | CE17: 1.00 | CF17: =$CE$30*CA6 -> 0.2 | CG17: 0.6 | CH17: 480.0 | CI17: 1.67 | CL17: 0.6 | CM17: 480 | CN17: 176 | CO17: 107 | CP17: 176 | CQ17: 107 | CR17: 176 | CS17: 107 | CT17: 210 | CU17: 150 | CV17: 350 | CW17: 90 | CX17: 210 | CY17: 150 | CZ17: 350 | DA17: 90 | DB17: 210 | DC17: 150 | DD17: 350 | DE17: 90 | DG17: 0.60 | DH17: 274.95 | DI17: 252.00 | DJ17: 1.00 | DK17: 0.50 | DL17: 300.00 | DM17: 0.50 | DN17: 350.00 | DO17: 194.42 | DP17: 210.00 | DQ17: 324.04 | DZ17: =EA17+(EB17*EC17) -> 300.0 | EA17: =mc_sistema_ampliado!C15 -> 1,000.0 | EB17: =mc_sistema_ampliado!D15 -> (2.0) | EC17: =(EA13-EA17)/(EB17-(EB13*(1-ED13))) -> 350.0 | EG17: =EH17+(EI17*EJ17) -> 300.0 | EH17: =EA17 -> 1,000.0 | EI17: =EB17 -> (2.0) | EJ17: =(EH13-EH17)/(EI17-(EI13*(1-EK13))) -> 350.0 | EN17: C | EO17: =DZ48 -> 94.00 | EP17: =EG48 -> 94.00 | EQ17: =EP17-EO17 -> 0 | ER17: =(EP17/EO17)-1 -> 0 | EU17: =EV17+(EW17*EX17) -> 300.0 | EV17: =mc_sistema_graficas!B14 -> 1,000.0 | EW17: =mc_sistema_graficas!C14 -> (2.0) | EX17: =(EV13-EV17)/(EW17-(EW13*(1-EY15))) -> 350.0 | EY17: =EX17 -> 350.0 | FB17: =FC17+(FD17*FE17) -> 300.0 | FC17: =EV17 -> 1,000.0 | FD17: =EW17 -> (2.0) | FE17: =(FC13-FC17)/(FD17-(FD13*(1-FF15))) -> 350.0 | FF17: =FE17 -> 350.0 | FI17: t | FJ17: =FJ16-FJ15 -> 0 | FK17: =FK16-FK15 -> 0 | FL17: 0 | FP17: 0.6 | FQ17: 600 | FR17: 500 | FS17: 200 | FT17: 180 | FU17: 350 | FV17: 300 | FW17: 210 | FX17: 500 | FY17: 180 | FZ17: 350 | GA17: 300 | GB17: 210 | GF17: 0.60 | GG17: 1,476.44 | GH17: 216.00 | GI17: 1.00 | GJ17: 0.50 | GK17: 10,092.00 | GL17: 0.50 | GM17: 300.00 | GN17: 1,044.00 | GO17: 180.00 | GP17: 1,740.00 | GQ17: 300.00 | GR17: 1,044.00 | GS17: 180.00 | GT17: 1,740.00 | HB17: 1.06 | HC17: 2,128.0 | HD17: 0.94 | HF17: 2,128.0 | HG17: 0.94 | HJ17: 1.2 | HK17: 3.20 | HL17: 560.00 | HM17: 240.00 | HN17: 3.32 | HO17: 536.00 | HP17: 204.00 | HQ17: 2.67 | HR17: 240.00 | HS17: 1.60 | HT17: 400.00 | HU17: 2.77 | HV17: 222.00 | HW17: 1.66 | HX17: 370.00 | HY17: 0.6
A18: 0.65 | B18: 650 | C18: 350 | D18: 117 | E18: 195 | F18: 233 | G18: 300 | H18: 152 | K18: 0.65 | L18: 264.95 | M18: 234.00 | N18: 1.00 | O18: 0.50 | P18: 300.00 | Q18: 0.50 | R18: 300.00 | S18: 195.00 | T18: 195.00 | U18: 300.00 | V18: 0.57 | W18: 300.00 | X18: 0.33 | Y18: 195.00 | Z18: 0.50 | AA18: 264.95 | AB18: 234.00 | AC18: 1.00 | AD18: 0.50 | AE18: 300.00 | AF18: 0.50 | AG18: 300.00 | AH18: 195.00 | AI18: 195.00 | AJ18: 300.00 | AK18: 0.57 | AL18: 300.00 | AM18: 0.33 | AN18: 195.00 | AO18: 0.50 | AQ18: 1.3 | AR18: 5.04 | AS18: 1,214.30 | AT18: 486.80 | AU18: 1,214.30 | AV18: 486.80 | AW18: 543.40 | AX18: 3.88 | AY18: 2.52 | AZ18: 836.00 | BA18: 836.00 | BB18: 836.00 | BC18: 0.65 | BS18: 0.6825 | BT18: 0.68 | BU18: 14.44 | BV18: 308.5555338 | BW18: 34.125 | BX18: 176.30 | BY18: -161.86 | CA18: 1.4 | CB18: 1.40 | CC18: 270.00 | CD18: 230.00 | CE18: 1.00 | CF18: 0.3 | CG18: 0.65 | CH18: 520.0 | CI18: 1.54 | CL18: 0.65 | CM18: 520 | CN18: 184 | CO18: 93 | CP18: 184 | CQ18: 93 | CR18: 184 | CS18: 93 | CT18: 228 | CU18: 150 | CV18: 350 | CW18: 98 | CX18: 228 | CY18: 150 | CZ18: 350 | DA18: 98 | DB18: 228 | DC18: 150 | DD18: 350 | DE18: 98 | DG18: 0.65 | DH18: 286.18 | DI18: 273.00 | DJ18: 1.00 | DK18: 0.50 | DL18: 300.00 | DM18: 0.50 | DN18: 350.00 | DO18: 210.62 | DP18: 227.50 | DQ18: 324.04 | EN18: I privada | EO18: =DZ29 -> 56.00 | EP18: =EG29 -> 56.00 | EQ18: 0 | ER18: =(EP18/EO18)-1 -> 0 | FI18: S | FJ18: =EU25 -> 400.00 | FK18: =FB25 -> 430.00 | FL18: 30.00 | FM18: =(FK18/FJ18)-1 -> 7.5% | FP18: 0.65 | FQ18: 650 | FR18: 525 | FS18: 175 | FT18: 195 | FU18: 350 | FV18: 300 | FW18: 228 | FX18: 525 | FY18: 195 | FZ18: 350 | GA18: 300 | GB18: 228 | GF18: 0.65 | GG18: 1,536.73 | GH18: 234.00 | GI18: 1.00 | GJ18: 0.50 | GK18: 10,092.00 | GL18: 0.50 | GM18: 300.00 | GN18: 1,131.00 | GO18: 195.00 | GP18: 1,740.00 | GQ18: 300.00 | GR18: 1,131.00 | GS18: 195.00 | GT18: 1,740.00 | HB18: 1.15 | HC18: 2,297.0 | HD18: 0.87 | HF18: 2,297.0 | HG18: 0.87 | HJ18: 1.3 | HK18: 3.47 | HL18: 640.00 | HM18: 160.00 | HN18: 3.60 | HO18: 619.00 | HP18: 121.00 | HQ18: 2.67 | HR18: 260.00 | HS18: 1.73 | HT18: 400.00 | HU18: 2.77 | HV18: 240.50 | HW18: 1.80 | HX18: 370.00 | HY18: 0.65
A19: 0.7 | B19: 700 | C19: 367 | D19: 100 | E19: 210 | F19: 233 | G19: 300 | H19: 163 | K19: 0.70 | L19: 274.95 | M19: 252.00 | N19: 1.00 | O19: 0.50 | P19: 300.00 | Q19: 0.50 | R19: 300.00 | S19: 210.00 | T19: 210.00 | U19: 300.00 | V19: 0.55 | W19: 300.00 | X19: 0.35 | Y19: 210.00 | Z19: 0.50 | AA19: 274.95 | AB19: 252.00 | AC19: 1.00 | AD19: 0.50 | AE19: 300.00 | AF19: 0.50 | AG19: 300.00 | AH19: 210.00 | AI19: 210.00 | AJ19: 300.00 | AK19: 0.55 | AL19: 300.00 | AM19: 0.35 | AN19: 210.00 | AO19: 0.50 | AQ19: 1.4 | AR19: 5.43 | AS19: 1,340.40 | AT19: 370.40 | AU19: 1,340.40 | AV19: 370.40 | AW19: 585.20 | AX19: 3.88 | AY19: 2.72 | AZ19: 836.00 | BA19: 836.00 | BB19: 836.00 | BC19: 0.7 | BS19: 0.735 | BT19: 0.74 | BU19: 17.73 | BV19: 204.8914403 | BW19: 36.75 | BX19: 134.77 | BY19: -117.04 | CA19: 1.5 | CB19: 1.50 | CC19: 275.00 | CD19: 225.00 | CE19: 1.00 | CF19: 0.4 | CG19: 0.7 | CH19: 560.0 | CI19: 1.43 | CL19: 0.7 | CM19: 560 | CN19: 192 | CO19: 80 | CP19: 192 | CQ19: 80 | CR19: 192 | CS19: 80 | CT19: 245 | CU19: 150 | CV19: 350 | CW19: 105 | CX19: 245 | CY19: 150 | CZ19: 350 | DA19: 105 | DB19: 245 | DC19: 150 | DD19: 350 | DE19: 105 | DG19: 0.70 | DH19: 296.98 | DI19: 294.00 | DJ19: 1.00 | DK19: 0.50 | DL19: 300.00 | DM19: 0.50 | DN19: 350.00 | DO19: 226.83 | DP19: 245.00 | DQ19: 324.04 | DZ19: DEMANDA AGREGADA | EE19: PRECIOS EXT | EG19: DEMANDA AGREGADA | EL19: PRECIOS EXT | EN19: X | EO19: =DZ37 -> 400.00 | EP19: =EG37 -> 400.00 | EQ19: 0 | ER19: 0 | EU19: DEMANDA AGREGADA | EZ19: PRECIOS EXT | FB19: DEMANDA AGREGADA | FG19: PRECIOS EXT | FI19: C | FJ19: =EV44 -> 1,140.00 | FK19: =FJ31 -> 1,110.00 | FL19: -30.0000000 | FM19: -2.6% | FP19: 0.7 | FQ19: 700 | FR19: 550 | FS19: 150 | FT19: 210 | FU19: 350 | FV19: 300 | FW19: 245 | FX19: 550 | FY19: 210 | FZ19: 350 | GA19: 300 | GB19: 245 | GF19: 0.70 | GG19: 1,594.74 | GH19: 252.00 | GI19: 1.00 | GJ19: 0.50 | GK19: 10,092.00 | GL19: 0.50 | GM19: 300.00 | GN19: 1,218.00 | GO19: 210.00 | GP19: 1,740.00 | GQ19: 300.00 | GR19: 1,218.00 | GS19: 210.00 | GT19: 1,740.00 | HB19: 1.23 | HC19: 2,466.0 | HD19: 0.81 | HF19: 2,466.0 | HG19: 0.81 | HJ19: 1.4 | HK19: 3.73 | HL19: 720.00 | HM19: 80.00 | HN19: 3.87 | HO19: 702.00 | HP19: 38.00 | HQ19: 2.67 | HR19: 280.00 | HS19: 1.87 | HT19: 400.00 | HU19: 2.77 | HV19: 259.00 | HW19: 1.94 | HX19: 370.00 | HY19: 0.7
A20: 0.75 | B20: 750 | C20: 383 | D20: 83 | E20: 225 | F20: =$C$42 -> 233 | G20: 300 | H20: 175 | K20: 0.75 | L20: 284.60 | M20: 270.00 | N20: 1.00 | O20: 0.50 | P20: 300.00 | Q20: 0.50 | R20: 300.00 | S20: 225.00 | T20: 225.00 | U20: 300.00 | V20: 0.53 | W20: 300.00 | X20: 0.38 | Y20: 225.00 | Z20: 0.50 | AA20: 284.60 | AB20: 270.00 | AC20: 1.00 | AD20: 0.50 | AE20: 300.00 | AF20: 0.50 | AG20: 300.00 | AH20: 225.00 | AI20: 225.00 | AJ20: 300.00 | AK20: 0.53 | AL20: 300.00 | AM20: 0.38 | AN20: 225.00 | AO20: 0.50 | AQ20: 1.5 | AR20: 5.82 | AS20: 1,466.50 | AT20: 254.00 | AU20: 1,466.50 | AV20: 254.00 | AW20: 627.00 | AX20: 3.88 | AY20: 2.91 | AZ20: 836.00 | BA20: 836.00 | BB20: 836.00 | BC20: 0.75 | BS20: 0.7875 | BT20: 0.79 | BU20: 21.77 | BV20: 143.6885717 | BW20: 39.375 | BX20: 106.09 | BY20: -84.32 | CA20: 1.6 | CB20: 1.60 | CC20: 280.00 | CD20: 220.00 | CE20: 1.00 | CF20: 0.5 | CG20: 0.75 | CH20: 600.0 | CI20: 1.33 | CL20: 0.75 | CM20: 600 | CN20: 200 | CO20: 67 | CP20: 200 | CQ20: 67 | CR20: 200 | CS20: 67 | CT20: 263 | CU20: 150 | CV20: 350 | CW20: 113 | CX20: 263 | CY20: 150 | CZ20: 350 | DA20: 113 | DB20: 263 | DC20: 150 | DD20: 350 | DE20: 113 | DG20: 0.75 | DH20: 307.41 | DI20: 315.00 | DJ20: 1.00 | DK20: 0.50 | DL20: 300.00 | DM20: 0.50 | DN20: 350.00 | DO20: 243.03 | DP20: 262.50 | DQ20: 324.04 | DZ20: p | EA20: M | EB20: k | EC20: Y | EE20: p* | EG20: p | EH20: M | EI20: k | EJ20: Y | EL20: p* | EN20: Q | EO20: =DZ41 -> 400.00 | EP20: =EG41 -> 400.00 | EQ20: 0 | ER20: 0 | EU20: p | EV20: M | EW20: k | EX20: Y | EZ20: p* | FB20: p | FC20: M | FD20: k | FE20: Y | FG20: p* | FI20: I | FJ20: =EY29 -> 400.000001 | FK20: =FF29 -> 370.000001 | FL20: -30.0000000 | FM20: -7.5% | FP20: 0.75 | FQ20: 750 | FR20: 575 | FS20: 125 | FT20: 225 | FU20: 350 | FV20: 300 | FW20: 263 | FX20: 575 | FY20: 225 | FZ20: 350 | GA20: 300 | GB20: 263 | GF20: 0.75 | GG20: 1,650.71 | GH20: 270.00 | GI20: 1.00 | GJ20: 0.50 | GK20: 10,092.00 | GL20: 0.50 | GM20: 300.00 | GN20: 1,305.00 | GO20: 225.00 | GP20: 1,740.00 | GQ20: 300.00 | GR20: 1,305.00 | GS20: 225.00 | GT20: 1,740.00 | HB20: 1.32 | HC20: 2,635.0 | HD20: 0.76 | HF20: 2,635.0 | HG20: 0.76 | HJ20: 1.5 | HK20: 4.00 | HL20: 800.00 | HM20: 0.00 | HN20: 4.15 | HO20: 785.00 | HP20: -45.00 | HQ20: 2.67 | HR20: 300.00 | HS20: 2.00 | HT20: 400.00 | HU20: 2.77 | HV20: 277.50 | HW20: 2.08 | HX20: 370.00 | HY20: 0.75
A21: 0.8 | B21: 800 | C21: 400 | D21: 67 | E21: 240 | F21: 233 | G21: 300 | H21: 187 | K21: 0.80 | L21: 293.94 | M21: 288.00 | N21: 1.00 | O21: 0.50 | P21: 300.00 | Q21: 0.50 | R21: 300.00 | S21: 240.00 | T21: 240.00 | U21: 300.00 | V21: 0.51 | W21: 300.00 | X21: 0.40 | Y21: 240.00 | Z21: 0.50 | AA21: 293.94 | AB21: 288.00 | AC21: 1.00 | AD21: 0.50 | AE21: 300.00 | AF21: 0.50 | AG21: 300.00 | AH21: 240.00 | AI21: 240.00 | AJ21: 300.00 | AK21: 0.51 | AL21: 300.00 | AM21: 0.40 | AN21: 240.00 | AO21: 0.50 | AQ21: 1.6 | AR21: 6.21 | AS21: 1,592.60 | AT21: 137.60 | AU21: 1,592.60 | AV21: 137.60 | AW21: 668.80 | AX21: 3.88 | AY21: 3.10 | AZ21: 836.00 | BA21: 836.00 | BB21: 836.00 | BC21: 0.8 | BS21: 0.84 | BT21: 0.84 | BU21: 26.74 | BV21: 105.3375804 | BW21: 42 | BX21: 85.59 | BY21: -58.85 | CA21: 1.7 | CB21: 1.70 | CC21: 285.00 | CD21: 215.00 | CE21: 1.00 | CF21: 0.6 | CG21: 0.8 | CH21: 640.0 | CI21: 1.25 | CL21: 0.8 | CM21: 640 | CN21: 208 | CO21: 53 | CP21: 208 | CQ21: 53 | CR21: 208 | CS21: 53 | CT21: 280 | CU21: 150 | CV21: 350 | CW21: 120 | CX21: 280 | CY21: 150 | CZ21: 350 | DA21: 120 | DB21: 280 | DC21: 150 | DD21: 350 | DE21: 120 | DG21: 0.80 | DH21: 317.49 | DI21: 336.00 | DJ21: 1.00 | DK21: 0.50 | DL21: 300.00 | DM21: 0.50 | DN21: 350.00 | DO21: 259.23 | DP21: 280.00 | DQ21: 324.04 | DZ21: =EA21/(EB21*EC21) -> 6.67 | EA21: =mc_sistema_ampliado!C19 -> 200.0 | EB21: =mc_sistema_ampliado!D19 -> 0.10 | EC21: =DZ9 -> 300.00 | EE21: =mc_sistema_ampliado!B43 -> 6.7 | EG21: =EH21/(EI21*EJ21) -> 6.67 | EH21: =EN28 -> 200.0 | EI21: =EB21 -> 0.1 | EJ21: =EG9 -> 300.00 | EL21: =EE21 -> 6.7 | EN21: SBC | EO21: =EE39 -> 0.00 | EP21: =EL39 -> 0.00 | EQ21: 0 | ER21: =(EP21/EO21)-1 -> 0 | EU21: =EV21/(EW21*EX21) -> 1.15 | EV21: =mc_sistema_graficas!B17 -> 200.0 | EW21: =mc_sistema_graficas!C17 -> 0.10 | EX21: =EU9 -> 1,740.00 | EZ21: =mc_sistema_graficas!E17 -> 1.1 | FB21: =FC21/(FD21*FE21) -> 1.15 | FC21: =FJ8 -> 200.0 | FD21: =EW21 -> 0.1 | FE21: =FB9 -> 1,740.00 | FG21: =EZ21 -> 1.1 | FI21: r | FJ21: =EX25 -> 2.67 | FK21: =FE25 -> 2.77 | FL21: 0.10 | FM21: 3.7% | FP21: 0.8 | FQ21: 800 | FR21: 600 | FS21: 100 | FT21: 240 | FU21: 350 | FV21: 300 | FW21: 280 | FX21: 600 | FY21: 240 | FZ21: 350 | GA21: 300 | GB21: 280 | GF21: 0.80 | GG21: 1,704.84 | GH21: 288.00 | GI21: 1.00 | GJ21: 0.50 | GK21: 10,092.00 | GL21: 0.50 | GM21: 300.00 | GN21: 1,392.00 | GO21: 240.00 | GP21: 1,740.00 | GQ21: 300.00 | GR21: 1,392.00 | GS21: 240.00 | GT21: 1,740.00 | HB21: 1.40 | HC21: 2,804.0 | HD21: 0.71 | HF21: 2,804.0 | HG21: 0.71 | HJ21: 1.6 | HK21: 4.27 | HL21: 880.00 | HM21: -80.00 | HN21: 4.43 | HO21: 868.00 | HP21: -128.00 | HQ21: 2.67 | HR21: 320.00 | HS21: 2.13 | HT21: 400.00 | HU21: 2.77 | HV21: 296.00 | HW21: 2.21 | HX21: 370.00 | HY21: 0.8
A22: 0.85 | B22: 850 | C22: 417 | D22: 50 | E22: 255 | F22: 233 | G22: 300 | H22: 198 | K22: 0.85 | L22: 302.99 | M22: 306.00 | N22: 1.00 | O22: 0.50 | P22: 300.00 | Q22: 0.50 | R22: 300.00 | S22: 255.00 | T22: 255.00 | U22: 300.00 | V22: 0.50 | W22: 300.00 | X22: 0.43 | Y22: 255.00 | Z22: 0.50 | AA22: 302.99 | AB22: 306.00 | AC22: 1.00 | AD22: 0.50 | AE22: 300.00 | AF22: 0.50 | AG22: 300.00 | AH22: 255.00 | AI22: 255.00 | AJ22: 300.00 | AK22: 0.50 | AL22: 300.00 | AM22: 0.43 | AN22: 255.00 | AO22: 0.50 | AQ22: 1.7 | AR22: 6.60 | AS22: 1,718.70 | AT22: 21.20 | AU22: 1,718.70 | AV22: 21.20 | AW22: 710.60 | AX22: 3.88 | AY22: 3.30 | AZ22: 836.00 | BA22: 836.00 | BB22: 836.00 | BC22: 0.85 | BS22: 0.8925 | BT22: 0.89 | BU22: 32.83 | BV22: 80.09545042 | BW22: 44.625 | BX22: 70.51 | BY22: -37.68 | CA22: 1.8 | CB22: 1.80 | CC22: 290.00 | CD22: 210.00 | CE22: 1.00 | CF22: 0.7 | CG22: 0.85 | CH22: 680.0 | CI22: 1.18 | CL22: 0.85 | CM22: 680 | CN22: 216 | CO22: 40 | CP22: 216 | CQ22: 40 | CR22: 216 | CS22: 40 | CT22: 298 | CU22: 150 | CV22: 350 | CW22: 128 | CX22: 298 | CY22: 150 | CZ22: 350 | DA22: 128 | DB22: 298 | DC22: 150 | DD22: 350 | DE22: 128 | DG22: 0.85 | DH22: 327.26 | DI22: 357.00 | DJ22: 1.00 | DK22: 0.50 | DL22: 300.00 | DM22: 0.50 | DN22: 350.00 | DO22: 275.43 | DP22: 297.50 | DQ22: 324.04 | EN22: p | EO22: =DZ21 -> 6.67 | EP22: =EG21 -> 6.67 | EQ22: 0 | ER22: 0 | FI22: X | FJ22: =EU37 -> 400.00 | FK22: =FB37 -> 400.00 | FL22: 0 | FM22: 0.0% | FP22: 0.85 | FQ22: 850 | FR22: 625 | FS22: 75 | FT22: 255 | FU22: 350 | FV22: 300 | FW22: 298 | FX22: 625 | FY22: 255 | FZ22: 350 | GA22: 300 | GB22: 298 | GF22: 0.85 | GG22: 1,757.31 | GH22: 306.00 | GI22: 1.00 | GJ22: 0.50 | GK22: 10,092.00 | GL22: 0.50 | GM22: 300.00 | GN22: 1,479.00 | GO22: 255.00 | GP22: 1,740.00 | GQ22: 300.00 | GR22: 1,479.00 | GS22: 255.00 | GT22: 1,740.00 | HB22: 1.49 | HC22: 2,973.0 | HD22: 0.67 | HF22: 2,973.0 | HG22: 0.67 | HJ22: 1.7 | HK22: 4.53 | HL22: 960.00 | HM22: -160.00 | HN22: 4.70 | HO22: 951.00 | HP22: -211.00 | HQ22: 2.67 | HR22: 340.00 | HS22: 2.27 | HT22: 400.00 | HU22: 2.77 | HV22: 314.50 | HW22: 2.35 | HX22: 370.00 | HY22: 0.85
A23: 0.9 | B23: 900 | C23: 433 | D23: 33 | E23: 270 | F23: 233 | G23: 300 | H23: 210 | K23: 0.90 | L23: 311.77 | M23: 324.00 | N23: 1.00 | O23: 0.50 | P23: 300.00 | Q23: 0.50 | R23: 300.00 | S23: 270.00 | T23: 270.00 | U23: 300.00 | V23: 0.48 | W23: 300.00 | X23: 0.45 | Y23: 270.00 | Z23: 0.50 | AA23: 311.77 | AB23: 324.00 | AC23: 1.00 | AD23: 0.50 | AE23: 300.00 | AF23: 0.50 | AG23: 300.00 | AH23: 270.00 | AI23: 270.00 | AJ23: 300.00 | AK23: 0.48 | AL23: 300.00 | AM23: 0.45 | AN23: 270.00 | AO23: 0.50 | AQ23: 1.8 | AR23: 6.98 | AS23: 1,844.80 | AT23: -95.20 | AU23: 1,844.80 | AV23: -95.20 | AW23: 752.40 | AX23: 3.88 | AY23: 3.49 | AZ23: 836.00 | BA23: 836.00 | BB23: 836.00 | BC23: 0.9 | BS23: 0.945 | BT23: 0.95 | BU23: 40.32 | BV23: 62.78441564 | BW23: 47.25 | BX23: 59.14 | BY23: -18.82 | CA23: 1.9 | CB23: 1.90 | CC23: 295.00 | CD23: 205.00 | CE23: 1.00 | CF23: 0.8 | CG23: 0.9 | CH23: 720.0 | CI23: 1.11 | CL23: 0.9 | CM23: 720 | CN23: 224 | CO23: 27 | CP23: 224 | CQ23: 27 | CR23: 224 | CS23: 27 | CT23: 315 | CU23: 150 | CV23: 350 | CW23: 135 | CX23: 315 | CY23: 150 | CZ23: 350 | DA23: 135 | DB23: 315 | DC23: 150 | DD23: 350 | DE23: 135 | DG23: 0.90 | DH23: 336.75 | DI23: 378.00 | DJ23: 1.00 | DK23: 0.50 | DL23: 300.00 | DM23: 0.50 | DN23: 350.00 | DO23: 291.63 | DP23: 315.00 | DQ23: 324.04 | DZ23: FUNCIÓN DE AHORRO | EG23: FUNCIÓN DE AHORRO | EN23: p*/p | EO23: =EC37 -> 1.00 | EP23: =EJ37 -> 1.00 | EQ23: 0 | ER23: 0 | EU23: FUNCIÓN DE AHORRO | FB23: FUNCIÓN DE AHORRO | FI23: Q | FJ23: =EU41 -> 400.00 | FK23: =FB41 -> 400.00 | FL23: 0 | FM23: 0.0% | FP23: 0.9 | FQ23: 900 | FR23: 650 | FS23: 50 | FT23: 270 | FU23: 350 | FV23: 300 | FW23: 315 | FX23: 650 | FY23: 270 | FZ23: 350 | GA23: 300 | GB23: 315 | GF23: 0.90 | GG23: 1,808.26 | GH23: 324.00 | GI23: 1.00 | GJ23: 0.50 | GK23: 10,092.00 | GL23: 0.50 | GM23: 300.00 | GN23: 1,566.00 | GO23: 270.00 | GP23: 1,740.00 | GQ23: 300.00 | GR23: 1,566.00 | GS23: 270.00 | GT23: 1,740.00 | HB23: 1.57 | HC23: 3,142.0 | HD23: 0.64 | HF23: 3,142.0 | HG23: 0.64 | HJ23: 1.8 | HK23: 4.80 | HL23: 1,040.00 | HM23: -240.00 | HN23: 4.98 | HO23: 1,034.00 | HP23: -294.00 | HQ23: 2.67 | HR23: 360.00 | HS23: 2.40 | HT23: 400.00 | HU23: 2.77 | HV23: 333.00 | HW23: 2.49 | HX23: 370.00 | HY23: 0.9
A24: 0.95 | B24: 950 | C24: 450 | D24: 17 | E24: 285 | F24: 233 | G24: 300 | H24: 222 | K24: 0.95 | L24: 320.31 | M24: 342.00 | N24: 1.00 | O24: 0.50 | P24: 300.00 | Q24: 0.50 | R24: 300.00 | S24: 285.00 | T24: 285.00 | U24: 300.00 | V24: 0.47 | W24: 300.00 | X24: 0.48 | Y24: 285.00 | Z24: 0.50 | AA24: 320.31 | AB24: 342.00 | AC24: 1.00 | AD24: 0.50 | AE24: 300.00 | AF24: 0.50 | AG24: 300.00 | AH24: 285.00 | AI24: 285.00 | AJ24: 300.00 | AK24: 0.47 | AL24: 300.00 | AM24: 0.48 | AN24: 285.00 | AO24: 0.50 | AQ24: 1.9 | AR24: 7.37 | AS24: 1,970.90 | AT24: -211.60 | AU24: 1,970.90 | AV24: -211.60 | AW24: 794.20 | AX24: 3.88 | AY24: 3.69 | AZ24: 836.00 | BA24: 836.00 | BB24: 836.00 | BC24: 0.95 | BS24: 0.9975 | BT24: 1.00 | BU24: 49.51 | BV24: 50.49263956 | BW24: 49.875 | BX24: 50.37 | BY24: =BU24-BX24 -> -0.85 | CA24: 2 | CB24: 2.00 | CC24: 300.00 | CD24: 200.00 | CE24: 1.00 | CF24: 0.9 | CG24: 0.95 | CH24: 760.0 | CI24: 1.05 | CL24: 0.95 | CM24: 760 | CN24: 232 | CO24: 13 | CP24: 232 | CQ24: 13 | CR24: 232 | CS24: 13 | CT24: 333 | CU24: 150 | CV24: 350 | CW24: 143 | CX24: 333 | CY24: 150 | CZ24: 350 | DA24: 143 | DB24: 333 | DC24: 150 | DD24: 350 | DE24: 143 | DG24: 0.95 | DH24: 345.98 | DI24: 399.00 | DJ24: 1.00 | DK24: 0.50 | DL24: 300.00 | DM24: 0.50 | DN24: 350.00 | DO24: 307.84 | DP24: 332.50 | DQ24: 324.04 | DY24: STOTAL | DZ24: S | EA24: s0 | EB24: s1 | EC24: r | ED24: S TOTAL | EF24: STOTAL | EG24: S | EH24: s0 | EI24: s1 | EJ24: r | EK24: S TOTAL | EU24: S Privado | EV24: s0 | EW24: s1 | EX24: r | EY24: S Total | FB24: S Privado | FC24: s0 | FD24: s1 | FE24: r | FF24: S Total | FI24: SBC | FJ24: =EZ39 -> 0.00 | FK24: =FG39 -> 0.00 | FL24: 0 | FM24: =(FK24/FJ24)-1 -> 0.0% | FP24: 0.95 | FQ24: 950 | FR24: 675 | FS24: 25 | FT24: 285 | FU24: 350 | FV24: 300 | FW24: 333 | FX24: 675 | FY24: 285 | FZ24: 350 | GA24: 300 | GB24: 333 | GF24: 0.95 | GG24: 1,857.81 | GH24: 342.00 | GI24: 1.00 | GJ24: 0.50 | GK24: 10,092.00 | GL24: 0.50 | GM24: 300.00 | GN24: 1,653.00 | GO24: 285.00 | GP24: 1,740.00 | GQ24: 300.00 | GR24: 1,653.00 | GS24: 285.00 | GT24: 1,740.00 | HB24: 1.66 | HC24: 3,311.0 | HD24: 0.60 | HF24: 3,311.0 | HG24: 0.60 | HJ24: 1.9 | HK24: 5.07 | HL24: 1,120.00 | HM24: -320.00 | HN24: 5.26 | HO24: 1,117.00 | HP24: -377.00 | HQ24: 2.67 | HR24: 380.00 | HS24: 2.53 | HT24: 400.00 | HU24: 2.77 | HV24: 351.50 | HW24: 2.63 | HX24: 370.00 | HY24: 0.95
A25: 1 | B25: 1,000 | C25: 467 | D25: 0 | E25: 300 | F25: 233 | G25: 300 | H25: 233 | K25: 1.00 | L25: 328.63 | M25: 360.00 | N25: 1.00 | O25: 0.50 | P25: 300.00 | Q25: 0.50 | R25: 300.00 | S25: 300.00 | T25: =$M$31*K25 -> 300.00 | U25: 300.00 | V25: 0.46 | W25: 300.00 | X25: 0.50 | Y25: 300.00 | Z25: 0.50 | AA25: 328.63 | AB25: 360.00 | AC25: 1.00 | AD25: 0.50 | AE25: 300.00 | AF25: 0.50 | AG25: 300.00 | AH25: =$R$30*K25 -> 300.00 | AI25: =$N$31*K25 -> 300.00 | AJ25: 300.00 | AK25: 0.46 | AL25: 300.00 | AM25: 0.50 | AN25: 300.00 | AO25: 0.50 | AQ25: 2 | AR25: 7.76 | AS25: 2,097.00 | AT25: -328.00 | AU25: 2,097.00 | AV25: -328.00 | AW25: 836.00 | AX25: 3.88 | AY25: 3.88 | AZ25: 836.00 | BA25: 836.00 | BB25: 836.00 | BC25: 1 | BS25: 1.05 | BT25: 1.05 | BU25: 60.80 | BV25: 41.50177493 | BW25: 52.5 | BX25: 43.48 | BY25: 17.33 | CA25: 2.1 | CB25: 2.10 | CC25: 305.00 | CD25: 195.00 | CE25: 1.00 | CF25: 1 | CG25: 1 | CH25: =CG25*$CG$34 -> 800.0 | CI25: =$CG$34/CH25 -> 1.00 | CL25: 1 | CM25: 800 | CN25: 240 | CO25: 0 | CP25: 240 | CQ25: 0 | CR25: 240 | CS25: 0 | CT25: 350 | CU25: 150 | CV25: 350 | CW25: 150 | CX25: 350 | CY25: 150 | CZ25: 350 | DA25: 150 | DB25: 350 | DC25: 150 | DD25: 350 | DE25: 150 | DG25: 1.00 | DH25: 354.96 | DI25: 420.00 | DJ25: 1.00 | DK25: 0.50 | DL25: 300.00 | DM25: 0.50 | DN25: 350.00 | DO25: 324.04 | DP25: 350.00 | DQ25: 324.04 | DY25: =DZ25+EC33-DZ33 -> 56.0 | DZ25: =EA25+(EB25*EC25) -> 56.0 | EA25: =mc_sistema_ampliado!C23 -> (425.0) | EB25: =mc_sistema_ampliado!D23 -> 325.0 | EC25: =(EA29-EC33+DZ33-EA25+DZ37-DZ41)/(EB25-EB29) -> 1.5 | ED25: =DZ25+EC33-DZ33 -> 56.0 | EF25: =EG25+EJ33-EG33 -> 56.0 | EG25: =EH25+(EI25*EJ25) -> 56.0 | EH25: =EA25 -> (425.0) | EI25: =EB25 -> 325.0 | EJ25: =(EH29-EJ33+EG33-EH25+EG37-EG41)/(EI25-EI29) -> 1.5 | EK25: =EG25+EJ33-EG33 -> 56.0 | EU25: =EV25+(EW25*EX25) -> 400.0 | EV25: =mc_sistema_graficas!B20 -> (400.0) | EW25: =mc_sistema_graficas!C20 -> 300.0 | EX25: =(EV29-EV25-EW33+EU33+EU37-EU41)/(EW25-EW29) -> 2.67 | EY25: =EU25+EW33-EU33 -> 400.0 | FB25: =FC25+(FD25*FE25) -> 430.0 | FC25: =EV25 -> (400.0) | FD25: =EW25 -> 300.0 | FE25: =(FC29-FC25-FD33+FB33+FB37-FB41)/(FD25-FD29) -> 2.77 | FF25: =FB25+FD33-FB33 -> 370.0 | FI25: p | FJ25: =EU21 -> 1.15 | FK25: =FB21 -> 1.15 | FL25: 0 | FM25: 0.0% | FP25: 1 | FQ25: 1,000 | FR25: 700 | FS25: 0 | FT25: 300 | FU25: 350 | FV25: 300 | FW25: 350 | FX25: 700 | FY25: 300 | FZ25: 350 | GA25: 300 | GB25: 350 | GF25: 1.00 | GG25: 1,906.07 | GH25: 360.00 | GI25: 1.00 | GJ25: 0.50 | GK25: 10,092.00 | GL25: 0.50 | GM25: 300.00 | GN25: 1,740.00 | GO25: 300.00 | GP25: 1,740.00 | GQ25: 300.00 | GR25: 1,740.00 | GS25: 300.00 | GT25: 1,740.00 | HB25: =HD27/HB34 -> 1.74 | HC25: =HB25*$HB$34 -> 3,480.0 | HD25: 0.57 | HF25: 3,480.0 | HG25: 0.57 | HJ25: 2 | HK25: 5.33 | HL25: 1,200.00 | HM25: -400.00 | HN25: 5.53 | HO25: 1,200.00 | HP25: -460.00 | HQ25: 2.67 | HR25: 400.00 | HS25: 2.67 | HT25: 400.00 | HU25: 2.77 | HV25: 370.00 | HW25: 2.77 | HX25: 370.00 | HY25: 1
CF26: =$CE$32 -> 250.00 | FI26: p*/p | FJ26: =EX37 -> 1.00 | FK26: =FE37 -> 1.00 | FL26: 0 | FM26: 0.0%
B27: COTA | C27: =B39/20 -> 50.0 | AS27: COTA | AT27: =(AR39+#REF!-#REF!+AT39-AU39)/20 ->  | AV27: =(AR39)/20 -> 100.0 | AX27: =(AR39+#REF!-#REF!)/20 ->  | AZ27: =(AR39+AT39-AU39)/20 -> 100.0 | CF27: =$CE$32 -> 250.00 | CL27: COTA | CM27: =($CM$39)/20 -> 40.0 | CN27: =(CN25-CN5)/(CM25-CM5) -> 0.20 | CO27: =(CO25-CO5)/(CM25-CM5) -> -0.33 | DZ27: FUNCIÓN DE INVERSIÓN | EG27: FUNCIÓN DE INVERSIÓN | EN27: M | EO27: G | EP27: T | EQ27: T Marginal | ER27: X | ES27: Q | EU27: FUNCIÓN DE INVERSIÓN | FB27: FUNCIÓN DE INVERSIÓN | FI27: G | FJ27: =EU33 -> 200.00 | FK27: =FC33 -> 260.00 | FL27: 60.00 | FM27: 30.0% | FQ27: COTA | FR27: =FQ39/20 -> 50.0 | HB27: Cota | HC27: =(HB25-HB5)/20 -> 0.0845 | HD27: =GV5*2 -> 3480 | HL27: COTA | HM27: =(HK39+HM39-HN39+HO39-HP39)/20 -> 60.0 | HS27: =(HK40+HM40-HN40+HO40-HP40)/20 -> 63.00000011
CF28: 250.00 | DY28: ITOTAL | DZ28: I | EA28: i0 | EB28: i1 | EC28: r | ED28: I TOTAL | EF28: ITOTAL | EG28: I | EH28: i0 | EI28: i1 | EJ28: r | EK28: I TOTAL | EN28: =EA21+(EA21*EN29) -> 200.00 | EO28: =EA33+(EA33*EO29) -> 150.00 | EP28: =ED33+(ED33*EP29) -> 150.00 | EQ28: =ED13+EQ29 -> 0 | ER28: =EA37*(1+ER29) -> 300.00 | ES28: =EA41*(1+ES29) -> 500.00 | EU28: I Privada | EV28: i0 | EW28: i1 | EX28: r | EY28: I Total | FB28: I Privada | FC28: i0 | FD28: i1 | FE28: r | FF28: I Total | FI28: T | FJ28: =EW33 -> 200.00 | FK28: =FE33 -> 200.00 | FL28: 0 | FM28: 0.0%
L29: y | M29: =R29 -> 300.00 | N29: =R30 -> 300.00 | Q29: y1* | R29: =M30*(M31^M32)*(M33^M34) -> 300.00 | BS29: PAÍS A | CA29: PAÍS A | CF29: 250.00 | CP29: =CP5/CN5 -> 1 | CQ29: =CQ5/CO5 -> 1 | CR29: =CR5/CN5 -> 1 | CS29: =CS5/CO5 -> 1 | DH29: y | DI29: =DN29 -> 324.04 | DM29: y1* | DN29: =DI30*(DI31^DI32)*(DI33^DI34) -> 324.04 | DY29: =DZ29+DZ37-DZ41 -> 56.0 | DZ29: =EA29+(EB29*EC29) -> 56.0 | EA29: =mc_sistema_ampliado!C31 -> 500.0 | EB29: =mc_sistema_ampliado!D31 -> (300.0) | EC29: =(EA29+EA33-ED33-EA25+DZ37-DZ41)/(EB25-EB29) -> 1.5 | ED29: =EA29+(EB29*EC29)+DZ37-DZ41 -> 56.0 | EF29: =EG29+EG37-EG41 -> 56.0 | EG29: =EH29+(EI29*EJ29) -> 56.0 | EH29: =EA29 -> 500.0 | EI29: =EB29 -> (300.0) | EJ29: =(EH29+EH33-EK33-EH25+EG37-EG41)/(EI25-EI29) -> 1.5 | EK29: =EG29+EL39 -> 56.0 | EN29: =mc_sistema_ampliado!I12 -> 0.00% | EO29: =mc_sistema_ampliado!J12 -> 0.00% | EP29: =mc_sistema_ampliado!K12 -> 0.00% | EQ29: =mc_sistema_ampliado!L12 -> 0.00% | ER29: =mc_sistema_ampliado!M12 -> 0.00% | ES29: =mc_sistema_ampliado!N12 -> 0.00% | EU29: =EV29+(EW29*EX29) -> 400.0 | EV29: =mc_sistema_graficas!B23 -> 1,200.0 | EW29: =mc_sistema_graficas!C23 -> (300.0) | EX29: =EX25 -> 2.67 | EY29: =EU29+EU37-EU41 -> 400.0000011 | FB29: =FC29+(FD29*FE29) -> 370.0 | FC29: =EV29 -> 1,200.0 | FD29: =EW29 -> (300.0) | FE29: =FE25 -> 2.77 | FF29: =FB29+FB37-FB41 -> 370.0000011 | GG29: y | GH29: =EU9 -> 1,740.00 | GI29: =FB9 -> 1,740.00 | GL29: y1* | GM29: =GH30*(GH31^GH32)*(GH33^GH34) -> 1,740.00
L30: A | M30: =mc_fn_produccion!C10 -> 1.0 | N30: =mc_fn_produccion!D10 -> 1.00 | Q30: y2* | R30: =N30*(N31^N32)*(N33^N34) -> 300.00 | BS30: P | BU30: =mc_ofertas_netas!D5 -> 20.0 | BX30: P*/P | BY30: =BU33/BU30 -> 1.00 | CA30: P | CB30: =mc_sector_externo!D5 -> 5.0 | CD30: P*/P | CE30: =CB33/CB30 -> 1.00 | CF30: 250.00 | DH30: A | DI30: =mc_oferta_agregada!C19 -> 1.0 | FI30: Y | FJ30: C | FK30: I | FL30: G | FM30: XN | GG30: A | GH30: =EV9 -> 1.0 | GI30: =FC9 -> 1.0 | GL30: y2* | GM30: =GI30*(GI31^GI32)*(GI33^GI34) -> 1,740.00
L31: x1 | M31: =mc_fn_produccion!C11 -> 300.0 | N31: =mc_fn_produccion!D11 -> 300.00 | BX31: X | BY31: =BT37^(BU33/BU30) -> 50.00 | CD31: X | CE31: =CB37+(CC37*CE30) -> 250.00 | CF31: 250.00 | DH31: x1 | DI31: =mc_oferta_agregada!C20 -> 350.0 | DZ31: GASTO DEL GOBIERNO | EC31: INGRESOS DEL GOBIERNO | EG31: GASTO DEL GOBIERNO | EJ31: INGRESOS DEL GOBIERNO | EU31: GASTO DEL GOBIERNO | EW31: INGRESOS DEL GOBIERNO | FB31: GASTO DEL GOBIERNO | FD31: INGRESOS DEL GOBIERNO | FI31: =FK13 -> 1,740.0000000 | FJ31: =FI31-FK31-FL31+FM31 -> 1,110.0000011 | FK31: =FK20 -> 370.0000011 | FL31: =FK27 -> 260.0000000 | FM31: =FK22-FK23 -> 0.0000022 | GG31: N | GH31: =EW9 -> 300.0 | GI31: =FD9 -> 300.0
A32: FUNCIÓN DE OFERTA | L32: a | M32: =mc_fn_produccion!C12 -> 0.5 | N32: =mc_fn_produccion!D12 -> 0.50 | AQ32: FUNCIÓN DE AHORRO | AY32: FUNCIÓN DE AHORRO PRIVADO | BS32: PAÍS B | BX32: Q | BY32: =BT41^(BU30/BU33) -> 50.00 | CA32: PAÍS B | CD32: Q | CE32: =CB41+(CC41*(CE30)) -> 250.00 | CF32: 250.00 | CG32: FUNCIÓN DE DEMANDA | CL32: FUNCIÓN DE OFERTA | DH32: a | DI32: =mc_oferta_agregada!C21 -> 0.5 | DX32: SBF | DZ32: G | EA32: g0 | EC32: T | ED32: t0 | EE32: SBC | EG32: G | EH32: g0 | EJ32: T | EK32: t0 | EU32: G | EV32: g0 | EW32: T | EX32: t0 | EY32: Sfiscal | FB32: G | FC32: g0 | FD32: T | FE32: t0 | FF32: Sfiscal | FP32: FUNCIÓN DE OFERTA | FX32: FUNCIÓN DE OFERTA | GG32: a | GH32: =EX9 -> 0.5 | GI32: =FE9 -> 0.5 | HB32: FUNCIÓN DE DEMANDA | HF32: FUNCIÓN DE DEMANDA | HJ32: FUNCIÓN DE AHORRO
A33: Ns | B33: -a0 | C33: a1 | L33: x2 | M33: =mc_fn_produccion!C13 -> 300.0 | N33: =mc_fn_produccion!D13 -> 300.00 | AQ33: S | AR33: -s0 | AS33: s1 | AT33: g0 | AU33: t0 | AY33: S | BS33: P* | BU33: =mc_ofertas_netas!D8 -> 20.0 | CA33: P* | CB33: =mc_sector_externo!D8 -> 5.0 | CF33: 250.00 | CG33: Py | CH33: Ms | CI33: k | CL33: Ns | CM33: -a0 | CN33: a1 | DH33: x2 | DI33: =mc_oferta_agregada!C22 -> 300.0 | DX33: =EC33-DZ33 -> 0 | DZ33: =EA33 -> 150.0 | EA33: =mc_sistema_ampliado!C27 -> 150.0 | EC33: =ED33 -> 150.0 | ED33: =mc_sistema_ampliado!E27 -> 150.0 | EE33: =EC33-DZ33 -> 0 | EG33: =EH33 -> 150.0 | EH33: =EO28 -> 150.0 | EJ33: =EK33 -> 150.0 | EK33: =EP28 -> 150.0 | EU33: =EV33 -> 200.0 | EV33: =mc_sistema_graficas!B26 -> 200.0 | EW33: =EX33 -> 200.0 | EX33: =mc_sistema_graficas!D26 -> 200.0 | EY33: =EX33-EV33 -> 0 | FB33: =FC33 -> 260.0 | FC33: =FK8 -> 260.0 | FD33: =FE33 -> 200.0 | FE33: =FL8 -> 200.0 | FF33: =FE33-FC33 -> (60.0) | FP33: Ns | FQ33: -a0 | FR33: a1 | FS33: tmg | FX33: Ns | FY33: -a0 | FZ33: a1 | GA33: tmg | GG33: x2 | GH33: =EY9 -> 10092.0 | GI33: =FF9 -> 10092.0 | HB33: Py | HC33: Ms | HD33: k | HF33: Py | HG33: Ms | HH33: k | HJ33: S | HK33: -s0 | HL33: s1
A34: =C44 -> 300.0 | B34: =mc_mdo_trabajo!C6 -> (400.0) | C34: =mc_mdo_trabajo!D6 -> 3.0 | L34: b | M34: =mc_fn_produccion!C14 -> 0.5 | N34: =mc_fn_produccion!D14 -> 0.50 | AQ34: =AR34+AS34*AS42+AU34-AT34 -> 836.0 | AR34: =mc_mercado_prestables!C6 -> (425.0) | AS34: =mc_mercado_prestables!D6 -> 325.0 | AT34: =(mc_mercado_prestables!D13) -> 500.0 | AU34: =mc_mercado_prestables!D14 -> 500.0 | AY34: =AR34+AS34*AS42 -> 836.0 | CF34: 250.00 | CG34: =CH34/CI34 -> 800.0 | CH34: =mc_demanda_agregada!B9 -> 200.0 | CI34: =mc_demanda_agregada!B11 -> 0.3 | CL34: =CM44 -> 350.0 | CM34: =mc_oferta_agregada!C6 -> (400.0) | CN34: =mc_oferta_agregada!C7 -> 5.0 | DH34: b | DI34: =mc_oferta_agregada!C23 -> 0.5 | FP34: =FR44 -> 300.0 | FQ34: =EV13 -> (400.0) | FR34: =EW13 -> 2.0 | FS34: =EY15 -> 0.00 | FX34: =FB17 -> 300.0 | FY34: =FC13 -> (400.0) | FZ34: =FD13 -> 2.0 | GA34: =FF15 -> 0 | GG34: b | GH34: =EZ9 -> 0.5 | GI34: =FG9 -> 0.5 | HB34: =HC34/HD34 -> 2,000.0 | HC34: =mc_sistema_graficas!B17 -> 200.0 | HD34: =mc_sistema_graficas!C17 -> 0.1 | HF34: =HG34/HH34 -> 2,000.0 | HG34: =FC21 -> 200.0 | HH34: =FD21 -> 0.1 | HJ34: =HL45 -> 400.0 | HK34: =EV25 -> (400.0) | HL34: =EW25 -> 300.0 | HP34: 36
BS35: FUNCIÓN DE EXPORTACIONES | CA35: FUNCIÓN DE EXPORTACIONES | CF35: 250.00 | DZ35: FUNCIÓN DE EXPORTACIONES | EG35: FUNCIÓN DE EXPORTACIONES | EU35: FUNCIÓN DE EXPORTACIONES | FB35: FUNCIÓN DE EXPORTACIONES | HP35: =18+4 -> 22
BS36: X | BT36: e0 | CA36: X | CB36: e0 | CC36: e1 | CF36: 250.00 | CG36: m | CH36: =(CI25-CI5)/(CH25/CH5) -> (1.0) | DZ36: X | EA36: x0 | EB36: x1 | EC36: p*/p | EG36: X | EH36: x0 | EI36: x1 | EJ36: p*/p | EU36: X | EV36: x0 | EW36: x1 | EX36: p*/p | FB36: X | FC36: x0 | FD36: x1 | FE36: p*/p | HP36: =HP34-HP35 -> 14
A37: FUNCIÓN DE DEMANDA | L37: Cantidad x1 | M37: =M31 -> 300.0 | N37: =N31 -> 300.0 | AQ37: FUNCIÓN DE INVERSIÒN | AY37: FUNCIÓN DE INVERSIÒN | BT37: =mc_ofertas_netas!B12 -> 50.0 | CA37: =CE31 -> 250.0 | CB37: =mc_sector_externo!C15 -> 200.0 | CC37: =mc_sector_externo!D15 -> 50.0 | CL37: FUNCIÓN DE DEMANDA | DH37: Cantidad x1 | DI37: =DI31 -> 350.0 | DZ37: =EA37+(EB37*EC37) -> 400.0 | EA37: =mc_sistema_ampliado!C35 -> 300.0 | EB37: =mc_sistema_ampliado!D35 -> 100.0 | EC37: =EE21/DZ21 -> 1.00 | EG37: =EH37+(EI37*EJ37) -> 400.0 | EH37: =ER28 -> 300.0 | EI37: =EB37 -> 100.0 | EJ37: =EL21/EG21 -> 1.00 | EU37: =EV37+(EW37*EX37) -> 400.0 | EV37: =mc_sistema_graficas!B29 -> 300.0 | EW37: =mc_sistema_graficas!C29 -> 100.0 | EX37: =EZ21/EU21 -> 1.00 | FB37: =FC37+(FD37*FE37) -> 400.0 | FC37: =EV37*(1+mc_sistema_graficas!P3) -> 300.0 | FD37: =EW37 -> 100.0 | FE37: =FG21/FB21 -> 1.00 | FP37: FUNCIÓN DE DEMANDA | FX37: FUNCIÓN DE DEMANDA | GG37: Cantidad x1 | GH37: =GH31 -> 300.0 | GI37: =GI31 -> 300.0 | HJ37: FUNCIÓN DE INVERSIÒN
A38: Nd | B38: b0 | C38: -b1 | AQ38: I | AR38: i0 | AS38: -i1 | AT38: e0 | AU38: m0 | AV38: +i2 | AW38: RPI | AY38: I | CL38: Nd | CM38: b0 | CN38: -b1 | EE38: SBC | EL38: SBC | EZ38: SBC | FG38: SBC | FP38: Nd | FQ38: b0 | FR38: -b1 | FX38: Nd | FY38: b0 | FZ38: -b1 | HJ38: I | HK38: i0 | HL38: -i1 | HM38: g0 | HN38: t0 | HO38: e | HP38: q
A39: =C48 -> 300.0 | B39: =mc_mdo_trabajo!C10 -> 1,000.0 | C39: =mc_mdo_trabajo!D10 -> (3.0) | AQ39: =AR39+AS39*AS42+AV39*AW39+AT39-AU39 -> 836.0 | AR39: =mc_mercado_prestables!C10 -> 2,000.0 | AS39: =mc_mercado_prestables!D10 -> (300.0) | AT39: =mc_mercado_prestables!D18 -> 500.0 | AU39: =mc_mercado_prestables!D19 -> 500.0 | AV39: 0 | AW39: 0 | AY39: =AR39+AS39*AS42+AV39*AW39 -> 836.0 | BS39: FUNCIÓN DE IMPORTACIONES | CA39: FUNCIÓN DE IMPORTACIONES | CL39: =CM48 -> 350.0 | CM39: =mc_oferta_agregada!E6 -> 800.0 | CN39: =mc_oferta_agregada!E7 -> (3.0) | DZ39: FUNCIÓN DE IMPORTACIONES | EE39: =DZ37-DZ41 -> 0.001 | EG39: FUNCIÓN DE IMPORTACIONES | EL39: =EG37-EG41 -> 0.0 | EU39: FUNCIÓN DE IMPORTACIONES | EZ39: =EU37-EU41 -> 0.0 | FB39: FUNCIÓN DE IMPORTACIONES | FG39: =FB37-FB41 -> 0.0 | FP39: =FR48 -> 300.0 | FQ39: =EV17 -> 1,000.0 | FR39: =EW17 -> (2.0) | FX39: =FB17 -> 300.0 | FY39: =FC17 -> 1,000.0 | FZ39: =FD17 -> (2.0) | HJ39: =HL47 -> 400.0 | HK39: =EV29 -> 1,200.0 | HL39: =EW29 -> (300.0) | HM39: =EV33 -> 200.0 | HN39: =EX33 -> 200.0 | HO39: =EU37 -> 400.0 | HP39: =EU41 -> 400.0
L40: q1 | M40: =M31 -> 300.0 | N40: =N31 -> 300.0 | BS40: Q | BT40: q0 | CA40: Q | CB40: q0 | CC40: q1 | DH40: q1 | DI40: =DI31 -> 350.0 | DZ40: M | EA40: q0 | EB40: q1 | EC40: p*/p | EG40: M | EH40: q0 | EI40: q1 | EJ40: p*/p | EU40: M | EV40: q0 | EW40: q1 | EX40: p*/p | FB40: Q | FC40: q0 | FD40: q1 | FE40: p*/p | GG40: q1 | GH40: =GH31 -> 300.0 | GI40: =GI31 -> 300.0 | HJ40: =HM47 -> 370.0 | HK40: =FC29 -> 1,200.0 | HL40: =FD29 -> (300.0) | HM40: =FC33 -> 260.0 | HN40: =FE33 -> 200.0 | HO40: =FB37 -> 400.0 | HP40: =FB41 -> 400.0
L41: PT | M41: =M29 -> 300.0 | N41: =N29 -> 300.0 | BT41: =BT37 -> 50.0 | CA41: =CE32 -> 250.0 | CB41: =mc_sector_externo!C19 -> 300.0 | CC41: =mc_sector_externo!D19 -> (50.0) | CM41: P0 | CN41: P1 | CO41: P2 | DH41: PT | DI41: =DI29 -> 324.0 | DZ41: =EA41+(EB41*EC41) -> 400.0 | EA41: =mc_sistema_ampliado!C39 -> 500.0 | EB41: =mc_sistema_ampliado!D39 -> (100.0) | EC41: =EE21/DZ21 -> 1.00 | EG41: =EH41+(EI41*EJ41) -> 400.0 | EH41: =ES28 -> 500.0 | EI41: =EB41 -> (100.0) | EJ41: =EL21/EG21 -> 1.00 | EU41: =EV41+(EW41*EX41) -> 400.0 | EV41: =mc_sistema_graficas!B32 -> 500.0 | EW41: =mc_sistema_graficas!C32 -> (100.0) | EX41: =EZ21/EU21 -> 1.00 | FB41: =FC41+(FD41*FE41) -> 400.0 | FC41: =EV41*(1+mc_sistema_graficas!Q3) -> 500.0 | FD41: =EW41 -> (100.0) | FE41: =FG21/FB21 -> 1.00 | GG41: PT | GH41: =GH29 -> 1,740.0 | GI41: =GI29 -> 1,740.0
A42: W/P* | C42: =(B34-B39)/(C39-C34) -> 233.3 | L42: PMe | M42: =M41/M40 -> 1.0 | N42: =N41/N40 -> 1.0 | AQ42: r* | AS42: =(AR39+AV39*AW39+AT39-AU39+(AR34*-1)-AU34+AT34)/(AS34-AS39) -> 3.9 | CA42: SBC | CG42: Unidades | CH42: Y | CI42: P | CL42: W | CM42: =(CM51*($CM$34-$CM$39))/(-$CN$34+$CN$39) -> 150.0 | CN42: =(CN51*($CM$34-$CM$39))/(-$CN$34+$CN$39) -> 150.0 | CO42: =(CO51*($CM$34-$CM$39))/(-$CN$34+$CN$39) -> 150.0 | DH42: PMe | DI42: =DI41/DI40 -> 0.9 | FP42: W/P* | FR42: =(FQ34-FQ39)/(FR39-(FR34*(1-FS34))) -> 350.0 | FX42: W/P* | FZ42: =(FY34-FY39)/(FZ39-(FZ34*(1-GA34))) -> 350.0 | GG42: PMe | GH42: =GH41/GH40 -> 5.8 | GI42: =GI41/GI40 -> 5.8 | HL42: ORIGINAL | HM42: MODIFICADA
A43: N* | C43: =((C39*B34)-(B39*C34))/(C39-C34) -> 300.0 | L43: PMg | M43: =(M31^(M32-1))*(M33^M34)*M30*M32 -> 0.50 | N43: =(N31^(N32-1))*(N33^N34)*N30*N32 -> 0.50 | AQ43: S* = I* | AS43: =(((AR34+AU34-AT34)*(AS34+(AS39*-1)))+(AS34*(AR39+AT39-AU39+AV39*AW39+(AR34*-1)-AU34+AT34)))/(AS34+(AS39*-1)) -> 836.0 | CA43: =CA37-CA41 -> 0 | CG43: 0.025 | CH43: =CG43*$CG$75 -> 20.0 | CI43: =$CG$75/CH43 -> 40.0 | CL43: N* | CM43: =(($CM$34*$CN$39)-($CN$34*$CM$39))/(-$CN$34+$CN$39) -> 350.0 | CN43: =(($CM$34*$CN$39)-($CN$34*$CM$39))/(-$CN$34+$CN$39) -> 350.0 | CO43: =(($CM$34*$CN$39)-($CN$34*$CM$39))/(-$CN$34+$CN$39) -> 350.0 | DH43: PMg | DI43: =(DI31^(DI32-1))*(DI33^DI34)*DI30*DI32 -> 0.46 | EU43: Y | EV43: C | EW43: I | EX43: G | EY43: XN | FP43: N* | FR43: =FQ39+(FR39*(FQ34-FQ39)/(FR39-(FR34*(1-FS34)))) -> 300.0 | FX43: N* | FZ43: =FY39+(FZ39*(FY34-FY39)/(FZ39-(FZ34*(1-GA34)))) -> 300.0 | GG43: PMg | GH43: =(GH31^(GH32-1))*(GH33^GH34)*GH30*GH32 -> 2.90 | GI43: =(GI31^(GI32-1))*(GI33^GI34)*GI30*GI32 -> 2.90 | HJ43: r* | HL43: =(HK39+HM39-HN39-HK34+HO39-HP39)/(HL34-HL39) -> 2.67 | HM43: =(HK40+HM40-HN40-HK34+HO40-HP40)/(HL34-HL40) -> 2.77
A44: Ns* | C44: =B34+(C34*C42) -> 300.0 | AQ44: S* privado | AS44: =AR34+AS34*AS42 -> 836.0 | CG44: 0.05 | CH44: =CG44*$CG$75 -> 40.0 | CI44: 20.0 | CL44: Ns* | CM44: =$CM$34+($CN$34*(CM42/CM51)) -> 350.0 | CN44: =$CM$34+($CN$34*(CN42/CN51)) -> 350.0 | CO44: =$CM$34+($CN$34*(CO42/CO51)) -> 350.0 | DZ44: C | EG44: C | EU44: =EU9 -> 1,740.0000000 | EV44: =EU44-EW44-EX44+EY44 -> 1,140.0000011 | EW44: =EY29 -> 400.0000011 | EX44: =EV33 -> 200.0000000 | EY44: =EY50 -> 0.0000022 | FP44: Ns* | FR44: =FQ34+(FR34*(FR42*(1-FS34))) -> 300.0 | FX44: Ns* | FZ44: =FY34+(FZ34*(FZ42*(1-GA34))) -> 300.0 | HJ44: S*, I* | HL44: =(((HK34+HN39-HM39)*(HL34-HL39))+(HL34*(HK39+HO39-HP39-HK34-HN39+HM39)))/(HL34-HL39) -> 400.0 | HM44: =(((HK34+HN40-HM40)*(HL34-HL40))+(HL34*(HK40+HO40-HP40-HK34-HN40+HM40)))/(HL34-HL40) -> 370.0
AQ45: S* GOBIERNO | AS45: =AU34-AT34 -> 0.0 | CG45: 0.1 | CH45: =CG45*$CG$75 -> 80.0 | CI45: 10.0 | HJ45: S privado | HL45: =HK34+(HL34*HL43) -> 400.0 | HM45: =HK34+(HL34*HM43) -> 430.0
AQ46: S* privado+publico | AS46: =AS44+AS45 -> 836.0 | CG46: 0.15 | CH46: 120.0 | CI46: 6.7 | HJ46: Dif I + Gob | HL46: =HN39-HM39 -> 0.0 | HM46: =HN40-HM40 -> -60.0
AQ47: I Privada | AS47: =AR39+AS39*AS42+AV39*AW39 -> 836.0 | CG47: 0.2 | CH47: 160.0 | CI47: 5.0 | HJ47: I Privada | HL47: =HK39+(HL39*HL43) -> 400.0 | HM47: =HK40+(HL40*HM43) -> 370.0
A48: Nd* | C48: =B39+(C39*C42) -> 300.0 | AQ48: I Externa | AS48: =AT39-AU39 -> 0.0 | CG48: 0.25 | CH48: 200.0 | CI48: 4.0 | CL48: Nd* | CM48: =$CM$39+($CN$39*(CM42/CM51)) -> 350.0 | CN48: =$CM$39+($CN$39*(CN42/CN51)) -> 350.0 | CO48: =$CM$39+($CN$39*(CO42/CO51)) -> 350.0 | DZ48: =DZ9-ED29-DZ37+DZ41-EA33 -> 94.0 | EG48: =EG9-EK29-EG37+EG41-EH33 -> 94.0 | FP48: Nd* | FR48: =FQ39+(FR39*FR42) -> 300.0 | FX48: Nd* | FZ48: =FY39+(FZ39*FZ42) -> 300.0 | HJ48: saldo bc | HL48: =HO39-HP39 -> 0.0 | HM48: =HO40-HP40 -> 0.0
AQ49: I Total | AS49: =AR39+AS39*AS42+AV39*AW39+AT39-AU39 -> 836.0 | CG49: 0.3 | CH49: 240.0 | CI49: 3.3 | EW49: X | EX49: Q | EY49: XN | HJ49: itotal | HL49: =HL47+HL48 -> 400.0 | HM49: =HM47+HM48 -> 370.0
AQ50: suma de inv | AS50: =AS47+AS48 -> 836.0 | CG50: 0.35 | CH50: 280.0 | CI50: 2.9 | CM50: P0 | CN50: P1 | CO50: P2 | EW50: =EU37 -> 400.0 | EX50: =EU41 -> 400.0 | EY50: =EW50-EX50 -> 0.0 | FP50: P0 | FQ50: P1 | FR50: P2
CG51: 0.4 | CH51: 320.0 | CI51: 2.5 | CM51: =mc_oferta_agregada!C10 -> 1.0 | CN51: =mc_oferta_agregada!D10 -> 1.0 | CO51: =mc_oferta_agregada!E10 -> 1.0 | FP51: =EU21 -> 1.1 | FQ51: =FP51*1.25 -> 1.44 | FR51: =FP51*1.5 -> 1.7
AQ52: Balance Fiscal | AS52: =AU34-AT34 -> 0 | CG52: 0.45 | CH52: 360.0 | CI52: 2.2
AQ53: Balanza Comercial | AS53: =AT39-AU39 -> 0 | CG53: 0.5 | CH53: 400.0 | CI53: 2.0
CG54: 0.55 | CH54: 440.0 | CI54: 1.8
CG55: 0.6 | CH55: 480.0 | CI55: 1.7
CG56: 0.65 | CH56: 520.0 | CI56: 1.5
CG57: 0.7 | CH57: 560.0 | CI57: 1.4
CG58: 0.75 | CH58: 600.0 | CI58: 1.3
CG59: 0.8 | CH59: 640.0 | CI59: 1.3
CG60: 0.85 | CH60: 680.0 | CI60: 1.2
CG61: 0.9 | CH61: 720.0 | CI61: 1.1
CG62: 0.95 | CH62: 760.0 | CI62: 1.1
CG63: 1 | CH63: 800.0 | CI63: 1.0
CG73: FUNCIÓN DE DEMANDA
CG74: Py | CH74: Ms | CI74: k
CG75: =CH75/CI75 -> 800.0 | CH75: =mc_demanda_agregada!$C$9 -> 200.0 | CI75: =mc_demanda_agregada!$C$11 -> 0.3
CG77: m | CH77: =(CI63-CI43)/(CH63/CH43) -> (1.0)
M154: MODELO DE HICKS
A155: SISTEMA DE ECUACIONES DEL MODELO "HICKS" | X155: M% | Y155: Var. Ak | Z155: Var. Ac | AA155: var. a | AB155: var. b | AC155: W% | AD155: S
B156: PRODUCTO | L156: PRODUCTO | R156: PRODUCTO | X156: =S158-M158 -> 0 | Y156: =S164-M164 -> 0.00 | Z156: =S167-M167 -> 0.00 | AA156: =U164-O164 -> 0.00 | AB156: =U167-O167 -> 0.00 | AC156: =R191 -> 100.00 | AD156: =S179 -> -25.00
B157: Y | C157: M | D157: V | L157: Y | M157: M | N157: V | R157: Y | S157: M | T157: V | X157: =ma_sistema_graficashicks!M3 -> 0% | Y157: =ma_sistema_graficashicks!N3 -> 0% | Z157: =ma_sistema_graficashicks!O3 -> 0% | AA157: =ma_sistema_graficashicks!M6 -> 0 | AB157: =ma_sistema_graficashicks!N6 -> 0 | AC157: =ma_sistema_graficashicks!O6 -> 0 | AD157: =ma_sistema_graficashicks!P6 -> 0
B158: =D158*C158 -> 196,786.40 | C158: 49,196.6 | D158: 4.00 | H158: VALORES DE EQUILIBRIO | L158: =N158*M158 -> 275,000.00 | M158: =ma_sistema_graficashicks!B5 -> 55,000.0 | N158: =ma_sistema_graficashicks!C5 -> 5.00 | R158: =T158*S158 -> 275,000.00 | S158: =M158*(1+X157) -> 55,000.0 | T158: =N158 -> 5.00 | AC158: =X157 -> 0%
B159: PRODUCTO | H159: Y | I159: =+B158 -> 196,786.4 | L159: PRODUCTO | R159: PRODUCTO
B160: Y | C160: I | D160: C | H160: C | I160: =+D161 -> 98,392.6 | L160: Y | M160: I | N160: C | R160: Y | S160: I | T160: C
B161: =+B158 -> 196,786.40 | C161: =+B182 -> 98,393.8 | D161: =B161-C161 -> 98,392.6 | H161: I | I161: =B182 -> 98,393.8 | L161: =+L158 -> 275,000.00 | M161: =+L182 -> 98,393.8 | N161: =L161-M161 -> 176,606.2 | R161: =+R158 -> 275,000.00 | S161: =+R182 -> 98,393.8 | T161: =R161-S161 -> 176,606.2
B162: FUNCIÓN DE PRODUCCIÓN (BIENES DE CAPITAL) | H162: S | I162: =B179 -> 98,393.8 | L162: FUNCIÓN DE PRODUCCIÓN (BIENES DE CAPITAL) | R162: FUNCIÓN DE PRODUCCIÓN (BIENES DE CAPITAL)
B163: k | C163: Ak | D163: Nk | E163: a | H163: k | I163: =D194 -> 221.8 | L163: k | M163: Ak | N163: Nk | O163: a | R163: k | S163: Ak | T163: Nk | U163: a
B164: =C164*(D164^E164) -> 221.8 | C164: 10.00 | D164: =+B173 -> 492.0 | E164: 0.50 | H164: c | I164: =F194 -> 221.8 | L164: =M164*(N164^O164) -> 221.80 | M164: =ma_sistema_graficashicks!B11 -> 10.00 | N164: =+L173 -> 491.97 | O164: =ma_sistema_graficashicks!D11 -> 0.50 | R164: =S164*(T164^U164) -> 221.80 | S164: =M164+Y157 -> 10.00 | T164: =+R173 -> 491.97 | U164: =O164+AA157 -> 0.50 | X164: VALORES DE EQUILIBRIO
B165: FUNCIÓN DE PRODUCCIÓN (BIENES DE CONSUMO) | H165: r | I165: =E179 -> 11.7 | L165: FUNCIÓN DE PRODUCCIÓN (BIENES DE CONSUMO) | R165: FUNCIÓN DE PRODUCCIÓN (BIENES DE CONSUMO) | X165: Y | Y165: =+L158 -> 275,000.0 | Z165: =R158 -> 275,000.0 | AA165: =Z165-Y165 -> 0 | AB165: =(Z165/Y165)-1 -> 0.0%
B166: c | C166: Ac | D166: Ns | E166: b | H166: Nk | I166: =B173 -> 492.0 | L166: c | M166: Ac | N166: Ns | O166: b | R166: c | S166: Ac | T166: Ns | U166: b | X166: M | Y166: =M158 -> 55,000.0 | Z166: =S158 -> 55,000.0 | AA166: =Z166-Y166 -> 0 | AB166: 0.0%
B167: =C167*(D167^E167) -> 221.8 | C167: 10.00 | D167: =+B176 -> 492.0 | E167: 0.50 | H167: Nc | I167: =B176 -> 492.0 | L167: =M167*(N167^O167) -> 297.16 | M167: =ma_sistema_graficashicks!B14 -> 10.00 | N167: =+L176 -> 883.03 | O167: =ma_sistema_graficashicks!D14 -> 0.50 | R167: =S167*(T167^U167) -> 297.16 | S167: =M167+Z157 -> 10.00 | T167: =+R176 -> 883.03 | U167: =O167+AB157 -> 0.50 | X167: C | Y167: =+N161 -> 176,606.2 | Z167: =T161 -> 176,606.2 | AA167: 0 | AB167: 0.0%
H168: Pk | I168: =+B185 -> 443.6 | X168: I | Y168: =L182 -> 98,393.8 | Z168: =R182 -> 98,393.8 | AA168: 0 | AB168: 0.0%
H169: Pc | I169: =+B188 -> 443.6 | X169: S | Y169: =L179 -> 98,393.8 | Z169: =R179 -> 98,393.8 | AA169: 0 | AB169: 0.0%
H170: w | I170: =+B191 -> 100.00 | X170: k | Y170: =L164 -> 221.8 | Z170: =R164 -> 221.8 | AA170: 0 | AB170: 0.0%
B171: FUNCIÓN DE DEMANDA DE TRABAJO (BIENES DE CAPITAL) | L171: FUNCIÓN DE DEMANDA DE TRABAJO (BIENES DE CAPITAL) | R171: FUNCIÓN DE DEMANDA DE TRABAJO (BIENES DE CAPITAL) | X171: c | Y171: =L167 -> 297.2 | Z171: =R167 -> 297.2 | AA171: 0 | AB171: 0.0%
B172: Nk | C172: a | D172: W | E172: Ak | F172: Pk | L172: Nk | M172: a | N172: W | O172: Ak | P172: Pk | R172: Nk | S172: a | T172: W | U172: Ak | V172: Pk | X172: r | Y172: =O179 -> 11.7 | Z172: =U179 -> 11.7 | AA172: 0 | AB172: =(Z172/Y172)-1 -> 0.0%
B173: =(D173/(C173*F173*E173))^(1/(C173-1)) -> 492.0 | C173: =E164 -> 0.5 | D173: =B191 -> 100.00 | E173: =C164 -> 10.0 | F173: =B185 -> 443.6 | L173: =(N173/(M173*P173*O173))^(1/(M173-1)) -> 492.0 | M173: =O164 -> 0.5 | N173: =L191 -> 100.00 | O173: =M164 -> 10.0 | P173: =L185 -> 443.6 | R173: =(T173/(S173*V173*U173))^(1/(S173-1)) -> 492.0 | S173: =O164+AA157 -> 0.50 | T173: =R191 -> 100.00 | U173: =O173+Y157 -> 10.00 | V173: =R185 -> 443.6 | X173: Nk | Y173: =L173 -> 492.0 | Z173: =R173 -> 492.0 | AA173: 0 | AB173: 0.0%
B174: FUNCIÓN DE DEMANDA DE TRABAJO (BIENES DE CONSUMO) | L174: FUNCIÓN DE DEMANDA DE TRABAJO (BIENES DE CONSUMO) | R174: FUNCIÓN DE DEMANDA DE TRABAJO (BIENES DE CONSUMO) | X174: Nc | Y174: =L176 -> 883.0 | Z174: =R176 -> 883.0 | AA174: 0 | AB174: 0.0%
B175: Nc | C175: b | D175: W | E175: Ac | F175: Pc | L175: Nc | M175: b | N175: W | O175: Ac | P175: Pc | R175: Nc | S175: b | T175: W | U175: Ac | V175: Pc | X175: N | Y175: =Y174+Y173 -> 1,375.00 | Z175: =Z174+Z173 -> 1,375.00 | AA175: 0 | AB175: 0.0%
B176: =(D176/(C176*F176*E176))^(1/(C176-1)) -> 492.0 | C176: =E167 -> 0.5 | D176: =B191 -> 100.00 | E176: =C167 -> 10.0 | F176: =B188 -> 443.6 | L176: =(N176/(M176*P176*O176))^(1/(M176-1)) -> 883.0 | M176: =O167 -> 0.5 | N176: =L191 -> 100.00 | O176: =M167 -> 10.0 | P176: =L188 -> 594.3 | R176: =(T176/(S176*V176*U176))^(1/(S176-1)) -> 883.0 | S176: =O167+AB157 -> 0.50 | T176: =R191 -> 100.00 | U176: =O176+Z157 -> 10.00 | V176: =R188 -> 594.3 | X176: Pk | Y176: =+L185 -> 443.6 | Z176: =R185 -> 443.6 | AA176: 0 | AB176: 0.0%
B177: FUNCIÓN AHORRO PRIVADO | L177: FUNCIÓN AHORRO PRIVADO | R177: FUNCIÓN AHORRO PRIVADO | X177: Pc | Y177: =+L188 -> 594.3 | Z177: =R188 -> 594.3 | AA177: 0 | AB177: 0.0%
B178: S | C178: s0 | D178: s1 | E178: r | L178: S | M178: s0 | N178: s1 | O178: r | R178: S | S178: s0 | T178: s1 | U178: r | X178: W | Y178: =+L191 -> 100.00 | Z178: =R191 -> 100.00 | AA178: 0 | AB178: 0.0%
B179: =C179+(D179*E179) -> 98,393.8 | C179: (25.0) | D179: 8,400.0 | E179: =(C182-C179)/(D179-D182) -> 11.7 | L179: =M179+(N179*O179) -> 98,393.8 | M179: =ma_sistema_graficashicks!B23 -> (25.0) | N179: =ma_sistema_graficashicks!C23 -> 8,400.0 | O179: =(M182-M179)/(N179-N182) -> 11.7 | R179: =S179+(T179*U179) -> 98,393.8 | S179: =M179*(1+X157)-AD157 -> -25.00 | T179: =N179 -> 8,400.00 | U179: =(S182-(S179))/(T179-(T182)) -> 11.7
B180: FUNCIÓN INVERSIÓN PRIVADA | L180: FUNCIÓN INVERSIÓN PRIVADA | R180: FUNCIÓN INVERSIÓN PRIVADA
B181: I | C181: i0 | D181: -i1 | E181: r | L181: I | M181: i0 | N181: -i1 | O181: r | R181: I | S181: i0 | T181: -i1 | U181: r
B182: =C182+(D182*E182) -> 98,393.8 | C182: 280,000.0 | D182: (15,500.0) | E182: =+E179 -> 11.7 | L182: =M182+(N182*O182) -> 98,393.8 | M182: =ma_sistema_graficashicks!B26 -> 280,000.0 | N182: =ma_sistema_graficashicks!C26 -> (15,500.0) | O182: =+O179 -> 11.7 | R182: =S182+(T182*U182) -> 98,393.8 | S182: =M182*(1+X157) -> 280,000.00 | T182: =N182 -> -15,500.00 | U182: =+U179 -> 11.7
B183: PRECIO DE CAPITAL | L183: PRECIO DE CAPITAL | R183: PRECIO DE CAPITAL
B184: Pk | C184: w | D184: a | E184: I | F184: Ak | L184: Pk | M184: w | N184: a | O184: I | P184: Ak | R184: Pk | S184: w | T184: a | U184: I | V184: Ak
B185: =(E185/(F185*((C185/(D185*F185))^(D185/(D185-1)))))^(1-D185) -> 443.61 | C185: =B191 -> 100.00 | D185: =E164 -> 0.50 | E185: =C161 -> 98,393.8 | F185: =C164 -> 10.00 | L185: =(O185/(P185*((M185/(N185*P185))^(N185/(N185-1)))))^(1-N185) -> 443.61 | M185: =L191 -> 100.00 | N185: =O164 -> 0.50 | O185: =M161 -> 98,393.8 | P185: =M164 -> 10.00 | R185: =(U185/(V185*((S185/(T185*V185))^(T185/(T185-1)))))^(1-T185) -> 443.61 | S185: =R191 -> 100.00 | T185: =N185+AA157 -> 0.50 | U185: =S161 -> 98,393.8 | V185: =P185+Y157 -> 10.00
B186: PRECIO DE CONSUMO | L186: PRECIO DE CONSUMO | R186: PRECIO DE CONSUMO
B187: Pc | C187: w | D187: b | E187: C | F187: Ac | L187: Pc | M187: w | N187: b | O187: C | P187: Ac | R187: Pc | S187: w | T187: b | U187: C | V187: Ac
B188: =(E188/(F188*((C188/(D188*F188))^(D188/(D188-1)))))^(1-D188) -> 443.60 | C188: =C185 -> 100.00 | D188: =E167 -> 0.50 | E188: =D161 -> 98,392.6 | F188: =C167 -> 10.00 | L188: =(O188/(P188*((M188/(N188*P188))^(N188/(N188-1)))))^(1-N188) -> 594.32 | M188: =M185 -> 100.00 | N188: =O167 -> 0.50 | O188: =N161 -> 176,606.2 | P188: =M167 -> 10.00 | R188: =(U188/(V188*((S188/(T188*V188))^(T188/(T188-1)))))^(1-T188) -> 594.32 | S188: =R191 -> 100.00 | T188: =N188+AB157 -> 0.50 | U188: =T161 -> 176,606.2 | V188: =P188+Z157 -> 10.00
B189: SALARIO | L189: SALARIO | R189: SALARIO
B190: w | L190: w | R190: w
B191: 100.00 | L191: =ma_sistema_graficashicks!A35 -> 100.00 | R191: =L191*(1+AC158+AC157) -> 100.00
B192: PRODUCTO | L192: PRODUCTO | N192: =N194*M194 -> 98,393.83 | P192: =P194*O194 -> 176,606.17 | R192: PRODUCTO | T192: =R164*R185 -> 98,393.83 | V192: =T164*T185 -> 245.98
B193: Y | C193: Pk | D193: K | E193: Pc | F193: c | L193: Y | M193: Pk | N193: K | O193: Pc | P193: c | R193: Y | S193: Pk | T193: K | U193: Pc | V193: c
B194: =+(C194*D194)+(E194*F194) -> 196,786.40 | C194: =+B185 -> 443.6 | D194: =+B164 -> 221.80 | E194: =+B188 -> 443.60 | F194: =+B167 -> 221.80 | L194: =+(M194*N194)+(O194*P194) -> 275,000.00 | M194: =+L185 -> 443.6 | N194: =+L164 -> 221.80 | O194: =+L188 -> 594.32 | P194: =+L167 -> 297.16 | R194: =+(S194*T194)+(U194*V194) -> 275,000.00 | S194: =+R185 -> 443.6 | T194: =+R164 -> 221.80 | U194: =+R188 -> 594.32 | V194: =+R167 -> 297.16
B195: frontera de posibilidades de producción | L195: frontera de posibilidades de producción | R195: frontera de posibilidades de producción
B196: K | C196: C | D196: pk/pc | L196: K | M196: C | N196: pk/pc | R196: K | S196: C | T196: pk/pc
B197: =C164*(B201^(E164)) -> 313.7 | C197: =C167*(B201^(E167)) -> 313.7 | D197: =B185/B188 -> 1.00 | L197: =M164*(L201^(O164)) -> 370.8 | M197: =M167*(L201^(O167)) -> 370.8 | N197: =L185/L188 -> 0.75 | R197: =S164*(B201^(U164)) -> 313.7 | S197: =S167*(B201^(U167)) -> 313.7 | T197: =R185/R188 -> 0.75
B199: FUNCIÓN DE OFERTA DE TRABAJO | L199: FUNCIÓN DE OFERTA DE TRABAJO
B200: Ns | L200: Ns
B201: =B176+B173 -> 984 | L201: =L176+L173 -> 1,375
A207: MODELO ORIGINAL
B209: FUNCIÓN DE PRODUCCIÓN | N209: MERCADO LABORAL
A210: Ponderador | B210: Nc | C210: c | D210: xline | F210: pline | H210: Nk | I210: k | J210: xline | L210: pline | N210: Pmc | O210: Pmk | P210: w | Q210: xlinec | S210: plinec | U210: xlinek | W210: salario | Y210: y1 Line | AA210: PMg | AB210: x1 line | AD210: y1 Line
A211: 0 | B211: =A211*$L$176*1.2 -> 0 | C211: =$M$167*(B211^$O$167) -> 0 | D211: =$L$176 -> 883.03 | E211: =$L$167*A211 -> 0 | F211: =$L$176*A211 -> 0 | G211: =$L$167 -> 297.16 | H211: =A211*$L$173*1.2 -> 0 | I211: =$M$164*(H211^$O$164) -> 0 | J211: =$L$173 -> 491.97 | K211: =$L$164*A211 -> 0 | L211: =A211*$L$173 -> 0 | M211: =$L$164 -> 221.80 | N211: 0 | O211: 0 | P211: =$L$191 -> 100.00 | Q211: =$L$176 -> 883.03 | R211: =$L$191*A211 -> 0 | S211: =$L$176*A211 -> 0 | T211: =$L$191 -> 100.00 | U211: =$L$173 -> 491.97 | V211: =$P$211*A211 -> 0 | W211: =(MAX($B$231,$H$231))*A211 -> 0 | X211: =$P$211 -> 100.00 | Y211: =$N$31*A211 -> 0 | Z211: =$N$29 -> 300.00 | AB211: =$N$31 -> 300.00 | AC211: =A211*$N$43 -> 0 | AD211: =A211*$N$31 -> 0 | AE211: =$N$43 -> 0.50
A212: 0.05 | B212: =A212*$L$176*1.2 -> 52.98 | C212: =$M$167*(B212^$O$167) -> 72.79 | D212: =$L$176 -> 883.03 | E212: =$L$167*A212 -> 14.86 | F212: =$L$176*A212 -> 44.15 | G212: =$L$167 -> 297.16 | H212: =A212*$L$173*1.2 -> 29.52 | I212: =$M$164*(H212^$O$164) -> 54.33 | J212: =$L$173 -> 491.97 | K212: =$L$164*A212 -> 11.09 | L212: =A212*$L$173 -> 24.60 | M212: =$L$164 -> 221.80 | N212: =($O$167*$M$167*(B212^($O$167-1)))*$L$188 -> 408.25 | O212: =($O$164*$M$164*(H212^($O$164-1)))*$L$185 -> 408.25 | P212: =$L$191 -> 100.00 | Q212: =$L$176 -> 883.03 | R212: =$L$191*A212 -> 5.00 | S212: =$L$176*A212 -> 44.15 | T212: =$L$191 -> 100.00 | U212: =$L$173 -> 491.97 | V212: =$P$211*A212 -> 5.00 | W212: =(MAX($B$231,$H$231))*A212 -> 52.98 | X212: =$P$211 -> 100.00 | Y212: =$N$31*A212 -> 15.00 | Z212: =$N$29 -> 300.00 | AA212: =S212*T212*(R212^(T212-1))*(U212^V212) -> 2.007546581e+86 | AB212: =$N$31 -> 300.00 | AC212: =A212*$N$43 -> 0.03 | AD212: =A212*$N$31 -> 15.00 | AE212: =$N$43 -> 0.50
A213: 0.10 | B213: 105.96 | C213: 102.94 | D213: 883.03 | E213: 29.72 | F213: 88.30 | G213: 297.16 | H213: 59.04 | I213: 76.84 | J213: 491.97 | K213: 22.18 | L213: 49.20 | M213: 221.80 | N213: =($O$167*$M$167*(B213^($O$167-1)))*$L$188 -> 288.68 | O213: =($O$164*$M$164*(H213^($O$164-1)))*$L$185 -> 288.68 | P213: 100.00 | Q213: 883.03 | R213: 10.00 | S213: 88.30 | T213: 100.00 | U213: 491.97 | V213: 10.00 | W213: 105.96 | X213: 100.00 | Y213: 30.00 | Z213: 300.00 | AA213: 7.334229817e+129 | AB213: 300.00 | AC213: 0.05 | AD213: 30.00 | AE213: 0.50
A214: 0.15 | B214: 158.95 | C214: 126.07 | D214: 883.03 | E214: 44.57 | F214: 132.45 | G214: 297.16 | H214: 88.55 | I214: 94.10 | J214: 491.97 | K214: 33.27 | L214: 73.80 | M214: 221.80 | N214: 235.70 | O214: 235.70 | P214: 100.00 | Q214: 883.03 | R214: 15.00 | S214: 132.45 | T214: 100.00 | U214: 491.97 | V214: 15.00 | W214: 158.95 | X214: 100.00 | Y214: 45.00 | Z214: 300.00 | AA214: 8.593493187e+160 | AB214: 300.00 | AC214: 0.08 | AD214: 45.00 | AE214: 0.50
A215: 0.20 | B215: 211.93 | C215: 145.58 | D215: 883.03 | E215: 59.43 | F215: 176.61 | G215: 297.16 | H215: 118.07 | I215: 108.66 | J215: 491.97 | K215: 44.36 | L215: 98.39 | M215: 221.80 | N215: 204.12 | O215: 204.12 | P215: 100.00 | Q215: 883.03 | R215: 20.00 | S215: 176.61 | T215: 100.00 | U215: 491.97 | V215: 20.00 | W215: 211.93 | X215: 100.00 | Y215: 60.00 | Z215: 300.00 | AA215: 7.722051876e+186 | AB215: 300.00 | AC215: 0.10 | AD215: 60.00 | AE215: 0.50
A216: 0.25 | B216: 264.91 | C216: 162.76 | D216: 883.03 | E216: 74.29 | F216: 220.76 | G216: 297.16 | H216: 147.59 | I216: 121.49 | J216: 491.97 | K216: 55.45 | L216: 122.99 | M216: 221.80 | N216: 182.57 | O216: 182.57 | P216: 100.00 | Q216: 883.03 | R216: 25.00 | S216: 220.76 | T216: 100.00 | U216: 491.97 | V216: 25.00 | W216: 264.91 | X216: 100.00 | Y216: 75.00 | Z216: 300.00 | AA216: 1.092504747e+210 | AB216: 300.00 | AC216: 0.13 | AD216: 75.00 | AE216: 0.50
A217: 0.30 | B217: 317.89 | C217: 178.30 | D217: 883.03 | E217: 89.15 | F217: 264.91 | G217: 297.16 | H217: 177.11 | I217: 133.08 | J217: 491.97 | K217: 66.54 | L217: 147.59 | M217: 221.80 | N217: 166.67 | O217: 166.67 | P217: 100.00 | Q217: 883.03 | R217: 30.00 | S217: 264.91 | T217: 100.00 | U217: 491.97 | V217: 30.00 | W217: 317.89 | X217: 100.00 | Y217: 90.00 | Z217: 300.00 | AA217: 2.607577677e+231 | AB217: 300.00 | AC217: 0.15 | AD217: 90.00 | AE217: 0.50
A218: 0.35 | B218: 370.87 | C218: 192.58 | D218: 883.03 | E218: 104.01 | F218: 309.06 | G218: 297.16 | H218: 206.63 | I218: 143.75 | J218: 491.97 | K218: 77.63 | L218: 172.19 | M218: 221.80 | N218: 154.30 | O218: 154.30 | P218: 100.00 | Q218: 883.03 | R218: 35.00 | S218: 309.06 | T218: 100.00 | U218: 491.97 | V218: 35.00 | W218: 370.87 | X218: 100.00 | Y218: 105.00 | Z218: 300.00 | AA218: 3.720536201e+251 | AB218: 300.00 | AC218: 0.18 | AD218: 105.00 | AE218: 0.50
A219: 0.40 | B219: 423.85 | C219: 205.88 | D219: 883.03 | E219: 118.86 | F219: 353.21 | G219: 297.16 | H219: 236.15 | I219: 153.67 | J219: 491.97 | K219: 88.72 | L219: 196.79 | M219: 221.80 | N219: 144.34 | O219: 144.34 | P219: 100.00 | Q219: 883.03 | R219: 40.00 | S219: 353.21 | T219: 100.00 | U219: 491.97 | V219: 40.00 | W219: 423.85 | X219: 100.00 | Y219: 120.00 | Z219: 300.00 | AA219: 6.75288804e+270 | AB219: 300.00 | AC219: 0.20 | AD219: 120.00 | AE219: 0.50
A220: 0.45 | B220: 476.84 | C220: 218.37 | D220: 883.03 | E220: 133.72 | F220: 397.36 | G220: 297.16 | H220: 265.66 | I220: 162.99 | J220: 491.97 | K220: 99.81 | L220: 221.39 | M220: 221.80 | N220: 136.08 | O220: 136.08 | P220: 100.00 | Q220: 883.03 | R220: 45.00 | S220: 397.36 | T220: 100.00 | U220: 491.97 | V220: 45.00 | W220: 476.84 | X220: 100.00 | Y220: 135.00 | Z220: 300.00 | AA220: 2.537646426e+289 | AB220: 300.00 | AC220: 0.23 | AD220: 135.00 | AE220: 0.50
A221: 0.50 | B221: =A221*$L$176*1.2 -> 529.82 | C221: 230.18 | D221: 883.03 | E221: 148.58 | F221: 441.52 | G221: 297.16 | H221: 295.18 | I221: 171.81 | J221: 491.97 | K221: 110.90 | L221: 245.98 | M221: 221.80 | N221: 129.10 | O221: 129.10 | P221: 100.00 | Q221: 883.03 | R221: 50.00 | S221: 441.52 | T221: 100.00 | U221: 491.97 | V221: 50.00 | W221: 529.82 | X221: 100.00 | Y221: 150.00 | Z221: 300.00 | AA221: 2.753401116e+307 | AB221: 300.00 | AC221: 0.25 | AD221: 150.00 | AE221: 0.50
A222: 0.55 | B222: =A222*$L$176*1.2 -> 582.80 | C222: 241.41 | D222: 883.03 | E222: 163.44 | F222: 485.67 | G222: 297.16 | H222: 324.70 | I222: 180.19 | J222: 491.97 | K222: 121.99 | L222: 270.58 | M222: 221.80 | N222: 123.09 | O222: 123.09 | P222: 100.00 | Q222: 883.03 | R222: 55.00 | S222: 485.67 | T222: 100.00 | U222: 491.97 | V222: 55.00 | W222: 582.80 | X222: 100.00 | Y222: 165.00 | Z222: 300.00 | AB222: 300.00 | AC222: 0.28 | AD222: 165.00 | AE222: 0.50
A223: 0.60 | B223: 635.78 | C223: 252.15 | D223: 883.03 | E223: 178.30 | F223: 529.82 | G223: 297.16 | H223: 354.22 | I223: 188.21 | J223: 491.97 | K223: 133.08 | L223: 295.18 | M223: 221.80 | N223: 117.85 | O223: 117.85 | P223: 100.00 | Q223: 883.03 | R223: 60.00 | S223: 529.82 | T223: 100.00 | U223: 491.97 | V223: 60.00 | W223: 635.78 | X223: 100.00 | Y223: 180.00 | Z223: 300.00 | AB223: 300.00 | AC223: 0.30 | AD223: 180.00 | AE223: 0.50
A224: 0.65 | B224: 688.76 | C224: 262.44 | D224: 883.03 | E224: 193.15 | F224: 573.97 | G224: 297.16 | H224: 383.74 | I224: 195.89 | J224: 491.97 | K224: 144.17 | L224: 319.78 | M224: 221.80 | N224: 113.23 | O224: 113.23 | P224: 100.00 | Q224: 883.03 | R224: 65.00 | S224: 573.97 | T224: 100.00 | U224: 491.97 | V224: 65.00 | W224: 688.76 | X224: 100.00 | Y224: 195.00 | Z224: 300.00 | AB224: 300.00 | AC224: 0.33 | AD224: 195.00 | AE224: 0.50
A225: 0.70 | B225: 741.75 | C225: 272.35 | D225: 883.03 | E225: 208.01 | F225: 618.12 | G225: 297.16 | H225: 413.25 | I225: 203.29 | J225: 491.97 | K225: 155.26 | L225: 344.38 | M225: 221.80 | N225: 109.11 | O225: 109.11 | P225: 100.00 | Q225: 883.03 | R225: 70.00 | S225: 618.12 | T225: 100.00 | U225: 491.97 | V225: 70.00 | W225: 741.75 | X225: 100.00 | Y225: 210.00 | Z225: 300.00 | AB225: 300.00 | AC225: 0.35 | AD225: 210.00 | AE225: 0.50
A226: 0.75 | B226: 794.73 | C226: 281.91 | D226: 883.03 | E226: 222.87 | F226: 662.27 | G226: 297.16 | H226: 442.77 | I226: 210.42 | J226: 491.97 | K226: 166.35 | L226: 368.98 | M226: 221.80 | N226: 105.41 | O226: 105.41 | P226: 100.00 | Q226: 883.03 | R226: 75.00 | S226: 662.27 | T226: 100.00 | U226: 491.97 | V226: 75.00 | W226: 794.73 | X226: 100.00 | Y226: 225.00 | Z226: 300.00 | AB226: 300.00 | AC226: 0.38 | AD226: 225.00 | AE226: 0.50
A227: 0.80 | B227: 847.71 | C227: 291.15 | D227: 883.03 | E227: 237.73 | F227: 706.42 | G227: 297.16 | H227: 472.29 | I227: 217.32 | J227: 491.97 | K227: 177.44 | L227: 393.58 | M227: 221.80 | N227: 102.06 | O227: 102.06 | P227: 100.00 | Q227: 883.03 | R227: 80.00 | S227: 706.42 | T227: 100.00 | U227: 491.97 | V227: 80.00 | W227: 847.71 | X227: 100.00 | Y227: 240.00 | Z227: 300.00 | AB227: 300.00 | AC227: 0.40 | AD227: 240.00 | AE227: 0.50
A228: 0.85 | B228: 900.69 | C228: 300.12 | D228: 883.03 | E228: 252.58 | F228: 750.58 | G228: 297.16 | H228: 501.81 | I228: 224.01 | J228: 491.97 | K228: 188.53 | L228: 418.17 | M228: 221.80 | N228: 99.01 | O228: 99.01 | P228: 100.00 | Q228: 883.03 | R228: 85.00 | S228: 750.58 | T228: 100.00 | U228: 491.97 | V228: 85.00 | W228: 900.69 | X228: 100.00 | Y228: 255.00 | Z228: 300.00 | AB228: 300.00 | AC228: 0.43 | AD228: 255.00 | AE228: 0.50
A229: 0.90 | B229: 953.67 | C229: 308.82 | D229: 883.03 | E229: 267.44 | F229: 794.73 | G229: 297.16 | H229: 531.33 | I229: 230.51 | J229: 491.97 | K229: 199.62 | L229: 442.77 | M229: 221.80 | N229: 96.23 | O229: 96.23 | P229: 100.00 | Q229: 883.03 | R229: 90.00 | S229: 794.73 | T229: 100.00 | U229: 491.97 | V229: 90.00 | W229: 953.67 | X229: 100.00 | Y229: 270.00 | Z229: 300.00 | AB229: 300.00 | AC229: 0.45 | AD229: 270.00 | AE229: 0.50
A230: 0.95 | B230: 1,006.66 | C230: 317.28 | D230: 883.03 | E230: 282.30 | F230: 838.88 | G230: 297.16 | H230: 560.84 | I230: 236.82 | J230: 491.97 | K230: 210.71 | L230: 467.37 | M230: 221.80 | N230: 93.66 | O230: 93.66 | P230: 100.00 | Q230: 883.03 | R230: 95.00 | S230: 838.88 | T230: 100.00 | U230: 491.97 | V230: 95.00 | W230: 1,006.66 | X230: 100.00 | Y230: 285.00 | Z230: 300.00 | AB230: 300.00 | AC230: 0.48 | AD230: 285.00 | AE230: 0.50
A231: 1.00 | B231: 1,059.64 | C231: 325.52 | D231: 883.03 | E231: 297.16 | F231: 883.03 | G231: 297.16 | H231: 590.36 | I231: 242.97 | J231: 491.97 | K231: 221.80 | L231: 491.97 | M231: 221.80 | N231: 91.29 | O231: 91.29 | P231: 100.00 | Q231: 883.03 | R231: 100.00 | S231: 883.03 | T231: 100.00 | U231: 491.97 | V231: 100.00 | W231: 1,059.64 | X231: 100.00 | Y231: =$N$31*A231 -> 300.00 | Z231: 300.00 | AB231: 300.00 | AC231: 0.50 | AD231: 300.00 | AE231: 0.50
B234: MERCADO DE FONDOS PRESTABLES
A235: Unidades | B235: r | C235: S Inicial | D235: I Inicial | E235: r | F235: S Final | G235: I Final | H235: r line1,1 | I235: s line1,1 | J235: r line1,1 | K235: s line1,1 | L235: r line1,2 | M235: s line1,2 | N235: r line1,2 | O235: s line1,2 | P235: Unidades
A236: 0 | B236: =A236*$O$179 -> 0.00 | C236: =$M$179+(B236*$N$179) -> -25.00 | D236: =$M$182+($N$182*B236) -> 280,000.00 | E236: =A236*$U$179 -> 0.00 | F236: =$S$179+($T$179*E236) -> -25.00 | G236: =$S$182+(E236*$T$182) -> 280,000.00 | H236: =$O$179 -> 11.72 | I236: =$L$179*P236 -> 0.00 | J236: =$O$179*P236 -> 0.00 | K236: =$L$179 -> 98,393.83 | L236: =$U$179 -> 11.72 | M236: =P236*$R$179 -> 0.00 | N236: =$U$179*P236 -> 0.00 | O236: =$R$179 -> 98,393.83 | P236: 0
A237: 0.1 | B237: =A237*$O$179 -> 1.17 | C237: =$M$179+(B237*$N$179) -> 9,816.88 | D237: =$M$182+($N$182*B237) -> 261,839.38 | E237: =A237*$U$179 -> 1.17 | F237: =$S$179+($T$179*E237) -> 9,816.88 | G237: =$S$182+(E237*$T$182) -> 261,839.38 | H237: =$O$179 -> 11.72 | I237: =$L$179*P237 -> 4,919.69 | J237: =$O$179*P237 -> 0.59 | K237: =$L$179 -> 98,393.83 | L237: =$U$179 -> 11.72 | M237: =P237*$R$179 -> 4,919.69 | N237: =$U$179*P237 -> 0.59 | O237: =$R$179 -> 98,393.83 | P237: 0.05
A238: 0.2 | B238: 2.34 | C238: 19,658.77 | D238: 243,678.77 | E238: 2.34 | F238: 19,658.77 | G238: 243,678.77 | H238: 11.72 | I238: 9,839.38 | J238: 1.17 | K238: 98,393.83 | L238: 11.72 | M238: 9,839.38 | N238: 1.17 | O238: 98,393.83 | P238: 0.1
A239: 0.3 | B239: 3.51 | C239: 29,500.65 | D239: 225,518.15 | E239: 3.51 | F239: 29,500.65 | G239: 225,518.15 | H239: 11.72 | I239: 14,759.07 | J239: 1.76 | K239: 98,393.83 | L239: 11.72 | M239: 14,759.07 | N239: 1.76 | O239: 98,393.83 | P239: 0.15
A240: 0.4 | B240: 4.69 | C240: 39,342.53 | D240: 207,357.53 | E240: 4.69 | F240: 39,342.53 | G240: 207,357.53 | H240: 11.72 | I240: 19,678.77 | J240: 2.34 | K240: 98,393.83 | L240: 11.72 | M240: 19,678.77 | N240: 2.34 | O240: 98,393.83 | P240: 0.2
A241: 0.5 | B241: 5.86 | C241: 49,184.41 | D241: 189,196.91 | E241: 5.86 | F241: 49,184.41 | G241: 189,196.91 | H241: 11.72 | I241: 24,598.46 | J241: 2.93 | K241: 98,393.83 | L241: 11.72 | M241: 24,598.46 | N241: 2.93 | O241: 98,393.83 | P241: 0.25
A242: 0.6 | B242: 7.03 | C242: 59,026.30 | D242: 171,036.30 | E242: 7.03 | F242: 59,026.30 | G242: 171,036.30 | H242: 11.72 | I242: 29,518.15 | J242: 3.51 | K242: 98,393.83 | L242: 11.72 | M242: 29,518.15 | N242: 3.51 | O242: 98,393.83 | P242: 0.3
A243: 0.7 | B243: 8.20 | C243: 68,868.18 | D243: 152,875.68 | E243: 8.20 | F243: 68,868.18 | G243: 152,875.68 | H243: 11.72 | I243: 34,437.84 | J243: 4.10 | K243: 98,393.83 | L243: 11.72 | M243: 34,437.84 | N243: 4.10 | O243: 98,393.83 | P243: 0.35
A244: 0.8 | B244: 9.37 | C244: 78,710.06 | D244: 134,715.06 | E244: 9.37 | F244: 78,710.06 | G244: 134,715.06 | H244: 11.72 | I244: 39,357.53 | J244: 4.69 | K244: 98,393.83 | L244: 11.72 | M244: 39,357.53 | N244: 4.69 | O244: 98,393.83 | P244: 0.4
A245: 0.9 | B245: 10.54 | C245: 88,551.95 | D245: 116,554.45 | E245: 10.54 | F245: 88,551.95 | G245: 116,554.45 | H245: 11.72 | I245: 44,277.22 | J245: 5.27 | K245: 98,393.83 | L245: 11.72 | M245: 44,277.22 | N245: 5.27 | O245: 98,393.83 | P245: 0.45
A246: 1 | B246: 11.72 | C246: 98,393.83 | D246: 98,393.83 | E246: 11.72 | F246: 98,393.83 | G246: 98,393.83 | H246: 11.72 | I246: 49,196.91 | J246: 5.86 | K246: 98,393.83 | L246: 11.72 | M246: 49,196.91 | N246: 5.86 | O246: 98,393.83 | P246: 0.5
A247: 1.1 | B247: 12.89 | C247: 108,235.71 | D247: 80,233.21 | E247: 12.89 | F247: 108,235.71 | G247: 80,233.21 | H247: 11.72 | I247: 54,116.61 | J247: 6.44 | K247: 98,393.83 | L247: 11.72 | M247: 54,116.61 | N247: 6.44 | O247: 98,393.83 | P247: 0.55
A248: 1.2 | B248: 14.06 | C248: 118,077.59 | D248: 62,072.59 | E248: 14.06 | F248: 118,077.59 | G248: 62,072.59 | H248: 11.72 | I248: 59,036.30 | J248: 7.03 | K248: 98,393.83 | L248: 11.72 | M248: 59,036.30 | N248: 7.03 | O248: 98,393.83 | P248: 0.6
A249: 1.3 | B249: 15.23 | C249: 127,919.48 | D249: 43,911.98 | E249: 15.23 | F249: 127,919.48 | G249: 43,911.98 | H249: 11.72 | I249: 63,955.99 | J249: 7.62 | K249: 98,393.83 | L249: 11.72 | M249: 63,955.99 | N249: 7.62 | O249: 98,393.83 | P249: 0.65
A250: 1.4 | B250: 16.40 | C250: 137,761.36 | D250: 25,751.36 | E250: 16.40 | F250: 137,761.36 | G250: 25,751.36 | H250: 11.72 | I250: 68,875.68 | J250: 8.20 | K250: 98,393.83 | L250: 11.72 | M250: 68,875.68 | N250: 8.20 | O250: 98,393.83 | P250: 0.7
A251: 1.5 | B251: 17.57 | C251: 147,603.24 | D251: 7,590.74 | E251: 17.57 | F251: 147,603.24 | G251: 7,590.74 | H251: 11.72 | I251: 73,795.37 | J251: 8.79 | K251: 98,393.83 | L251: 11.72 | M251: 73,795.37 | N251: 8.79 | O251: 98,393.83 | P251: 0.75
A252: 1.6 | B252: 18.75 | C252: 157,445.13 | D252: -10,569.87 | E252: 18.75 | F252: 157,445.13 | G252: -10,569.87 | H252: 11.72 | I252: 78,715.06 | J252: 9.37 | K252: 98,393.83 | L252: 11.72 | M252: 78,715.06 | N252: 9.37 | O252: 98,393.83 | P252: 0.8
A253: 1.7 | B253: 19.92 | C253: 167,287.01 | D253: -28,730.49 | E253: 19.92 | F253: 167,287.01 | G253: -28,730.49 | H253: 11.72 | I253: 83,634.75 | J253: 9.96 | K253: 98,393.83 | L253: 11.72 | M253: 83,634.75 | N253: 9.96 | O253: 98,393.83 | P253: 0.85
A254: 1.8 | B254: 21.09 | C254: 177,128.89 | D254: -46,891.11 | E254: 21.09 | F254: 177,128.89 | G254: -46,891.11 | H254: 11.72 | I254: 88,554.45 | J254: 10.54 | K254: 98,393.83 | L254: 11.72 | M254: 88,554.45 | N254: 10.54 | O254: 98,393.83 | P254: 0.9
A255: 1.9 | B255: 22.26 | C255: 186,970.77 | D255: -65,051.73 | E255: 22.26 | F255: 186,970.77 | G255: -65,051.73 | H255: 11.72 | I255: 93,474.14 | J255: 11.13 | K255: 98,393.83 | L255: 11.72 | M255: 93,474.14 | N255: 11.13 | O255: 98,393.83 | P255: 0.95
A256: 2 | B256: 23.43 | C256: 196,812.66 | D256: -83,212.34 | E256: 23.43 | F256: 196,812.66 | G256: -83,212.34 | H256: 11.72 | I256: 98,393.83 | J256: 11.72 | K256: 98,393.83 | L256: 11.72 | M256: 98,393.83 | N256: 11.72 | O256: 98,393.83 | P256: 1
A260: MODELO ORIGINAL
B262: FUNCIÓN DE PRODUCCIÓN | N262: MERCADO LABORAL
A263: Ponderador | B263: Nc | C263: c | D263: xline | F263: pline | H263: Nk | I263: k | J263: xline | L263: pline | N263: Pmc | O263: Pmk | P263: w | Q263: xlinec | S263: plinec | U263: xlinek | W263: salario | Y263: y1 Line | AA263: PMg | AB263: x1 line | AD263: y1 Line
A264: 0 | B264: =A264*$R$176*1.2 -> 0 | C264: =$S$167*(B264^$U$167) -> 0 | D264: =$R$176 -> 883.03 | E264: =$R$167*A264 -> 0 | F264: =$R$176*A264 -> 0 | G264: =$R$167 -> 297.16 | H264: =A264*$R$173*1.2 -> 0 | I264: =$S$164*(H264^$U$164) -> 0 | J264: =$R$173 -> 491.97 | K264: =$R$164*A264 -> 0 | L264: =A264*$R$173 -> 0 | M264: =$R$164 -> 221.80 | N264: 0 | O264: 0 | P264: =$R$191 -> 100.00 | Q264: =$R$176 -> 883.03 | R264: =$R$191*A264 -> 0 | S264: =$R$176*A264 -> 0 | T264: =$R$191 -> 100.00 | U264: =$R$173 -> 491.97 | V264: =$P$264*A264 -> 0 | W264: =(MAX($B$284,$H$284))*A264 -> 0 | X264: =$P$264 -> 100.00 | Y264: =$N$31*A264 -> 0 | Z264: =$N$29 -> 300.00 | AB264: =$N$31 -> 300.00 | AC264: =A264*$N$43 -> 0 | AD264: =A264*$N$31 -> 0 | AE264: =$N$43 -> 0.50
A265: 0.05 | B265: =A265*$R$176*1.2 -> 52.98 | C265: =$S$167*(B265^$U$167) -> 72.79 | D265: =$R$176 -> 883.03 | E265: =$R$167*A265 -> 14.86 | F265: =$R$176*A265 -> 44.15 | G265: =$R$167 -> 297.16 | H265: =A265*$R$173*1.2 -> 29.52 | I265: =$S$164*(H265^$U$164) -> 54.33 | J265: =$R$173 -> 491.97 | K265: =$R$164*A265 -> 11.09 | L265: =A265*$R$173 -> 24.60 | M265: =$R$164 -> 221.80 | N265: =($U$167*$S$167*(B265^($U$167-1)))*$R$188 -> 408.25 | O265: =($U$164*$S$164*(H265^($U$164-1)))*$R$185 -> 408.25 | P265: =$R$191 -> 100.00 | Q265: =$R$176 -> 883.03 | R265: =$R$191*A265 -> 5.00 | S265: =$R$176*A265 -> 44.15 | T265: =$R$191 -> 100.00 | U265: =$R$173 -> 491.97 | V265: =$P$264*A265 -> 5.00 | W265: =(MAX($B$284,$H$284))*A265 -> 52.98 | X265: =$P$264 -> 100.00 | Y265: =$N$31*A265 -> 15.00 | Z265: =$N$29 -> 300.00 | AA265: =S265*T265*(R265^(T265-1))*(U265^V265) -> 2.007546581e+86 | AB265: =$N$31 -> 300.00 | AC265: =A265*$N$43 -> 0.03 | AD265: =A265*$N$31 -> 15.00 | AE265: =$N$43 -> 0.50
A266: 0.10 | B266: 105.96 | C266: 102.94 | D266: 883.03 | E266: 29.72 | F266: 88.30 | G266: 297.16 | H266: 59.04 | I266: 76.84 | J266: 491.97 | K266: 22.18 | L266: 49.20 | M266: 221.80 | N266: =($U$167*$S$167*(B266^($U$167-1)))*$R$188 -> 288.68 | O266: =($U$164*$S$164*(H266^($U$164-1)))*$R$185 -> 288.68 | P266: 100.00 | Q266: 883.03 | R266: 10.00 | S266: 88.30 | T266: 100.00 | U266: 491.97 | V266: 10.00 | W266: 105.96 | X266: 100.00 | Y266: 30.00 | Z266: 300.00 | AA266: 7.334229817e+129 | AB266: 300.00 | AC266: 0.05 | AD266: 30.00 | AE266: 0.50
A267: 0.15 | B267: 158.95 | C267: 126.07 | D267: 883.03 | E267: 44.57 | F267: 132.45 | G267: 297.16 | H267: 88.55 | I267: 94.10 | J267: 491.97 | K267: 33.27 | L267: 73.80 | M267: 221.80 | N267: 235.70 | O267: 235.70 | P267: 100.00 | Q267: 883.03 | R267: 15.00 | S267: 132.45 | T267: 100.00 | U267: 491.97 | V267: 15.00 | W267: 158.95 | X267: 100.00 | Y267: 45.00 | Z267: 300.00 | AA267: 8.593493187e+160 | AB267: 300.00 | AC267: 0.08 | AD267: 45.00 | AE267: 0.50
A268: 0.20 | B268: 211.93 | C268: 145.58 | D268: 883.03 | E268: 59.43 | F268: 176.61 | G268: 297.16 | H268: 118.07 | I268: 108.66 | J268: 491.97 | K268: 44.36 | L268: 98.39 | M268: 221.80 | N268: 204.12 | O268: 204.12 | P268: 100.00 | Q268: 883.03 | R268: 20.00 | S268: 176.61 | T268: 100.00 | U268: 491.97 | V268: 20.00 | W268: 211.93 | X268: 100.00 | Y268: 60.00 | Z268: 300.00 | AA268: 7.722051876e+186 | AB268: 300.00 | AC268: 0.10 | AD268: 60.00 | AE268: 0.50
A269: 0.25 | B269: 264.91 | C269: 162.76 | D269: 883.03 | E269: 74.29 | F269: 220.76 | G269: 297.16 | H269: 147.59 | I269: 121.49 | J269: 491.97 | K269: 55.45 | L269: 122.99 | M269: 221.80 | N269: 182.57 | O269: 182.57 | P269: 100.00 | Q269: 883.03 | R269: 25.00 | S269: 220.76 | T269: 100.00 | U269: 491.97 | V269: 25.00 | W269: 264.91 | X269: 100.00 | Y269: 75.00 | Z269: 300.00 | AA269: 1.092504747e+210 | AB269: 300.00 | AC269: 0.13 | AD269: 75.00 | AE269: 0.50
A270: 0.30 | B270: 317.89 | C270: 178.30 | D270: 883.03 | E270: 89.15 | F270: 264.91 | G270: 297.16 | H270: 177.11 | I270: 133.08 | J270: 491.97 | K270: 66.54 | L270: 147.59 | M270: 221.80 | N270: 166.67 | O270: 166.67 | P270: 100.00 | Q270: 883.03 | R270: 30.00 | S270: 264.91 | T270: 100.00 | U270: 491.97 | V270: 30.00 | W270: 317.89 | X270: 100.00 | Y270: 90.00 | Z270: 300.00 | AA270: 2.607577677e+231 | AB270: 300.00 | AC270: 0.15 | AD270: 90.00 | AE270: 0.50
A271: 0.35 | B271: 370.87 | C271: 192.58 | D271: 883.03 | E271: 104.01 | F271: 309.06 | G271: 297.16 | H271: 206.63 | I271: 143.75 | J271: 491.97 | K271: 77.63 | L271: 172.19 | M271: 221.80 | N271: 154.30 | O271: 154.30 | P271: 100.00 | Q271: 883.03 | R271: 35.00 | S271: 309.06 | T271: 100.00 | U271: 491.97 | V271: 35.00 | W271: 370.87 | X271: 100.00 | Y271: 105.00 | Z271: 300.00 | AA271: 3.720536201e+251 | AB271: 300.00 | AC271: 0.18 | AD271: 105.00 | AE271: 0.50
A272: 0.40 | B272: 423.85 | C272: 205.88 | D272: 883.03 | E272: 118.86 | F272: 353.21 | G272: 297.16 | H272: 236.15 | I272: 153.67 | J272: 491.97 | K272: 88.72 | L272: 196.79 | M272: 221.80 | N272: 144.34 | O272: 144.34 | P272: 100.00 | Q272: 883.03 | R272: 40.00 | S272: 353.21 | T272: 100.00 | U272: 491.97 | V272: 40.00 | W272: 423.85 | X272: 100.00 | Y272: 120.00 | Z272: 300.00 | AA272: 6.75288804e+270 | AB272: 300.00 | AC272: 0.20 | AD272: 120.00 | AE272: 0.50
A273: 0.45 | B273: 476.84 | C273: 218.37 | D273: 883.03 | E273: 133.72 | F273: 397.36 | G273: 297.16 | H273: 265.66 | I273: 162.99 | J273: 491.97 | K273: 99.81 | L273: 221.39 | M273: 221.80 | N273: 136.08 | O273: 136.08 | P273: 100.00 | Q273: 883.03 | R273: 45.00 | S273: 397.36 | T273: 100.00 | U273: 491.97 | V273: 45.00 | W273: 476.84 | X273: 100.00 | Y273: 135.00 | Z273: 300.00 | AA273: 2.537646426e+289 | AB273: 300.00 | AC273: 0.23 | AD273: 135.00 | AE273: 0.50
A274: 0.50 | B274: 529.82 | C274: 230.18 | D274: 883.03 | E274: 148.58 | F274: 441.52 | G274: 297.16 | H274: 295.18 | I274: 171.81 | J274: 491.97 | K274: 110.90 | L274: 245.98 | M274: 221.80 | N274: 129.10 | O274: 129.10 | P274: 100.00 | Q274: 883.03 | R274: 50.00 | S274: 441.52 | T274: 100.00 | U274: 491.97 | V274: 50.00 | W274: 529.82 | X274: 100.00 | Y274: 150.00 | Z274: 300.00 | AA274: 2.753401116e+307 | AB274: 300.00 | AC274: 0.25 | AD274: 150.00 | AE274: 0.50
A275: 0.55 | B275: 582.80 | C275: 241.41 | D275: 883.03 | E275: 163.44 | F275: 485.67 | G275: 297.16 | H275: 324.70 | I275: 180.19 | J275: 491.97 | K275: 121.99 | L275: 270.58 | M275: 221.80 | N275: 123.09 | O275: 123.09 | P275: 100.00 | Q275: 883.03 | R275: 55.00 | S275: 485.67 | T275: 100.00 | U275: 491.97 | V275: 55.00 | W275: 582.80 | X275: 100.00 | Y275: 165.00 | Z275: 300.00 | AB275: 300.00 | AC275: 0.28 | AD275: 165.00 | AE275: 0.50
A276: 0.60 | B276: 635.78 | C276: 252.15 | D276: 883.03 | E276: 178.30 | F276: 529.82 | G276: 297.16 | H276: 354.22 | I276: 188.21 | J276: 491.97 | K276: 133.08 | L276: 295.18 | M276: 221.80 | N276: 117.85 | O276: 117.85 | P276: 100.00 | Q276: 883.03 | R276: 60.00 | S276: 529.82 | T276: 100.00 | U276: 491.97 | V276: 60.00 | W276: 635.78 | X276: 100.00 | Y276: 180.00 | Z276: 300.00 | AB276: 300.00 | AC276: 0.30 | AD276: 180.00 | AE276: 0.50
A277: 0.65 | B277: 688.76 | C277: 262.44 | D277: 883.03 | E277: 193.15 | F277: 573.97 | G277: 297.16 | H277: 383.74 | I277: 195.89 | J277: 491.97 | K277: 144.17 | L277: 319.78 | M277: 221.80 | N277: 113.23 | O277: 113.23 | P277: 100.00 | Q277: 883.03 | R277: 65.00 | S277: 573.97 | T277: 100.00 | U277: 491.97 | V277: 65.00 | W277: 688.76 | X277: 100.00 | Y277: 195.00 | Z277: 300.00 | AB277: 300.00 | AC277: 0.33 | AD277: 195.00 | AE277: 0.50
A278: 0.70 | B278: 741.75 | C278: 272.35 | D278: 883.03 | E278: 208.01 | F278: 618.12 | G278: 297.16 | H278: 413.25 | I278: 203.29 | J278: 491.97 | K278: 155.26 | L278: 344.38 | M278: 221.80 | N278: 109.11 | O278: 109.11 | P278: 100.00 | Q278: 883.03 | R278: 70.00 | S278: 618.12 | T278: 100.00 | U278: 491.97 | V278: 70.00 | W278: 741.75 | X278: 100.00 | Y278: 210.00 | Z278: 300.00 | AB278: 300.00 | AC278: 0.35 | AD278: 210.00 | AE278: 0.50
A279: 0.75 | B279: 794.73 | C279: 281.91 | D279: 883.03 | E279: 222.87 | F279: 662.27 | G279: 297.16 | H279: 442.77 | I279: 210.42 | J279: 491.97 | K279: 166.35 | L279: 368.98 | M279: 221.80 | N279: 105.41 | O279: 105.41 | P279: 100.00 | Q279: 883.03 | R279: 75.00 | S279: 662.27 | T279: 100.00 | U279: 491.97 | V279: 75.00 | W279: 794.73 | X279: 100.00 | Y279: 225.00 | Z279: 300.00 | AB279: 300.00 | AC279: 0.38 | AD279: 225.00 | AE279: 0.50
A280: 0.80 | B280: 847.71 | C280: 291.15 | D280: 883.03 | E280: 237.73 | F280: 706.42 | G280: 297.16 | H280: 472.29 | I280: 217.32 | J280: 491.97 | K280: 177.44 | L280: 393.58 | M280: 221.80 | N280: 102.06 | O280: 102.06 | P280: 100.00 | Q280: 883.03 | R280: 80.00 | S280: 706.42 | T280: 100.00 | U280: 491.97 | V280: 80.00 | W280: 847.71 | X280: 100.00 | Y280: 240.00 | Z280: 300.00 | AB280: 300.00 | AC280: 0.40 | AD280: 240.00 | AE280: 0.50
A281: 0.85 | B281: 900.69 | C281: 300.12 | D281: 883.03 | E281: 252.58 | F281: 750.58 | G281: 297.16 | H281: 501.81 | I281: 224.01 | J281: 491.97 | K281: 188.53 | L281: 418.17 | M281: 221.80 | N281: 99.01 | O281: 99.01 | P281: 100.00 | Q281: 883.03 | R281: 85.00 | S281: 750.58 | T281: 100.00 | U281: 491.97 | V281: 85.00 | W281: 900.69 | X281: 100.00 | Y281: 255.00 | Z281: 300.00 | AB281: 300.00 | AC281: 0.43 | AD281: 255.00 | AE281: 0.50
A282: 0.90 | B282: 953.67 | C282: 308.82 | D282: 883.03 | E282: 267.44 | F282: 794.73 | G282: 297.16 | H282: 531.33 | I282: 230.51 | J282: 491.97 | K282: 199.62 | L282: 442.77 | M282: 221.80 | N282: 96.23 | O282: 96.23 | P282: 100.00 | Q282: 883.03 | R282: 90.00 | S282: 794.73 | T282: 100.00 | U282: 491.97 | V282: 90.00 | W282: 953.67 | X282: 100.00 | Y282: 270.00 | Z282: 300.00 | AB282: 300.00 | AC282: 0.45 | AD282: 270.00 | AE282: 0.50
A283: 0.95 | B283: 1,006.66 | C283: 317.28 | D283: 883.03 | E283: 282.30 | F283: 838.88 | G283: 297.16 | H283: 560.84 | I283: 236.82 | J283: 491.97 | K283: 210.71 | L283: 467.37 | M283: 221.80 | N283: 93.66 | O283: 93.66 | P283: 100.00 | Q283: 883.03 | R283: 95.00 | S283: 838.88 | T283: 100.00 | U283: 491.97 | V283: 95.00 | W283: 1,006.66 | X283: 100.00 | Y283: 285.00 | Z283: 300.00 | AB283: 300.00 | AC283: 0.48 | AD283: 285.00 | AE283: 0.50
A284: 1.00 | B284: 1,059.64 | C284: 325.52 | D284: 883.03 | E284: 297.16 | F284: 883.03 | G284: 297.16 | H284: 590.36 | I284: 242.97 | J284: 491.97 | K284: 221.80 | L284: 491.97 | M284: 221.80 | N284: 91.29 | O284: 91.29 | P284: 100.00 | Q284: 883.03 | R284: 100.00 | S284: 883.03 | T284: 100.00 | U284: 491.97 | V284: 100.00 | W284: 1,059.64 | X284: 100.00 | Y284: =$N$31*A284 -> 300.00 | Z284: 300.00 | AB284: 300.00 | AC284: 0.50 | AD284: 300.00 | AE284: 0.50
B287: MERCADO DE FONDOS PRESTABLES
A288: Unidades | B288: r | C288: S Inicial | D288: I Inicial | E288: r | F288: S Final | G288: I Final | H288: r line1,1 | I288: s line1,1 | J288: r line1,1 | K288: s line1,1 | L288: r line1,2 | M288: s line1,2 | N288: r line1,2 | O288: s line1,2 | P288: Unidades
A289: 0 | B289: =A289*$U$179 -> 0.00 | C289: =$S$179+(B289*$T$179) -> -25.00 | D289: =$S$182+($T$182*B289) -> 280,000.00 | E289: =A289*$U$179 -> 0.00 | F289: =$S$179+($T$179*E289) -> -25.00 | G289: =$S$182+(E289*$T$182) -> 280,000.00 | H289: =$O$179 -> 11.72 | I289: =$L$179*P289 -> 0.00 | J289: =$O$179*P289 -> 0.00 | K289: =$L$179 -> 98,393.83 | L289: =$U$179 -> 11.72 | M289: =P289*$R$179 -> 0.00 | N289: =$U$179*P289 -> 0.00 | O289: =$R$179 -> 98,393.83 | P289: 0
A290: 0.1 | B290: =A290*$U$179 -> 1.17 | C290: =$S$179+(B290*$T$179) -> 9,816.88 | D290: =$S$182+($T$182*B290) -> 261,839.38 | E290: =A290*$U$179 -> 1.17 | F290: =$S$179+($T$179*E290) -> 9,816.88 | G290: =$S$182+(E290*$T$182) -> 261,839.38 | H290: =$O$179 -> 11.72 | I290: =$L$179*P290 -> 4,919.69 | J290: =$O$179*P290 -> 0.59 | K290: =$L$179 -> 98,393.83 | L290: =$U$179 -> 11.72 | M290: =P290*$R$179 -> 4,919.69 | N290: =$U$179*P290 -> 0.59 | O290: =$R$179 -> 98,393.83 | P290: 0.05
A291: 0.2 | B291: 2.34 | C291: 19,658.77 | D291: 243,678.77 | E291: 2.34 | F291: 19,658.77 | G291: 243,678.77 | H291: 11.72 | I291: 9,839.38 | J291: 1.17 | K291: 98,393.83 | L291: 11.72 | M291: 9,839.38 | N291: 1.17 | O291: 98,393.83 | P291: 0.1
A292: 0.3 | B292: 3.51 | C292: 29,500.65 | D292: 225,518.15 | E292: 3.51 | F292: 29,500.65 | G292: 225,518.15 | H292: 11.72 | I292: 14,759.07 | J292: 1.76 | K292: 98,393.83 | L292: 11.72 | M292: 14,759.07 | N292: 1.76 | O292: 98,393.83 | P292: 0.15
A293: 0.4 | B293: 4.69 | C293: 39,342.53 | D293: 207,357.53 | E293: 4.69 | F293: 39,342.53 | G293: 207,357.53 | H293: 11.72 | I293: 19,678.77 | J293: 2.34 | K293: 98,393.83 | L293: 11.72 | M293: 19,678.77 | N293: 2.34 | O293: 98,393.83 | P293: 0.2
A294: 0.5 | B294: 5.86 | C294: 49,184.41 | D294: 189,196.91 | E294: 5.86 | F294: 49,184.41 | G294: 189,196.91 | H294: 11.72 | I294: 24,598.46 | J294: 2.93 | K294: 98,393.83 | L294: 11.72 | M294: 24,598.46 | N294: 2.93 | O294: 98,393.83 | P294: 0.25
A295: 0.6 | B295: 7.03 | C295: 59,026.30 | D295: 171,036.30 | E295: 7.03 | F295: 59,026.30 | G295: 171,036.30 | H295: 11.72 | I295: 29,518.15 | J295: 3.51 | K295: 98,393.83 | L295: 11.72 | M295: 29,518.15 | N295: 3.51 | O295: 98,393.83 | P295: 0.3
A296: 0.7 | B296: 8.20 | C296: 68,868.18 | D296: 152,875.68 | E296: 8.20 | F296: 68,868.18 | G296: 152,875.68 | H296: 11.72 | I296: 34,437.84 | J296: 4.10 | K296: 98,393.83 | L296: 11.72 | M296: 34,437.84 | N296: 4.10 | O296: 98,393.83 | P296: 0.35
A297: 0.8 | B297: 9.37 | C297: 78,710.06 | D297: 134,715.06 | E297: 9.37 | F297: 78,710.06 | G297: 134,715.06 | H297: 11.72 | I297: 39,357.53 | J297: 4.69 | K297: 98,393.83 | L297: 11.72 | M297: 39,357.53 | N297: 4.69 | O297: 98,393.83 | P297: 0.4
A298: 0.9 | B298: 10.54 | C298: 88,551.95 | D298: 116,554.45 | E298: 10.54 | F298: 88,551.95 | G298: 116,554.45 | H298: 11.72 | I298: 44,277.22 | J298: 5.27 | K298: 98,393.83 | L298: 11.72 | M298: 44,277.22 | N298: 5.27 | O298: 98,393.83 | P298: 0.45
A299: 1 | B299: 11.72 | C299: 98,393.83 | D299: 98,393.83 | E299: 11.72 | F299: 98,393.83 | G299: 98,393.83 | H299: 11.72 | I299: 49,196.91 | J299: 5.86 | K299: 98,393.83 | L299: 11.72 | M299: 49,196.91 | N299: 5.86 | O299: 98,393.83 | P299: 0.5
A300: 1.1 | B300: 12.89 | C300: 108,235.71 | D300: 80,233.21 | E300: 12.89 | F300: 108,235.71 | G300: 80,233.21 | H300: 11.72 | I300: 54,116.61 | J300: 6.44 | K300: 98,393.83 | L300: 11.72 | M300: 54,116.61 | N300: 6.44 | O300: 98,393.83 | P300: 0.55
A301: 1.2 | B301: 14.06 | C301: 118,077.59 | D301: 62,072.59 | E301: 14.06 | F301: 118,077.59 | G301: 62,072.59 | H301: 11.72 | I301: 59,036.30 | J301: 7.03 | K301: 98,393.83 | L301: 11.72 | M301: 59,036.30 | N301: 7.03 | O301: 98,393.83 | P301: 0.6
A302: 1.3 | B302: 15.23 | C302: 127,919.48 | D302: 43,911.98 | E302: 15.23 | F302: 127,919.48 | G302: 43,911.98 | H302: 11.72 | I302: 63,955.99 | J302: 7.62 | K302: 98,393.83 | L302: 11.72 | M302: 63,955.99 | N302: 7.62 | O302: 98,393.83 | P302: 0.65
... 7 more rows

Sheet ma_sistema_graficashicks (hidden)
A1: SISTEMA NEOCLÁSICO BISECTORIAL | M1: M% | N1: Var. Ak | O1: Var. Ac
A2: Efectos de política económica | M2: =mc_oculto!X156 -> 0 | N2: =mc_oculto!Y156 -> 0 | O2: =mc_oculto!Z156 -> 0
A3: PRODUCTO | M3: 0.00% | N3: 0.00% | O3: 0.00%
A4: Y | B4: Md | C4: V | M4: Var. alfa | N4: Var. Beta | O4: W% | P4: S
A5: =mc_oculto!L158 -> 275,000.00 | B5: 55,000.0 | C5: 5.00 | M5: =mc_oculto!AA156 -> 0 | N5: =mc_oculto!AB156 -> 0 | O5: =mc_oculto!AC156 -> 100.00 | P5: =mc_oculto!AD156 -> -25.00
A6: INGRESO | M6: 0.00% | N6: 0.00% | O6: 0.00% | P6: 0.00%
A7: Y | B7: I | C7: C
A8: =mc_oculto!L161 -> 275,000.00 | B8: =mc_oculto!M161 -> 98,393.8 | C8: =mc_oculto!N161 -> 176,606.2
A9: FUNCIÓN DE PRODUCCIÓN (BIENES DE CAPITAL) | N9: ORIGINAL | O9: CHOQUE | P9: VAR ABS | Q9: VAR REL
A10: k | B10: Ak | C10: Nk | D10: a | M10: Y | N10: =mc_oculto!Y165 -> 275,000.0 | O10: =mc_oculto!Z165 -> 275,000.0 | P10: =mc_oculto!AA165 -> 0 | Q10: =mc_oculto!AB165 -> 0%
A11: =mc_oculto!L164 -> 221.80 | B11: 10.00 | C11: =mc_oculto!N164 -> 491.97 | D11: 0.50 | M11: M | N11: =mc_oculto!Y166 -> 55,000.0 | O11: =mc_oculto!Z166 -> 55,000.0 | P11: =mc_oculto!AA166 -> 0 | Q11: =mc_oculto!AB166 -> 0%
A12: FUNCIÓN DE PRODUCCIÓN (BIENES DE CONSUMO) | M12: C | N12: =mc_oculto!Y167 -> 176,606.2 | O12: =mc_oculto!Z167 -> 176,606.2 | P12: =mc_oculto!AA167 -> 0 | Q12: =mc_oculto!AB167 -> 0%
A13: c | B13: Ac | C13: Ns | D13: b | M13: I | N13: =mc_oculto!Y168 -> 98,393.8 | O13: =mc_oculto!Z168 -> 98,393.8 | P13: =mc_oculto!AA168 -> 0 | Q13: =mc_oculto!AB168 -> 0%
A14: =mc_oculto!L167 -> 297.16 | B14: 10.00 | C14: =+A20 -> 883.03 | D14: 0.50 | M14: S | N14: =mc_oculto!Y169 -> 98,393.8 | O14: =mc_oculto!Z169 -> 98,393.8 | P14: =mc_oculto!AA169 -> 0 | Q14: =mc_oculto!AB169 -> 0%
A15: FUNCIÓN DEMANDA DE TRABAJO (BIENES DE CAPITAL) | M15: k | N15: =mc_oculto!Y170 -> 221.8 | O15: =mc_oculto!Z170 -> 221.8 | P15: =mc_oculto!AA170 -> 0 | Q15: =mc_oculto!AB170 -> 0%
A16: Nk | B16: a | C16: W | D16: Ak | E16: Pk | M16: c | N16: =mc_oculto!Y171 -> 297.2 | O16: =mc_oculto!Z171 -> 297.2 | P16: =mc_oculto!AA171 -> 0 | Q16: =mc_oculto!AB171 -> 0%
A17: =mc_oculto!L173 -> 492.0 | B17: =mc_oculto!M173 -> 0.5 | C17: =mc_oculto!N173 -> 100.00 | D17: =mc_oculto!O173 -> 10.0 | E17: =mc_oculto!P173 -> 443.6 | M17: r | N17: =mc_oculto!Y172 -> 11.7 | O17: =mc_oculto!Z172 -> 11.7 | P17: =mc_oculto!AA172 -> 0 | Q17: =mc_oculto!AB172 -> 0%
A18: FUNCIÓN DEMANDA DE TRABAJO (BIENES DE CONSUMO) | M18: Nk | N18: =mc_oculto!Y173 -> 492.0 | O18: =mc_oculto!Z173 -> 492.0 | P18: =mc_oculto!AA173 -> 0 | Q18: =mc_oculto!AB173 -> 0%
A19: Nc | B19: b | C19: W | D19: Ac | E19: Pc | M19: Nc | N19: =mc_oculto!Y174 -> 883.0 | O19: =mc_oculto!Z174 -> 883.0 | P19: =mc_oculto!AA174 -> 0 | Q19: =mc_oculto!AB174 -> 0%
A20: =mc_oculto!L176 -> 883.0 | B20: =mc_oculto!M176 -> 0.5 | C20: =mc_oculto!N176 -> 100.00 | D20: =mc_oculto!O176 -> 10.0 | E20: =mc_oculto!P176 -> 594.3 | M20: N | N20: =mc_oculto!Y175 -> 1,375.0 | O20: =mc_oculto!Z175 -> 1,375.0 | P20: =mc_oculto!AA175 -> 0 | Q20: =mc_oculto!AB175 -> 0%
A21: FUNCIÓN AHORRO PRIVADO | M21: Pk | N21: =mc_oculto!Y176 -> 443.6 | O21: =mc_oculto!Z176 -> 443.6 | P21: =mc_oculto!AA176 -> 0 | Q21: =mc_oculto!AB176 -> 0%
A22: S | B22: s0 | C22: s1 | D22: r | M22: Pc | N22: =mc_oculto!Y177 -> 594.3 | O22: =mc_oculto!Z177 -> 594.3 | P22: =mc_oculto!AA177 -> 0 | Q22: =mc_oculto!AB177 -> 0%
A23: =mc_oculto!L179 -> 98,393.8 | B23: (25.0) | C23: 8,400.0 | D23: =(B26-B23)/(C23-C26) -> 11.72 | M23: W | N23: =mc_oculto!Y178 -> 100.0 | O23: =mc_oculto!Z178 -> 100.0 | P23: =mc_oculto!AA178 -> 0 | Q23: =mc_oculto!AB178 -> 0%
A24: FUNCIÓN INVERSIÓN PRIVADA
A25: I | B25: i0 | C25: -i1 | D25: r | M25: Y | N25: Pk | O25: K | P25: Pc | Q25: c
A26: =mc_oculto!L182 -> 98,393.8 | B26: 280,000.0 | C26: (15,500.0) | D26: =mc_oculto!O182 -> 11.7 | M26: =mc_oculto!R194 -> 275,000.00 | N26: =mc_oculto!S194 -> 443.6 | O26: =mc_oculto!T194 -> 221.80 | P26: =mc_oculto!U194 -> 594.32 | Q26: =mc_oculto!V194 -> 297.16
A27: PRECIO DE CAPITAL
A28: Pk | B28: w | C28: a | D28: I | E28: Ak
A29: =mc_oculto!L185 -> 443.61 | B29: =mc_oculto!M185 -> 100.00 | C29: =mc_oculto!N185 -> 0.50 | D29: =mc_oculto!O185 -> 98,393.8 | E29: =mc_oculto!P185 -> 10.00
A30: PRECIO DE CONSUMO
A31: Pc | B31: w | C31: b | D31: C | E31: Ac
A32: =mc_oculto!L188 -> 594.32 | B32: =mc_oculto!M188 -> 100.00 | C32: =mc_oculto!N188 -> 0.50 | D32: =mc_oculto!O188 -> 176,606.2 | E32: =mc_oculto!P188 -> 10.00
A33: SALARIO
A34: w
A35: 100.00
A36: PRODUCTO
A37: Y | B37: Pk | C37: K | D37: Pc | E37: c
A38: =mc_oculto!L194 -> 275,000.00 | B38: =mc_oculto!M194 -> 443.6 | C38: =mc_oculto!N194 -> 221.80 | D38: =mc_oculto!O194 -> 594.32 | E38: =mc_oculto!P194 -> 297.16
A40: Títulos
A41: Resultados
A42: Insertar Datos
A43: Equilibrio
A44: Política económica
